Body Name,Transaction Number,Account Code Description,Expenses Type,Service Code,Service Area Categorisation,Supplier Name,Date,Amount,
Bath & North East Somerset Council,80113158,LL8,Individualised Budget,P03,Wellbeing,REDACTED,02/07/2012,298.46,
Bath & North East Somerset Council,80113158,LL8,Individualised Budget,P03,Wellbeing,REDACTED,02/07/2012,298.46,
Bath & North East Somerset Council,80113099,LL8,Individualised Budget,P03,Wellbeing,REDACTED,02/07/2012,463.34,
Bath & North East Somerset Council,80113099,LL8,Individualised Budget,P03,Wellbeing,REDACTED,02/07/2012,463.34,
Bath & North East Somerset Council,80113250,LL8,Individualised Budget,P03,Wellbeing,REDACTED,02/07/2012,275.97,
Bath & North East Somerset Council,80113250,LL8,Individualised Budget,P03,Wellbeing,REDACTED,02/07/2012,275.97,
Bath & North East Somerset Council,80113447,LM8,Home Care,P03,Wellbeing,ACTIVE ASSISTANCE,02/07/2012,1200.00,
Bath & North East Somerset Council,80113449,LM8,Home Care,P03,Wellbeing,ACTIVE ASSISTANCE,02/07/2012,1200.00,
Bath & North East Somerset Council,80113446,LM8,Home Care,P03,Wellbeing,ACTIVE ASSISTANCE,02/07/2012,1300.00,
Bath & North East Somerset Council,80113448,LM8,Home Care,P03,Wellbeing,ACTIVE ASSISTANCE,02/07/2012,1300.00,
Bath & North East Somerset Council,80113450,LM8,Home Care,P03,Wellbeing,ACTIVE ASSISTANCE,02/07/2012,1300.00,
Bath & North East Somerset Council,80113216,LL8,Individualised Budget,P03,Wellbeing,REDACTED,02/07/2012,926.20,
Bath & North East Somerset Council,80113216,LL8,Individualised Budget,P03,Wellbeing,REDACTED,02/07/2012,926.20,
Bath & North East Somerset Council,80113194,LL8,Individualised Budget,P03,Wellbeing,REDACTED,02/07/2012,602.22,
Bath & North East Somerset Council,80113194,LL8,Individualised Budget,P03,Wellbeing,REDACTED,02/07/2012,602.22,
Bath & North East Somerset Council,80113368,LM8,Home Care,P03,Wellbeing,AMBER HOMECARE LTD,02/07/2012,0.03,
Bath & North East Somerset Council,80113370,LM8,Home Care,P03,Wellbeing,AMBER HOMECARE LTD,02/07/2012,62.50,
Bath & North East Somerset Council,80113456,LM8,Home Care,P03,Wellbeing,AMBER HOMECARE LTD,02/07/2012,69.71,
Bath & North East Somerset Council,80113456,LM8,Home Care,P03,Wellbeing,AMBER HOMECARE LTD,02/07/2012,69.71,
Bath & North East Somerset Council,80113456,LM8,Home Care,P03,Wellbeing,AMBER HOMECARE LTD,02/07/2012,69.71,
Bath & North East Somerset Council,80113456,LM8,Home Care,P03,Wellbeing,AMBER HOMECARE LTD,02/07/2012,69.71,
Bath & North East Somerset Council,80113456,LM8,Home Care,P03,Wellbeing,AMBER HOMECARE LTD,02/07/2012,117.27,
Bath & North East Somerset Council,80113370,LM8,Home Care,P03,Wellbeing,AMBER HOMECARE LTD,02/07/2012,261.38,
Bath & North East Somerset Council,80113370,LM8,Home Care,P03,Wellbeing,AMBER HOMECARE LTD,02/07/2012,261.38,
Bath & North East Somerset Council,80113368,LM8,Home Care,P03,Wellbeing,AMBER HOMECARE LTD,02/07/2012,352.84,
Bath & North East Somerset Council,80113368,LM8,Home Care,P03,Wellbeing,AMBER HOMECARE LTD,02/07/2012,352.84,
Bath & North East Somerset Council,80113456,LM8,Home Care,P03,Wellbeing,AMBER HOMECARE LTD,02/07/2012,487.84,
Bath & North East Somerset Council,80113456,LM8,Home Care,P03,Wellbeing,AMBER HOMECARE LTD,02/07/2012,487.84,
Bath & North East Somerset Council,80113456,LM8,Home Care,P03,Wellbeing,AMBER HOMECARE LTD,02/07/2012,487.84,
Bath & North East Somerset Council,80113456,LM8,Home Care,P03,Wellbeing,AMBER HOMECARE LTD,02/07/2012,487.84,
Bath & North East Somerset Council,80112983,LM6,Nursing Care,P03,Wellbeing,ANCHOR TRUST,02/07/2012,650.00,
Bath & North East Somerset Council,80112983,LM6,Nursing Care,P03,Wellbeing,ANCHOR TRUST,02/07/2012,650.00,
Bath & North East Somerset Council,80113038,LL4,Direct Payments,P03,Wellbeing,REDACTED,02/07/2012,1293.48,
Bath & North East Somerset Council,80113038,LL4,Direct Payments,P03,Wellbeing,REDACTED,02/07/2012,1293.48,
Bath & North East Somerset Council,80113239,LL3,Supported Living,P03,Wellbeing,ARCH CARE SERVICES,02/07/2012,54.54,
Bath & North East Somerset Council,80113239,LL3,Supported Living,P03,Wellbeing,ARCH CARE SERVICES,02/07/2012,54.54,
Bath & North East Somerset Council,80113239,LL3,Supported Living,P03,Wellbeing,ARCH CARE SERVICES,02/07/2012,90.00,
Bath & North East Somerset Council,80113239,LL3,Supported Living,P03,Wellbeing,ARCH CARE SERVICES,02/07/2012,90.00,
Bath & North East Somerset Council,80113239,LL3,Supported Living,P03,Wellbeing,ARCH CARE SERVICES,02/07/2012,90.90,
Bath & North East Somerset Council,80113239,LL3,Supported Living,P03,Wellbeing,ARCH CARE SERVICES,02/07/2012,90.90,
Bath & North East Somerset Council,80113239,LL3,Supported Living,P03,Wellbeing,ARCH CARE SERVICES,02/07/2012,252.50,
Bath & North East Somerset Council,80113239,LL3,Supported Living,P03,Wellbeing,ARCH CARE SERVICES,02/07/2012,252.50,
Bath & North East Somerset Council,80113239,LL3,Supported Living,P03,Wellbeing,ARCH CARE SERVICES,02/07/2012,277.75,
Bath & North East Somerset Council,80113239,LL3,Supported Living,P03,Wellbeing,ARCH CARE SERVICES,02/07/2012,277.75,
Bath & North East Somerset Council,80113239,LL3,Supported Living,P03,Wellbeing,ARCH CARE SERVICES,02/07/2012,278.76,
Bath & North East Somerset Council,80113239,LL3,Supported Living,P03,Wellbeing,ARCH CARE SERVICES,02/07/2012,278.76,
Bath & North East Somerset Council,80113239,LL3,Supported Living,P03,Wellbeing,ARCH CARE SERVICES,02/07/2012,278.76,
Bath & North East Somerset Council,80113239,LL3,Supported Living,P03,Wellbeing,ARCH CARE SERVICES,02/07/2012,278.76,
Bath & North East Somerset Council,80113239,LL3,Supported Living,P03,Wellbeing,ARCH CARE SERVICES,02/07/2012,310.07,
Bath & North East Somerset Council,80113239,LL3,Supported Living,P03,Wellbeing,ARCH CARE SERVICES,02/07/2012,310.07,
Bath & North East Somerset Council,80113239,LL3,Supported Living,P03,Wellbeing,ARCH CARE SERVICES,02/07/2012,346.43,
Bath & North East Somerset Council,80113239,LL3,Supported Living,P03,Wellbeing,ARCH CARE SERVICES,02/07/2012,346.43,
Bath & North East Somerset Council,80113239,LL3,Supported Living,P03,Wellbeing,ARCH CARE SERVICES,02/07/2012,346.43,
Bath & North East Somerset Council,80113239,LL3,Supported Living,P03,Wellbeing,ARCH CARE SERVICES,02/07/2012,346.43,
Bath & North East Somerset Council,80113239,LL3,Supported Living,P03,Wellbeing,ARCH CARE SERVICES,02/07/2012,405.01,
Bath & North East Somerset Council,80113239,LL3,Supported Living,P03,Wellbeing,ARCH CARE SERVICES,02/07/2012,405.01,
Bath & North East Somerset Council,80113000,LM6,Nursing Care,P03,Wellbeing,ARCH CARE SERVICES,02/07/2012,427.00,
Bath & North East Somerset Council,80113000,LM6,Nursing Care,P03,Wellbeing,ARCH CARE SERVICES,02/07/2012,427.00,
Bath & North East Somerset Council,80113239,LL3,Supported Living,P03,Wellbeing,ARCH CARE SERVICES,02/07/2012,431.27,
Bath & North East Somerset Council,80113239,LL3,Supported Living,P03,Wellbeing,ARCH CARE SERVICES,02/07/2012,431.27,
Bath & North East Somerset Council,80113239,LL3,Supported Living,P03,Wellbeing,ARCH CARE SERVICES,02/07/2012,445.00,
Bath & North East Somerset Council,80113239,LL3,Supported Living,P03,Wellbeing,ARCH CARE SERVICES,02/07/2012,445.00,
Bath & North East Somerset Council,80112990,LM6,Nursing Care,P03,Wellbeing,BARCHESTER HEALTHCARE,02/07/2012,915.30,
Bath & North East Somerset Council,80112990,LM6,Nursing Care,P03,Wellbeing,BARCHESTER HEALTHCARE,02/07/2012,915.30,
Bath & North East Somerset Council,80112978,LM6,Nursing Care,P03,Wellbeing,BARCHESTER HEALTHCARE HOMES LTD,02/07/2012,650.00,
Bath & North East Somerset Council,80112978,LM6,Nursing Care,P03,Wellbeing,BARCHESTER HEALTHCARE HOMES LTD,02/07/2012,650.00,
Bath & North East Somerset Council,80112978,LM6,Nursing Care,P03,Wellbeing,BARCHESTER HEALTHCARE HOMES LTD,02/07/2012,650.00,
Bath & North East Somerset Council,80112978,LM6,Nursing Care,P03,Wellbeing,BARCHESTER HEALTHCARE HOMES LTD,02/07/2012,650.00,
Bath & North East Somerset Council,80112978,LM6,Nursing Care,P03,Wellbeing,BARCHESTER HEALTHCARE HOMES LTD,02/07/2012,650.00,
Bath & North East Somerset Council,80112978,LM6,Nursing Care,P03,Wellbeing,BARCHESTER HEALTHCARE HOMES LTD,02/07/2012,650.00,
Bath & North East Somerset Council,80112978,LM6,Nursing Care,P03,Wellbeing,BARCHESTER HEALTHCARE HOMES LTD,02/07/2012,675.61,
Bath & North East Somerset Council,80112978,LM6,Nursing Care,P03,Wellbeing,BARCHESTER HEALTHCARE HOMES LTD,02/07/2012,675.61,
Bath & North East Somerset Council,80112978,LM6,Nursing Care,P03,Wellbeing,BARCHESTER HEALTHCARE HOMES LTD,02/07/2012,691.00,
Bath & North East Somerset Council,80112978,LM6,Nursing Care,P03,Wellbeing,BARCHESTER HEALTHCARE HOMES LTD,02/07/2012,691.00,
Bath & North East Somerset Council,80112978,LM6,Nursing Care,P03,Wellbeing,BARCHESTER HEALTHCARE HOMES LTD,02/07/2012,750.00,
Bath & North East Somerset Council,80112978,LM6,Nursing Care,P03,Wellbeing,BARCHESTER HEALTHCARE HOMES LTD,02/07/2012,750.00,
Bath & North East Somerset Council,80112978,LM6,Nursing Care,P03,Wellbeing,BARCHESTER HEALTHCARE HOMES LTD,02/07/2012,755.00,
Bath & North East Somerset Council,80112978,LM6,Nursing Care,P03,Wellbeing,BARCHESTER HEALTHCARE HOMES LTD,02/07/2012,755.00,
Bath & North East Somerset Council,80112978,LM6,Nursing Care,P03,Wellbeing,BARCHESTER HEALTHCARE HOMES LTD,02/07/2012,762.75,
Bath & North East Somerset Council,80112978,LM6,Nursing Care,P03,Wellbeing,BARCHESTER HEALTHCARE HOMES LTD,02/07/2012,762.75,
Bath & North East Somerset Council,80112978,LM6,Nursing Care,P03,Wellbeing,BARCHESTER HEALTHCARE HOMES LTD,02/07/2012,830.00,
Bath & North East Somerset Council,80112978,LM6,Nursing Care,P03,Wellbeing,BARCHESTER HEALTHCARE HOMES LTD,02/07/2012,830.00,
Bath & North East Somerset Council,80112978,LM6,Nursing Care,P03,Wellbeing,BARCHESTER HEALTHCARE HOMES LTD,02/07/2012,839.03,
Bath & North East Somerset Council,80112978,LM6,Nursing Care,P03,Wellbeing,BARCHESTER HEALTHCARE HOMES LTD,02/07/2012,839.03,
Bath & North East Somerset Council,80112978,LM6,Nursing Care,P03,Wellbeing,BARCHESTER HEALTHCARE HOMES LTD,02/07/2012,846.00,
Bath & North East Somerset Council,80112978,LM6,Nursing Care,P03,Wellbeing,BARCHESTER HEALTHCARE HOMES LTD,02/07/2012,846.00,
Bath & North East Somerset Council,80113004,LM6,Nursing Care,P03,Wellbeing,BARKER CHEMICALS LTD T/A ST TERESA'S NH,02/07/2012,278.57,
Bath & North East Somerset Council,80113004,LM6,Nursing Care,P03,Wellbeing,BARKER CHEMICALS LTD T/A ST TERESA'S NH,02/07/2012,371.43,
Bath & North East Somerset Council,80113004,LM6,Nursing Care,P03,Wellbeing,BARKER CHEMICALS LTD T/A ST TERESA'S NH,02/07/2012,650.00,
Bath & North East Somerset Council,80113004,LM6,Nursing Care,P03,Wellbeing,BARKER CHEMICALS LTD T/A ST TERESA'S NH,02/07/2012,650.00,
Bath & North East Somerset Council,80113004,LM6,Nursing Care,P03,Wellbeing,BARKER CHEMICALS LTD T/A ST TERESA'S NH,02/07/2012,650.00,
Bath & North East Somerset Council,80113004,LM6,Nursing Care,P03,Wellbeing,BARKER CHEMICALS LTD T/A ST TERESA'S NH,02/07/2012,650.00,
Bath & North East Somerset Council,80113004,LM6,Nursing Care,P03,Wellbeing,BARKER CHEMICALS LTD T/A ST TERESA'S NH,02/07/2012,650.00,
Bath & North East Somerset Council,80113004,LM6,Nursing Care,P03,Wellbeing,BARKER CHEMICALS LTD T/A ST TERESA'S NH,02/07/2012,650.00,
Bath & North East Somerset Council,80113004,LM6,Nursing Care,P03,Wellbeing,BARKER CHEMICALS LTD T/A ST TERESA'S NH,02/07/2012,700.00,
Bath & North East Somerset Council,80113004,LM6,Nursing Care,P03,Wellbeing,BARKER CHEMICALS LTD T/A ST TERESA'S NH,02/07/2012,700.00,
Bath & North East Somerset Council,80113004,LM6,Nursing Care,P03,Wellbeing,BARKER CHEMICALS LTD T/A ST TERESA'S NH,02/07/2012,712.75,
Bath & North East Somerset Council,80113004,LM6,Nursing Care,P03,Wellbeing,BARKER CHEMICALS LTD T/A ST TERESA'S NH,02/07/2012,712.75,
Bath & North East Somerset Council,80113004,LM6,Nursing Care,P03,Wellbeing,BARKER CHEMICALS LTD T/A ST TERESA'S NH,02/07/2012,725.00,
Bath & North East Somerset Council,80113004,LM6,Nursing Care,P03,Wellbeing,BARKER CHEMICALS LTD T/A ST TERESA'S NH,02/07/2012,725.00,
Bath & North East Somerset Council,80113004,LM6,Nursing Care,P03,Wellbeing,BARKER CHEMICALS LTD T/A ST TERESA'S NH,02/07/2012,750.75,
Bath & North East Somerset Council,80113004,LM6,Nursing Care,P03,Wellbeing,BARKER CHEMICALS LTD T/A ST TERESA'S NH,02/07/2012,750.75,
Bath & North East Somerset Council,80113004,LM6,Nursing Care,P03,Wellbeing,BARKER CHEMICALS LTD T/A ST TERESA'S NH,02/07/2012,800.00,
Bath & North East Somerset Council,80113004,LM6,Nursing Care,P03,Wellbeing,BARKER CHEMICALS LTD T/A ST TERESA'S NH,02/07/2012,800.00,
Bath & North East Somerset Council,80113452,LM8,Home Care,P03,Wellbeing,BLUEBIRD CARE,02/07/2012,0.10,
Bath & North East Somerset Council,80113452,LM8,Home Care,P03,Wellbeing,BLUEBIRD CARE,02/07/2012,649.95,
Bath & North East Somerset Council,80113452,LM8,Home Care,P03,Wellbeing,BLUEBIRD CARE,02/07/2012,649.95,
Bath & North East Somerset Council,80112996,LM6,Nursing Care,P03,Wellbeing,BRIDGE CARE LTD,02/07/2012,464.29,
Bath & North East Somerset Council,80112996,LM6,Nursing Care,P03,Wellbeing,BRIDGE CARE LTD,02/07/2012,650.00,
Bath & North East Somerset Council,80112991,LM6,Nursing Care,P03,Wellbeing,BROOKDALE HEALTHCARE LTD,02/07/2012,3619.00,
Bath & North East Somerset Council,80112991,LM6,Nursing Care,P03,Wellbeing,BROOKDALE HEALTHCARE LTD,02/07/2012,3619.00,
Bath & North East Somerset Council,80113015,LM6,Nursing Care,P03,Wellbeing,BUPA CARE SERVICES BACS RECEIPTS,02/07/2012,750.00,
Bath & North East Somerset Council,80113015,LM6,Nursing Care,P03,Wellbeing,BUPA CARE SERVICES BACS RECEIPTS,02/07/2012,750.00,
Bath & North East Somerset Council,80112975,LM6,Nursing Care,P03,Wellbeing,BYBROOK HOUSE,02/07/2012,680.00,
Bath & North East Somerset Council,80112975,LM6,Nursing Care,P03,Wellbeing,BYBROOK HOUSE,02/07/2012,680.00,
Bath & North East Somerset Council,80113009,LM6,Nursing Care,P03,Wellbeing,CARE FIRST CARE HOMES LTD,02/07/2012,754.61,
Bath & North East Somerset Council,80113009,LM6,Nursing Care,P03,Wellbeing,CARE FIRST CARE HOMES LTD,02/07/2012,754.61,
Bath & North East Somerset Council,80113009,LM6,Nursing Care,P03,Wellbeing,CARE FIRST CARE HOMES LTD,02/07/2012,894.96,
Bath & North East Somerset Council,80113009,LM6,Nursing Care,P03,Wellbeing,CARE FIRST CARE HOMES LTD,02/07/2012,894.96,
Bath & North East Somerset Council,80113009,LM6,Nursing Care,P03,Wellbeing,CARE FIRST CARE HOMES LTD,02/07/2012,894.96,
Bath & North East Somerset Council,80113009,LM6,Nursing Care,P03,Wellbeing,CARE FIRST CARE HOMES LTD,02/07/2012,894.96,
Bath & North East Somerset Council,10664130,LM6,Nursing Care,P03,Wellbeing,CARE HOMES UK LTD,02/07/2012,1072.00,
Bath & North East Somerset Council,10664131,LM6,Nursing Care,P03,Wellbeing,CARE HOMES UK LTD,02/07/2012,1072.00,
Bath & North East Somerset Council,80113438,LM8,Home Care,P03,Wellbeing,CARE SOUTH,02/07/2012,52.60,
Bath & North East Somerset Council,80113431,LM8,Home Care,P03,Wellbeing,CARE SOUTH,02/07/2012,105.20,
Bath & North East Somerset Council,80113438,LM8,Home Care,P03,Wellbeing,CARE SOUTH,02/07/2012,116.90,
Bath & North East Somerset Council,80113438,LM8,Home Care,P03,Wellbeing,CARE SOUTH,02/07/2012,116.90,
Bath & North East Somerset Council,80113438,LM8,Home Care,P03,Wellbeing,CARE SOUTH,02/07/2012,116.90,
Bath & North East Somerset Council,80113438,LM8,Home Care,P03,Wellbeing,CARE SOUTH,02/07/2012,116.90,
Bath & North East Somerset Council,80113431,LM8,Home Care,P03,Wellbeing,CARE SOUTH,02/07/2012,233.80,
Bath & North East Somerset Council,80113431,LM8,Home Care,P03,Wellbeing,CARE SOUTH,02/07/2012,233.80,
Bath & North East Somerset Council,80113431,LM8,Home Care,P03,Wellbeing,CARE SOUTH,02/07/2012,233.80,
Bath & North East Somerset Council,80113431,LM8,Home Care,P03,Wellbeing,CARE SOUTH,02/07/2012,233.80,
Bath & North East Somerset Council,80113430,LM8,Home Care,P03,Wellbeing,CARE SOUTH,02/07/2012,508.00,
Bath & North East Somerset Council,80113430,LM8,Home Care,P03,Wellbeing,CARE SOUTH,02/07/2012,508.00,
Bath & North East Somerset Council,80113430,LM8,Home Care,P03,Wellbeing,CARE SOUTH,02/07/2012,508.00,
Bath & North East Somerset Council,80113430,LM8,Home Care,P03,Wellbeing,CARE SOUTH,02/07/2012,508.00,
Bath & North East Somerset Council,80113436,LM8,Home Care,P03,Wellbeing,CARE SOUTH,02/07/2012,526.05,
Bath & North East Somerset Council,80113436,LM8,Home Care,P03,Wellbeing,CARE SOUTH,02/07/2012,526.05,
Bath & North East Somerset Council,80113436,LM8,Home Care,P03,Wellbeing,CARE SOUTH,02/07/2012,526.05,
Bath & North East Somerset Council,80113436,LM8,Home Care,P03,Wellbeing,CARE SOUTH,02/07/2012,526.05,
Bath & North East Somerset Council,80113430,LM8,Home Care,P03,Wellbeing,CARE SOUTH,02/07/2012,584.50,
Bath & North East Somerset Council,80113430,LM8,Home Care,P03,Wellbeing,CARE SOUTH,02/07/2012,584.50,
Bath & North East Somerset Council,80113430,LM8,Home Care,P03,Wellbeing,CARE SOUTH,02/07/2012,584.50,
Bath & North East Somerset Council,80113430,LM8,Home Care,P03,Wellbeing,CARE SOUTH,02/07/2012,1052.31,
Bath & North East Somerset Council,80113430,LM8,Home Care,P03,Wellbeing,CARE SOUTH,02/07/2012,1052.31,
Bath & North East Somerset Council,80113430,LM8,Home Care,P03,Wellbeing,CARE SOUTH,02/07/2012,1052.31,
Bath & North East Somerset Council,80113010,LM6,Nursing Care,P03,Wellbeing,CEDAR CARE HOMES LTD,02/07/2012,92.86,
Bath & North East Somerset Council,80113010,LM6,Nursing Care,P03,Wellbeing,CEDAR CARE HOMES LTD,02/07/2012,107.14,
Bath & North East Somerset Council,80113010,LM6,Nursing Care,P03,Wellbeing,CEDAR CARE HOMES LTD,02/07/2012,278.57,
Bath & North East Somerset Council,80113010,LM6,Nursing Care,P03,Wellbeing,CEDAR CARE HOMES LTD,02/07/2012,278.57,
Bath & North East Somerset Council,80113010,LM6,Nursing Care,P03,Wellbeing,CEDAR CARE HOMES LTD,02/07/2012,278.57,
Bath & North East Somerset Council,80113010,LM6,Nursing Care,P03,Wellbeing,CEDAR CARE HOMES LTD,02/07/2012,321.43,
Bath & North East Somerset Council,80113010,LM6,Nursing Care,P03,Wellbeing,CEDAR CARE HOMES LTD,02/07/2012,321.43,
Bath & North East Somerset Council,80113010,LM6,Nursing Care,P03,Wellbeing,CEDAR CARE HOMES LTD,02/07/2012,535.71,
Bath & North East Somerset Council,80112994,LM6,Nursing Care,P03,Wellbeing,CEDAR CARE HOMES LTD,02/07/2012,650.00,
Bath & North East Somerset Council,80112994,LM6,Nursing Care,P03,Wellbeing,CEDAR CARE HOMES LTD,02/07/2012,650.00,
Bath & North East Somerset Council,80113010,LM6,Nursing Care,P03,Wellbeing,CEDAR CARE HOMES LTD,02/07/2012,650.00,
Bath & North East Somerset Council,80113010,LM6,Nursing Care,P03,Wellbeing,CEDAR CARE HOMES LTD,02/07/2012,650.00,
Bath & North East Somerset Council,80113010,LM6,Nursing Care,P03,Wellbeing,CEDAR CARE HOMES LTD,02/07/2012,650.00,
Bath & North East Somerset Council,80113010,LM6,Nursing Care,P03,Wellbeing,CEDAR CARE HOMES LTD,02/07/2012,650.00,
Bath & North East Somerset Council,80113010,LM6,Nursing Care,P03,Wellbeing,CEDAR CARE HOMES LTD,02/07/2012,650.00,
Bath & North East Somerset Council,80113010,LM6,Nursing Care,P03,Wellbeing,CEDAR CARE HOMES LTD,02/07/2012,650.00,
Bath & North East Somerset Council,80113010,LM6,Nursing Care,P03,Wellbeing,CEDAR CARE HOMES LTD,02/07/2012,650.00,
Bath & North East Somerset Council,80113010,LM6,Nursing Care,P03,Wellbeing,CEDAR CARE HOMES LTD,02/07/2012,650.00,
Bath & North East Somerset Council,80113010,LM6,Nursing Care,P03,Wellbeing,CEDAR CARE HOMES LTD,02/07/2012,650.00,
Bath & North East Somerset Council,80113010,LM6,Nursing Care,P03,Wellbeing,CEDAR CARE HOMES LTD,02/07/2012,650.00,
Bath & North East Somerset Council,80113010,LM6,Nursing Care,P03,Wellbeing,CEDAR CARE HOMES LTD,02/07/2012,650.00,
Bath & North East Somerset Council,80113010,LM6,Nursing Care,P03,Wellbeing,CEDAR CARE HOMES LTD,02/07/2012,650.00,
Bath & North East Somerset Council,80113010,LM6,Nursing Care,P03,Wellbeing,CEDAR CARE HOMES LTD,02/07/2012,650.00,
Bath & North East Somerset Council,80113010,LM6,Nursing Care,P03,Wellbeing,CEDAR CARE HOMES LTD,02/07/2012,650.00,
Bath & North East Somerset Council,80113010,LM6,Nursing Care,P03,Wellbeing,CEDAR CARE HOMES LTD,02/07/2012,650.00,
Bath & North East Somerset Council,80113010,LM6,Nursing Care,P03,Wellbeing,CEDAR CARE HOMES LTD,02/07/2012,650.00,
Bath & North East Somerset Council,80113010,LM6,Nursing Care,P03,Wellbeing,CEDAR CARE HOMES LTD,02/07/2012,650.00,
Bath & North East Somerset Council,80113010,LM6,Nursing Care,P03,Wellbeing,CEDAR CARE HOMES LTD,02/07/2012,650.00,
Bath & North East Somerset Council,80113010,LM6,Nursing Care,P03,Wellbeing,CEDAR CARE HOMES LTD,02/07/2012,650.00,
Bath & North East Somerset Council,80113010,LM6,Nursing Care,P03,Wellbeing,CEDAR CARE HOMES LTD,02/07/2012,650.00,
Bath & North East Somerset Council,80113010,LM6,Nursing Care,P03,Wellbeing,CEDAR CARE HOMES LTD,02/07/2012,650.00,
Bath & North East Somerset Council,80112994,LM6,Nursing Care,P03,Wellbeing,CEDAR CARE HOMES LTD,02/07/2012,725.00,
Bath & North East Somerset Council,80112994,LM6,Nursing Care,P03,Wellbeing,CEDAR CARE HOMES LTD,02/07/2012,725.00,
Bath & North East Somerset Council,80113010,LM6,Nursing Care,P03,Wellbeing,CEDAR CARE HOMES LTD,02/07/2012,750.00,
Bath & North East Somerset Council,80113010,LM6,Nursing Care,P03,Wellbeing,CEDAR CARE HOMES LTD,02/07/2012,800.00,
Bath & North East Somerset Council,80113010,LM6,Nursing Care,P03,Wellbeing,CEDAR CARE HOMES LTD,02/07/2012,800.00,
Bath & North East Somerset Council,80113010,LM6,Nursing Care,P03,Wellbeing,CEDAR CARE HOMES LTD,02/07/2012,800.00,
Bath & North East Somerset Council,80113010,LM6,Nursing Care,P03,Wellbeing,CEDAR CARE HOMES LTD,02/07/2012,800.00,
Bath & North East Somerset Council,80113022,LM6,Nursing Care,P03,Wellbeing,CEDAR PARK NURSING HOME,02/07/2012,371.43,
Bath & North East Somerset Council,80113022,LM6,Nursing Care,P03,Wellbeing,CEDAR PARK NURSING HOME,02/07/2012,650.00,
Bath & North East Somerset Council,80113022,LM6,Nursing Care,P03,Wellbeing,CEDAR PARK NURSING HOME,02/07/2012,650.00,
Bath & North East Somerset Council,80113022,LM6,Nursing Care,P03,Wellbeing,CEDAR PARK NURSING HOME,02/07/2012,650.00,
Bath & North East Somerset Council,80113022,LM6,Nursing Care,P03,Wellbeing,CEDAR PARK NURSING HOME,02/07/2012,650.00,
Bath & North East Somerset Council,80113022,LM6,Nursing Care,P03,Wellbeing,CEDAR PARK NURSING HOME,02/07/2012,650.00,
Bath & North East Somerset Council,80113022,LM6,Nursing Care,P03,Wellbeing,CEDAR PARK NURSING HOME,02/07/2012,650.00,
Bath & North East Somerset Council,80113022,LM6,Nursing Care,P03,Wellbeing,CEDAR PARK NURSING HOME,02/07/2012,650.00,
Bath & North East Somerset Council,80113022,LM6,Nursing Care,P03,Wellbeing,CEDAR PARK NURSING HOME,02/07/2012,650.00,
Bath & North East Somerset Council,80113022,LM6,Nursing Care,P03,Wellbeing,CEDAR PARK NURSING HOME,02/07/2012,650.00,
Bath & North East Somerset Council,80113022,LM6,Nursing Care,P03,Wellbeing,CEDAR PARK NURSING HOME,02/07/2012,725.00,
Bath & North East Somerset Council,80113022,LM6,Nursing Care,P03,Wellbeing,CEDAR PARK NURSING HOME,02/07/2012,725.00,
Bath & North East Somerset Council,80112974,LM6,Nursing Care,P03,Wellbeing,CHOLWELL HOUSE NURSING HOME,02/07/2012,50.00,
Bath & North East Somerset Council,80112974,LM6,Nursing Care,P03,Wellbeing,CHOLWELL HOUSE NURSING HOME,02/07/2012,50.00,
Bath & North East Somerset Council,80112974,LM6,Nursing Care,P03,Wellbeing,CHOLWELL HOUSE NURSING HOME,02/07/2012,125.00,
Bath & North East Somerset Council,80112974,LM6,Nursing Care,P03,Wellbeing,CHOLWELL HOUSE NURSING HOME,02/07/2012,125.00,
Bath & North East Somerset Council,80112974,LM6,Nursing Care,P03,Wellbeing,CHOLWELL HOUSE NURSING HOME,02/07/2012,181.00,
Bath & North East Somerset Council,80112974,LM6,Nursing Care,P03,Wellbeing,CHOLWELL HOUSE NURSING HOME,02/07/2012,181.00,
Bath & North East Somerset Council,80112974,LM6,Nursing Care,P03,Wellbeing,CHOLWELL HOUSE NURSING HOME,02/07/2012,569.00,
Bath & North East Somerset Council,80112974,LM6,Nursing Care,P03,Wellbeing,CHOLWELL HOUSE NURSING HOME,02/07/2012,569.00,
Bath & North East Somerset Council,80112974,LM6,Nursing Care,P03,Wellbeing,CHOLWELL HOUSE NURSING HOME,02/07/2012,646.60,
Bath & North East Somerset Council,80112974,LM6,Nursing Care,P03,Wellbeing,CHOLWELL HOUSE NURSING HOME,02/07/2012,646.60,
Bath & North East Somerset Council,80112974,LM6,Nursing Care,P03,Wellbeing,CHOLWELL HOUSE NURSING HOME,02/07/2012,711.90,
Bath & North East Somerset Council,80112974,LM6,Nursing Care,P03,Wellbeing,CHOLWELL HOUSE NURSING HOME,02/07/2012,711.90,
Bath & North East Somerset Council,80112974,LM6,Nursing Care,P03,Wellbeing,CHOLWELL HOUSE NURSING HOME,02/07/2012,711.90,
Bath & North East Somerset Council,80112974,LM6,Nursing Care,P03,Wellbeing,CHOLWELL HOUSE NURSING HOME,02/07/2012,711.90,
Bath & North East Somerset Council,80112974,LM6,Nursing Care,P03,Wellbeing,CHOLWELL HOUSE NURSING HOME,02/07/2012,725.00,
Bath & North East Somerset Council,80112974,LM6,Nursing Care,P03,Wellbeing,CHOLWELL HOUSE NURSING HOME,02/07/2012,725.00,
Bath & North East Somerset Council,80112974,LM6,Nursing Care,P03,Wellbeing,CHOLWELL HOUSE NURSING HOME,02/07/2012,725.00,
Bath & North East Somerset Council,80112974,LM6,Nursing Care,P03,Wellbeing,CHOLWELL HOUSE NURSING HOME,02/07/2012,725.00,
Bath & North East Somerset Council,80112974,LM6,Nursing Care,P03,Wellbeing,CHOLWELL HOUSE NURSING HOME,02/07/2012,1010.00,
Bath & North East Somerset Council,80112974,LM6,Nursing Care,P03,Wellbeing,CHOLWELL HOUSE NURSING HOME,02/07/2012,1010.00,
Bath & North East Somerset Council,80113372,LL3,Supported Living,P03,Wellbeing,COMMUNITY OF ST ANTONY & ST ELIAS & REV FR BGPR &,02/07/2012,413.60,
Bath & North East Somerset Council,80113372,LL3,Supported Living,P03,Wellbeing,COMMUNITY OF ST ANTONY & ST ELIAS & REV FR BGPR &,02/07/2012,413.60,
Bath & North East Somerset Council,80113372,LL3,Supported Living,P03,Wellbeing,COMMUNITY OF ST ANTONY & ST ELIAS & REV FR BGPR &,02/07/2012,413.60,
Bath & North East Somerset Council,80113372,LL3,Supported Living,P03,Wellbeing,COMMUNITY OF ST ANTONY & ST ELIAS & REV FR BGPR &,02/07/2012,413.60,
Bath & North East Somerset Council,80112999,LM6,Nursing Care,P03,Wellbeing,COMMUNITY OF ST ANTONY & ST ELIAS & REV FR BGPR &,02/07/2012,1586.06,
Bath & North East Somerset Council,80112999,LM6,Nursing Care,P03,Wellbeing,COMMUNITY OF ST ANTONY & ST ELIAS & REV FR BGPR &,02/07/2012,1586.06,
Bath & North East Somerset Council,80113021,LM6,Nursing Care,P03,Wellbeing,CRANHILL NURSING HOME,02/07/2012,464.29,
Bath & North East Somerset Council,80113021,LM6,Nursing Care,P03,Wellbeing,CRANHILL NURSING HOME,02/07/2012,650.00,
Bath & North East Somerset Council,80113021,LM6,Nursing Care,P03,Wellbeing,CRANHILL NURSING HOME,02/07/2012,650.00,
Bath & North East Somerset Council,80113021,LM6,Nursing Care,P03,Wellbeing,CRANHILL NURSING HOME,02/07/2012,650.00,
Bath & North East Somerset Council,80113021,LM6,Nursing Care,P03,Wellbeing,CRANHILL NURSING HOME,02/07/2012,850.00,
Bath & North East Somerset Council,80113021,LM6,Nursing Care,P03,Wellbeing,CRANHILL NURSING HOME,02/07/2012,850.00,
Bath & North East Somerset Council,80113323,LM9,Day Care,P03,Wellbeing,CULVERHAY NURSING HOME,02/07/2012,280.00,
Bath & North East Somerset Council,80113323,LM9,Day Care,P03,Wellbeing,CULVERHAY NURSING HOME,02/07/2012,280.00,
Bath & North East Somerset Council,80113323,LM9,Day Care,P03,Wellbeing,CULVERHAY NURSING HOME,02/07/2012,280.00,
Bath & North East Somerset Council,80113323,LM9,Day Care,P03,Wellbeing,CULVERHAY NURSING HOME,02/07/2012,280.00,
Bath & North East Somerset Council,80112976,LM6,Nursing Care,P03,Wellbeing,CULVERHAY NURSING HOME,02/07/2012,600.00,
Bath & North East Somerset Council,80112976,LM6,Nursing Care,P03,Wellbeing,CULVERHAY NURSING HOME,02/07/2012,600.00,
Bath & North East Somerset Council,80112976,LM6,Nursing Care,P03,Wellbeing,CULVERHAY NURSING HOME,02/07/2012,600.00,
Bath & North East Somerset Council,80112976,LM6,Nursing Care,P03,Wellbeing,CULVERHAY NURSING HOME,02/07/2012,600.00,
Bath & North East Somerset Council,80112976,LM6,Nursing Care,P03,Wellbeing,CULVERHAY NURSING HOME,02/07/2012,650.00,
Bath & North East Somerset Council,80112976,LM6,Nursing Care,P03,Wellbeing,CULVERHAY NURSING HOME,02/07/2012,650.00,
Bath & North East Somerset Council,80112976,LM6,Nursing Care,P03,Wellbeing,CULVERHAY NURSING HOME,02/07/2012,650.00,
Bath & North East Somerset Council,80112976,LM6,Nursing Care,P03,Wellbeing,CULVERHAY NURSING HOME,02/07/2012,650.00,
Bath & North East Somerset Council,80112976,LM6,Nursing Care,P03,Wellbeing,CULVERHAY NURSING HOME,02/07/2012,650.00,
Bath & North East Somerset Council,80112976,LM6,Nursing Care,P03,Wellbeing,CULVERHAY NURSING HOME,02/07/2012,650.00,
Bath & North East Somerset Council,80112976,LM6,Nursing Care,P03,Wellbeing,CULVERHAY NURSING HOME,02/07/2012,700.00,
Bath & North East Somerset Council,80112976,LM6,Nursing Care,P03,Wellbeing,CULVERHAY NURSING HOME,02/07/2012,700.00,
Bath & North East Somerset Council,80112976,LM6,Nursing Care,P03,Wellbeing,CULVERHAY NURSING HOME,02/07/2012,700.00,
Bath & North East Somerset Council,80112976,LM6,Nursing Care,P03,Wellbeing,CULVERHAY NURSING HOME,02/07/2012,700.00,
Bath & North East Somerset Council,80112976,LM6,Nursing Care,P03,Wellbeing,CULVERHAY NURSING HOME,02/07/2012,700.00,
Bath & North East Somerset Council,80112976,LM6,Nursing Care,P03,Wellbeing,CULVERHAY NURSING HOME,02/07/2012,700.00,
Bath & North East Somerset Council,80112976,LM6,Nursing Care,P03,Wellbeing,CULVERHAY NURSING HOME,02/07/2012,725.00,
Bath & North East Somerset Council,80112976,LM6,Nursing Care,P03,Wellbeing,CULVERHAY NURSING HOME,02/07/2012,725.00,
Bath & North East Somerset Council,80112976,LM6,Nursing Care,P03,Wellbeing,CULVERHAY NURSING HOME,02/07/2012,750.00,
Bath & North East Somerset Council,80112976,LM6,Nursing Care,P03,Wellbeing,CULVERHAY NURSING HOME,02/07/2012,750.00,
Bath & North East Somerset Council,80112976,LM6,Nursing Care,P03,Wellbeing,CULVERHAY NURSING HOME,02/07/2012,750.00,
Bath & North East Somerset Council,80112976,LM6,Nursing Care,P03,Wellbeing,CULVERHAY NURSING HOME,02/07/2012,750.00,
Bath & North East Somerset Council,80112976,LM6,Nursing Care,P03,Wellbeing,CULVERHAY NURSING HOME,02/07/2012,750.00,
Bath & North East Somerset Council,80112976,LM6,Nursing Care,P03,Wellbeing,CULVERHAY NURSING HOME,02/07/2012,750.00,
Bath & North East Somerset Council,80112976,LM6,Nursing Care,P03,Wellbeing,CULVERHAY NURSING HOME,02/07/2012,750.00,
Bath & North East Somerset Council,80112976,LM6,Nursing Care,P03,Wellbeing,CULVERHAY NURSING HOME,02/07/2012,750.00,
Bath & North East Somerset Council,80112976,LM6,Nursing Care,P03,Wellbeing,CULVERHAY NURSING HOME,02/07/2012,750.00,
Bath & North East Somerset Council,80112976,LM6,Nursing Care,P03,Wellbeing,CULVERHAY NURSING HOME,02/07/2012,750.00,
Bath & North East Somerset Council,80112976,LM6,Nursing Care,P03,Wellbeing,CULVERHAY NURSING HOME,02/07/2012,750.00,
Bath & North East Somerset Council,80112976,LM6,Nursing Care,P03,Wellbeing,CULVERHAY NURSING HOME,02/07/2012,750.00,
Bath & North East Somerset Council,80112976,LM6,Nursing Care,P03,Wellbeing,CULVERHAY NURSING HOME,02/07/2012,750.00,
Bath & North East Somerset Council,80112976,LM6,Nursing Care,P03,Wellbeing,CULVERHAY NURSING HOME,02/07/2012,750.00,
Bath & North East Somerset Council,80112976,LM6,Nursing Care,P03,Wellbeing,CULVERHAY NURSING HOME,02/07/2012,750.00,
Bath & North East Somerset Council,80112976,LM6,Nursing Care,P03,Wellbeing,CULVERHAY NURSING HOME,02/07/2012,750.00,
Bath & North East Somerset Council,10664071,LK1,Fees,,,BATH CHRISTIAN TRUST,02/07/2012,1200.00,
Bath & North East Somerset Council,80112976,LM6,Nursing Care,P03,Wellbeing,CULVERHAY NURSING HOME,02/07/2012,800.00,
Bath & North East Somerset Council,80112976,LM6,Nursing Care,P03,Wellbeing,CULVERHAY NURSING HOME,02/07/2012,800.00,
Bath & North East Somerset Council,80112976,LM6,Nursing Care,P03,Wellbeing,CULVERHAY NURSING HOME,02/07/2012,800.00,
Bath & North East Somerset Council,80112976,LM6,Nursing Care,P03,Wellbeing,CULVERHAY NURSING HOME,02/07/2012,800.00,
Bath & North East Somerset Council,80112976,LM6,Nursing Care,P03,Wellbeing,CULVERHAY NURSING HOME,02/07/2012,1409.00,
Bath & North East Somerset Council,80112976,LM6,Nursing Care,P03,Wellbeing,CULVERHAY NURSING HOME,02/07/2012,1409.00,
Bath & North East Somerset Council,80113169,LL8,Individualised Budget,P03,Wellbeing,REDACTED,02/07/2012,1487.45,
Bath & North East Somerset Council,80113169,LL8,Individualised Budget,P03,Wellbeing,REDACTED,02/07/2012,1487.45,
Bath & North East Somerset Council,80113284,LL8,Individualised Budget,P03,Wellbeing,"D W CAMPBELL, A C NASH ATTORNEYS FOR MS HARDING",02/07/2012,386.53,
Bath & North East Somerset Council,80113284,LL8,Individualised Budget,P03,Wellbeing,REDACTED,02/07/2012,386.53,
Bath & North East Somerset Council,80113299,LL8,Individualised Budget,P03,Wellbeing,REDACTED,02/07/2012,423.47,
Bath & North East Somerset Council,80113299,LL8,Individualised Budget,P03,Wellbeing,REDACTED,02/07/2012,423.47,
Bath & North East Somerset Council,80113299,LL8,Individualised Budget,P03,Wellbeing,REDACTED,02/07/2012,423.47,
Bath & North East Somerset Council,80113299,LL8,Individualised Budget,P03,Wellbeing,REDACTED,02/07/2012,423.47,
Bath & North East Somerset Council,80113299,LL8,Individualised Budget,P03,Wellbeing,REDACTED,02/07/2012,2335.53,
Bath & North East Somerset Council,80113299,LL8,Individualised Budget,P03,Wellbeing,REDACTED,02/07/2012,2335.53,
Bath & North East Somerset Council,80113277,LL8,Individualised Budget,P03,Wellbeing,REDACTED,02/07/2012,1279.97,
Bath & North East Somerset Council,80113277,LL8,Individualised Budget,P03,Wellbeing,REDACTED,02/07/2012,1279.97,
Bath & North East Somerset Council,10664120,LJ1,Consultants Fees,P07,Community Resources,IAN JAMIESON ASSOCIATES LTD,02/07/2012,325.00,
Bath & North East Somerset Council,80112998,LM6,Nursing Care,P03,Wellbeing,DORSET LODGE LTD,02/07/2012,1060.81,
Bath & North East Somerset Council,80112998,LM6,Nursing Care,P03,Wellbeing,DORSET LODGE LTD,02/07/2012,1060.81,
Bath & North East Somerset Council,80113179,YF2,Fees & Charges,P03,Wellbeing,REDACTED,02/07/2012,69.13,
Bath & North East Somerset Council,80113179,YF2,Fees & Charges,P03,Wellbeing,REDACTED,02/07/2012,69.13,
Bath & North East Somerset Council,80113179,YF2,Fees & Charges,P03,Wellbeing,REDACTED,02/07/2012,69.13,
Bath & North East Somerset Council,80113179,YF2,Fees & Charges,P03,Wellbeing,REDACTED,02/07/2012,69.13,
Bath & North East Somerset Council,80113179,YF2,Fees & Charges,P03,Wellbeing,REDACTED,02/07/2012,69.13,
Bath & North East Somerset Council,80113179,YF2,Fees & Charges,P03,Wellbeing,REDACTED,02/07/2012,69.13,
Bath & North East Somerset Council,80113179,YF2,Fees & Charges,P03,Wellbeing,REDACTED,02/07/2012,69.13,
Bath & North East Somerset Council,80113179,YF2,Fees & Charges,P03,Wellbeing,REDACTED,02/07/2012,69.13,
Bath & North East Somerset Council,80113179,YF2,Fees & Charges,P03,Wellbeing,REDACTED,02/07/2012,69.13,
Bath & North East Somerset Council,80113179,YF2,Fees & Charges,P03,Wellbeing,REDACTED,02/07/2012,69.13,
Bath & North East Somerset Council,80113179,YF2,Fees & Charges,P03,Wellbeing,REDACTED,02/07/2012,69.13,
Bath & North East Somerset Council,80113179,LL8,Individualised Budget,P03,Wellbeing,REDACTED,02/07/2012,393.27,
Bath & North East Somerset Council,80113179,LL8,Individualised Budget,P03,Wellbeing,REDACTED,02/07/2012,393.27,
Bath & North East Somerset Council,80113118,LL8,Individualised Budget,P03,Wellbeing,REDACTED,02/07/2012,311.08,
Bath & North East Somerset Council,80113118,LL8,Individualised Budget,P03,Wellbeing,REDACTED,02/07/2012,311.08,
Bath & North East Somerset Council,80113247,YF2,Fees & Charges,P03,Wellbeing,REDACTED,02/07/2012,30.11,
Bath & North East Somerset Council,80113247,YF2,Fees & Charges,P03,Wellbeing,REDACTED,02/07/2012,30.11,
Bath & North East Somerset Council,80113247,YF2,Fees & Charges,P03,Wellbeing,REDACTED,02/07/2012,30.11,
Bath & North East Somerset Council,80113247,YF2,Fees & Charges,P03,Wellbeing,REDACTED,02/07/2012,30.11,
Bath & North East Somerset Council,80113247,YF2,Fees & Charges,P03,Wellbeing,REDACTED,02/07/2012,30.11,
Bath & North East Somerset Council,80113247,LL8,Individualised Budget,P03,Wellbeing,REDACTED,02/07/2012,328.65,
Bath & North East Somerset Council,80113247,LL8,Individualised Budget,P03,Wellbeing,REDACTED,02/07/2012,328.65,
Bath & North East Somerset Council,80113247,LL8,Individualised Budget,P03,Wellbeing,REDACTED,02/07/2012,328.65,
Bath & North East Somerset Council,80113247,LL8,Individualised Budget,P03,Wellbeing,REDACTED,02/07/2012,328.65,
Bath & North East Somerset Council,80113247,LL8,Individualised Budget,P03,Wellbeing,REDACTED,02/07/2012,328.65,
Bath & North East Somerset Council,80113247,LL8,Individualised Budget,P03,Wellbeing,REDACTED,02/07/2012,328.65,
Bath & North East Somerset Council,80113247,LL8,Individualised Budget,P03,Wellbeing,REDACTED,02/07/2012,328.65,
Bath & North East Somerset Council,80113251,LL8,Individualised Budget,P03,Wellbeing,REDACTED,02/07/2012,500.00,
Bath & North East Somerset Council,80113279,LL8,Individualised Budget,P03,Wellbeing,REDACTED,02/07/2012,499.61,
Bath & North East Somerset Council,80113279,LL8,Individualised Budget,P03,Wellbeing,REDACTED,02/07/2012,499.61,
Bath & North East Somerset Council,80112980,LM6,Nursing Care,P03,Wellbeing,EUROPEAN CARE (UK) LTD - REDACTED COLLECTION A/C,02/07/2012,92.86,
Bath & North East Somerset Council,80112980,LM6,Nursing Care,P03,Wellbeing,EUROPEAN CARE (UK) LTD - REDACTED COLLECTION A/C,02/07/2012,278.57,
Bath & North East Somerset Council,80112980,LM6,Nursing Care,P03,Wellbeing,EUROPEAN CARE (UK) LTD - REDACTED COLLECTION A/C,02/07/2012,650.00,
Bath & North East Somerset Council,80112980,LM6,Nursing Care,P03,Wellbeing,EUROPEAN CARE (UK) LTD - REDACTED COLLECTION A/C,02/07/2012,650.00,
Bath & North East Somerset Council,80112980,LM6,Nursing Care,P03,Wellbeing,EUROPEAN CARE (UK) LTD - REDACTED COLLECTION A/C,02/07/2012,739.87,
Bath & North East Somerset Council,80112980,LM6,Nursing Care,P03,Wellbeing,EUROPEAN CARE (UK) LTD - REDACTED COLLECTION A/C,02/07/2012,739.87,
Bath & North East Somerset Council,80112988,LM6,Nursing Care,P03,Wellbeing,EUROPEAN CARE SW LTD - REDACTED COLL AC,02/07/2012,76.57,
Bath & North East Somerset Council,80112989,LM6,Nursing Care,P03,Wellbeing,EUROPEAN CARE SW LTD - REDACTED COLL AC,02/07/2012,371.43,
Bath & North East Somerset Council,80112988,LM6,Nursing Care,P03,Wellbeing,EUROPEAN CARE SW LTD - REDACTED COLL AC,02/07/2012,536.00,
Bath & North East Somerset Council,80112988,LM6,Nursing Care,P03,Wellbeing,EUROPEAN CARE SW LTD - REDACTED COLL AC,02/07/2012,641.22,
Bath & North East Somerset Council,80112988,LM6,Nursing Care,P03,Wellbeing,EUROPEAN CARE SW LTD - REDACTED COLL AC,02/07/2012,641.22,
Bath & North East Somerset Council,80112988,LM6,Nursing Care,P03,Wellbeing,EUROPEAN CARE SW LTD - REDACTED COLL AC,02/07/2012,650.00,
Bath & North East Somerset Council,80112988,LM6,Nursing Care,P03,Wellbeing,EUROPEAN CARE SW LTD - REDACTED COLL AC,02/07/2012,650.00,
Bath & North East Somerset Council,80112988,LM6,Nursing Care,P03,Wellbeing,EUROPEAN CARE SW LTD - REDACTED COLL AC,02/07/2012,650.00,
Bath & North East Somerset Council,80112988,LM6,Nursing Care,P03,Wellbeing,EUROPEAN CARE SW LTD - REDACTED COLL AC,02/07/2012,650.00,
Bath & North East Somerset Council,80112989,LM6,Nursing Care,P03,Wellbeing,EUROPEAN CARE SW LTD - REDACTED COLL AC,02/07/2012,650.00,
Bath & North East Somerset Council,80112995,LM6,Nursing Care,P03,Wellbeing,EXTRAFRIEND LTD,02/07/2012,762.75,
Bath & North East Somerset Council,80112995,LM6,Nursing Care,P03,Wellbeing,EXTRAFRIEND LTD,02/07/2012,762.75,
Bath & North East Somerset Council,80113017,LM6,Nursing Care,P03,Wellbeing,FOUR SEASONS EVEDALE LTD WHITCHURCH,02/07/2012,29.59,
Bath & North East Somerset Council,80113017,LM6,Nursing Care,P03,Wellbeing,FOUR SEASONS EVEDALE LTD WHITCHURCH,02/07/2012,59.18,
Bath & North East Somerset Council,80113017,LM6,Nursing Care,P03,Wellbeing,FOUR SEASONS EVEDALE LTD WHITCHURCH,02/07/2012,103.57,
Bath & North East Somerset Council,80113017,LM6,Nursing Care,P03,Wellbeing,FOUR SEASONS EVEDALE LTD WHITCHURCH,02/07/2012,650.00,
Bath & North East Somerset Council,80113017,LM6,Nursing Care,P03,Wellbeing,FOUR SEASONS EVEDALE LTD WHITCHURCH,02/07/2012,650.00,
Bath & North East Somerset Council,80113017,LM6,Nursing Care,P03,Wellbeing,FOUR SEASONS EVEDALE LTD WHITCHURCH,02/07/2012,725.00,
Bath & North East Somerset Council,80113001,LM6,Nursing Care,P03,Wellbeing,GLENSIDE MANOR HEALTHCARE SERVICES LTD,02/07/2012,1401.43,
Bath & North East Somerset Council,80113001,LM6,Nursing Care,P03,Wellbeing,GLENSIDE MANOR HEALTHCARE SERVICES LTD,02/07/2012,1401.43,
Bath & North East Somerset Council,80113001,LM6,Nursing Care,P03,Wellbeing,GLENSIDE MANOR HEALTHCARE SERVICES LTD,02/07/2012,1511.26,
Bath & North East Somerset Council,80113001,LM6,Nursing Care,P03,Wellbeing,GLENSIDE MANOR HEALTHCARE SERVICES LTD,02/07/2012,1511.26,
Bath & North East Somerset Council,80113002,LM6,Nursing Care,P03,Wellbeing,GLENSIDE MANOR HEALTHCARE SERVICES LTD,02/07/2012,1528.55,
Bath & North East Somerset Council,80113002,LM6,Nursing Care,P03,Wellbeing,GLENSIDE MANOR HEALTHCARE SERVICES LTD,02/07/2012,1528.55,
Bath & North East Somerset Council,80113209,LL8,Individualised Budget,P03,Wellbeing,REDACTED,02/07/2012,381.33,
Bath & North East Somerset Council,80113209,LL8,Individualised Budget,P03,Wellbeing,REDACTED,02/07/2012,381.33,
Bath & North East Somerset Council,80113347,LL3,Supported Living,P03,Wellbeing,HOME FARM TRUST,02/07/2012,16.17,
Bath & North East Somerset Council,80113347,LL3,Supported Living,P03,Wellbeing,HOME FARM TRUST,02/07/2012,80.85,
Bath & North East Somerset Council,80113348,LL3,Supported Living,P03,Wellbeing,HOME FARM TRUST,02/07/2012,611.43,
Bath & North East Somerset Council,80113348,LL3,Supported Living,P03,Wellbeing,HOME FARM TRUST,02/07/2012,611.43,
Bath & North East Somerset Council,80113348,LL3,Supported Living,P03,Wellbeing,HOME FARM TRUST,02/07/2012,611.43,
Bath & North East Somerset Council,80113348,LL3,Supported Living,P03,Wellbeing,HOME FARM TRUST,02/07/2012,611.43,
Bath & North East Somerset Council,80113349,LL3,Supported Living,P03,Wellbeing,HOME FARM TRUST,02/07/2012,611.43,
Bath & North East Somerset Council,80113349,LL3,Supported Living,P03,Wellbeing,HOME FARM TRUST,02/07/2012,611.43,
Bath & North East Somerset Council,80113349,LL3,Supported Living,P03,Wellbeing,HOME FARM TRUST,02/07/2012,611.43,
Bath & North East Somerset Council,80113349,LL3,Supported Living,P03,Wellbeing,HOME FARM TRUST,02/07/2012,611.43,
Bath & North East Somerset Council,80113347,LL3,Supported Living,P03,Wellbeing,HOME FARM TRUST,02/07/2012,1471.19,
Bath & North East Somerset Council,80113347,LL3,Supported Living,P03,Wellbeing,HOME FARM TRUST,02/07/2012,1632.89,
Bath & North East Somerset Council,80113347,LL3,Supported Living,P03,Wellbeing,HOME FARM TRUST,02/07/2012,1632.89,
Bath & North East Somerset Council,80113347,LL3,Supported Living,P03,Wellbeing,HOME FARM TRUST,02/07/2012,1632.89,
Bath & North East Somerset Council,80113019,LM6,Nursing Care,P03,Wellbeing,HORFIELD CARE LTD,02/07/2012,800.00,
Bath & North East Somerset Council,80113019,LM6,Nursing Care,P03,Wellbeing,HORFIELD CARE LTD,02/07/2012,800.00,
Bath & North East Somerset Council,80113105,LL8,Individualised Budget,P03,Wellbeing,ILSA,02/07/2012,573.16,
Bath & North East Somerset Council,80113105,LL8,Individualised Budget,P03,Wellbeing,ILSA,02/07/2012,573.16,
Bath & North East Somerset Council,80113233,LL8,Individualised Budget,P03,Wellbeing,REDACTED,02/07/2012,327.20,
Bath & North East Somerset Council,80113233,LL8,Individualised Budget,P03,Wellbeing,REDACTED,02/07/2012,327.20,
Bath & North East Somerset Council,80113095,LL3,Supported Living,P03,Wellbeing,KCARE NURSING AGENCY LTD,02/07/2012,1010.00,
Bath & North East Somerset Council,80113095,LL3,Supported Living,P03,Wellbeing,KCARE NURSING AGENCY LTD,02/07/2012,1010.00,
Bath & North East Somerset Council,80113090,LL8,Individualised Budget,P03,Wellbeing,REDACTED,02/07/2012,289.37,
Bath & North East Somerset Council,80113090,LL8,Individualised Budget,P03,Wellbeing,REDACTED,02/07/2012,289.37,
Bath & North East Somerset Council,80113090,LL8,Individualised Budget,P03,Wellbeing,REDACTED,02/07/2012,765.00,
Bath & North East Somerset Council,80112979,LM6,Nursing Care,P03,Wellbeing,LARKHALL SPRINGS NURSING HOME,02/07/2012,557.14,
Bath & North East Somerset Council,80112979,LM6,Nursing Care,P03,Wellbeing,LARKHALL SPRINGS NURSING HOME,02/07/2012,650.00,
Bath & North East Somerset Council,80112979,LM6,Nursing Care,P03,Wellbeing,LARKHALL SPRINGS NURSING HOME,02/07/2012,650.00,
Bath & North East Somerset Council,80112979,LM6,Nursing Care,P03,Wellbeing,LARKHALL SPRINGS NURSING HOME,02/07/2012,650.00,
Bath & North East Somerset Council,80112979,LM6,Nursing Care,P03,Wellbeing,LARKHALL SPRINGS NURSING HOME,02/07/2012,650.00,
Bath & North East Somerset Council,80112979,LM6,Nursing Care,P03,Wellbeing,LARKHALL SPRINGS NURSING HOME,02/07/2012,650.00,
Bath & North East Somerset Council,80112979,LM6,Nursing Care,P03,Wellbeing,LARKHALL SPRINGS NURSING HOME,02/07/2012,650.00,
Bath & North East Somerset Council,80113352,LM9,Day Care,P03,Wellbeing,LEONARD CHESHIRE FOUNDATION,02/07/2012,125.10,
Bath & North East Somerset Council,80113352,LM9,Day Care,P03,Wellbeing,LEONARD CHESHIRE FOUNDATION,02/07/2012,208.50,
Bath & North East Somerset Council,80113352,LM9,Day Care,P03,Wellbeing,LEONARD CHESHIRE FOUNDATION,02/07/2012,208.50,
Bath & North East Somerset Council,80113352,LM9,Day Care,P03,Wellbeing,LEONARD CHESHIRE FOUNDATION,02/07/2012,208.50,
Bath & North East Somerset Council,80113356,LM9,Day Care,P03,Wellbeing,LEONARD CHESHIRE FOUNDATION,02/07/2012,208.50,
Bath & North East Somerset Council,80113356,LM9,Day Care,P03,Wellbeing,LEONARD CHESHIRE FOUNDATION,02/07/2012,208.50,
Bath & North East Somerset Council,80113356,LM9,Day Care,P03,Wellbeing,LEONARD CHESHIRE FOUNDATION,02/07/2012,208.50,
Bath & North East Somerset Council,80113356,LM9,Day Care,P03,Wellbeing,LEONARD CHESHIRE FOUNDATION,02/07/2012,208.50,
Bath & North East Somerset Council,10664072,LK1,Fees,P06,Sustainable Development,SEARCY TANSLEY & CO LTD,02/07/2012,495.70,
Bath & North East Somerset Council,10663763,3F7,External Fees,P07,Community Resources,PEARSON LLOYD DESIGN LTD,02/07/2012,498.34,
Bath & North East Somerset Council,80112993,LM6,Nursing Care,P03,Wellbeing,LEONARD CHESHIRE FOUNDATION,02/07/2012,955.21,
Bath & North East Somerset Council,80112993,LM6,Nursing Care,P03,Wellbeing,LEONARD CHESHIRE FOUNDATION,02/07/2012,955.21,
Bath & North East Somerset Council,80112993,LM6,Nursing Care,P03,Wellbeing,LEONARD CHESHIRE FOUNDATION,02/07/2012,1013.81,
Bath & North East Somerset Council,80112993,LM6,Nursing Care,P03,Wellbeing,LEONARD CHESHIRE FOUNDATION,02/07/2012,1013.81,
Bath & North East Somerset Council,80112993,LM6,Nursing Care,P03,Wellbeing,LEONARD CHESHIRE FOUNDATION,02/07/2012,1321.05,
Bath & North East Somerset Council,80112993,LM6,Nursing Care,P03,Wellbeing,LEONARD CHESHIRE FOUNDATION,02/07/2012,1321.05,
Bath & North East Somerset Council,80112993,LM6,Nursing Care,P03,Wellbeing,LEONARD CHESHIRE FOUNDATION,02/07/2012,1348.54,
Bath & North East Somerset Council,80112993,LM6,Nursing Care,P03,Wellbeing,LEONARD CHESHIRE FOUNDATION,02/07/2012,1348.54,
Bath & North East Somerset Council,80113008,LM6,Nursing Care,P03,Wellbeing,LIFESTYLE CARE (2005) PLC,02/07/2012,775.00,
Bath & North East Somerset Council,80113008,LM6,Nursing Care,P03,Wellbeing,LIFESTYLE CARE (2005) PLC,02/07/2012,775.00,
Bath & North East Somerset Council,80113161,LL8,Individualised Budget,P03,Wellbeing,REDACTED,02/07/2012,268.69,
Bath & North East Somerset Council,80113161,LL8,Individualised Budget,P03,Wellbeing,REDACTED,02/07/2012,268.69,
Bath & North East Somerset Council,80113255,LL8,Individualised Budget,P03,Wellbeing,REDACTED,02/07/2012,500.00,
Bath & North East Somerset Council,80113246,LL3,Supported Living,P03,Wellbeing,MAPLES COMMUNITY CARE LTD,02/07/2012,619.19,
Bath & North East Somerset Council,80113246,LL3,Supported Living,P03,Wellbeing,MAPLES COMMUNITY CARE LTD,02/07/2012,619.19,
Bath & North East Somerset Council,80112987,LM6,Nursing Care,P03,Wellbeing,METHODIST HOMES FOR THE AGED,02/07/2012,641.00,
Bath & North East Somerset Council,80112987,LM6,Nursing Care,P03,Wellbeing,METHODIST HOMES FOR THE AGED,02/07/2012,641.00,
Bath & North East Somerset Council,80112986,LM6,Nursing Care,P03,Wellbeing,METHODIST HOMES FOR THE AGED,02/07/2012,650.00,
Bath & North East Somerset Council,80112986,LM6,Nursing Care,P03,Wellbeing,METHODIST HOMES FOR THE AGED,02/07/2012,650.00,
Bath & North East Somerset Council,80113269,LL8,Individualised Budget,P03,Wellbeing,REDACTED,02/07/2012,305.94,
Bath & North East Somerset Council,80113269,LL8,Individualised Budget,P03,Wellbeing,REDACTED,02/07/2012,305.94,
Bath & North East Somerset Council,80113098,LL8,Individualised Budget,P03,Wellbeing,REDACTED,02/07/2012,264.16,
Bath & North East Somerset Council,80113098,LL8,Individualised Budget,P03,Wellbeing,REDACTED,02/07/2012,264.16,
Bath & North East Somerset Council,80113177,LL8,Individualised Budget,P03,Wellbeing,REDACTED,02/07/2012,489.65,
Bath & North East Somerset Council,80113177,LL8,Individualised Budget,P03,Wellbeing,REDACTED,02/07/2012,489.65,
Bath & North East Somerset Council,80113101,LL8,Individualised Budget,P03,Wellbeing,REDACTED,02/07/2012,461.49,
Bath & North East Somerset Council,80113101,LL8,Individualised Budget,P03,Wellbeing,REDACTED,02/07/2012,461.49,
Bath & North East Somerset Council,80113205,LL8,Individualised Budget,P03,Wellbeing,REDACTED,02/07/2012,324.98,
Bath & North East Somerset Council,80113205,LL8,Individualised Budget,P03,Wellbeing,REDACTED,02/07/2012,324.98,
Bath & North East Somerset Council,80113211,LL8,Individualised Budget,P03,Wellbeing,REDACTED,02/07/2012,268.23,
Bath & North East Somerset Council,80113211,LL8,Individualised Budget,P03,Wellbeing,REDACTED,02/07/2012,268.23,
Bath & North East Somerset Council,80113256,LL8,Individualised Budget,P03,Wellbeing,REDACTED,02/07/2012,155.60,
Bath & North East Somerset Council,80113256,LL8,Individualised Budget,P03,Wellbeing,REDACTED,02/07/2012,155.60,
Bath & North East Somerset Council,80113256,LL8,Individualised Budget,P03,Wellbeing,REDACTED,02/07/2012,155.60,
Bath & North East Somerset Council,80113256,LL8,Individualised Budget,P03,Wellbeing,REDACTED,02/07/2012,155.60,
Bath & North East Somerset Council,80113256,LL8,Individualised Budget,P03,Wellbeing,REDACTED,02/07/2012,820.00,
Bath & North East Somerset Council,80113182,LL8,Individualised Budget,P03,Wellbeing,REDACTED,02/07/2012,330.96,
Bath & North East Somerset Council,80113182,LL8,Individualised Budget,P03,Wellbeing,REDACTED,02/07/2012,330.96,
Bath & North East Somerset Council,80113160,LL8,Individualised Budget,P03,Wellbeing,REDACTED,02/07/2012,298.46,
Bath & North East Somerset Council,80113160,LL8,Individualised Budget,P03,Wellbeing,REDACTED,02/07/2012,298.46,
Bath & North East Somerset Council,80113270,LL8,Individualised Budget,P03,Wellbeing,REDACTED,02/07/2012,390.69,
Bath & North East Somerset Council,80113270,LL8,Individualised Budget,P03,Wellbeing,REDACTED,02/07/2012,390.69,
Bath & North East Somerset Council,80113298,LL8,Individualised Budget,P03,Wellbeing,REDACTED,02/07/2012,338.56,
Bath & North East Somerset Council,80113298,LL8,Individualised Budget,P03,Wellbeing,REDACTED,02/07/2012,338.56,
Bath & North East Somerset Council,80113257,LL8,Individualised Budget,P03,Wellbeing,REDACTED,02/07/2012,263.81,
Bath & North East Somerset Council,80113257,LL8,Individualised Budget,P03,Wellbeing,REDACTED,02/07/2012,369.33,
Bath & North East Somerset Council,80113257,LL8,Individualised Budget,P03,Wellbeing,REDACTED,02/07/2012,462.27,
Bath & North East Somerset Council,80113257,LL8,Individualised Budget,P03,Wellbeing,REDACTED,02/07/2012,462.27,
Bath & North East Somerset Council,80113257,LL8,Individualised Budget,P03,Wellbeing,REDACTED,02/07/2012,462.27,
Bath & North East Somerset Council,80113257,LL8,Individualised Budget,P03,Wellbeing,REDACTED,02/07/2012,1030.00,
Bath & North East Somerset Council,80113187,YF2,Fees & Charges,P03,Wellbeing,REDACTED,02/07/2012,67.04,
Bath & North East Somerset Council,80113187,YF2,Fees & Charges,P03,Wellbeing,REDACTED,02/07/2012,67.04,
Bath & North East Somerset Council,80113187,YF2,Fees & Charges,P03,Wellbeing,REDACTED,02/07/2012,67.04,
Bath & North East Somerset Council,80113187,YF2,Fees & Charges,P03,Wellbeing,REDACTED,02/07/2012,67.04,
Bath & North East Somerset Council,80113187,YF2,Fees & Charges,P03,Wellbeing,REDACTED,02/07/2012,67.04,
Bath & North East Somerset Council,80113187,YF2,Fees & Charges,P03,Wellbeing,REDACTED,02/07/2012,67.04,
Bath & North East Somerset Council,80113187,YF2,Fees & Charges,P03,Wellbeing,REDACTED,02/07/2012,67.04,
Bath & North East Somerset Council,80113187,YF2,Fees & Charges,P03,Wellbeing,REDACTED,02/07/2012,67.04,
Bath & North East Somerset Council,80113187,YF2,Fees & Charges,P03,Wellbeing,REDACTED,02/07/2012,67.04,
Bath & North East Somerset Council,80113187,YF2,Fees & Charges,P03,Wellbeing,REDACTED,02/07/2012,67.04,
Bath & North East Somerset Council,80113187,YF2,Fees & Charges,P03,Wellbeing,REDACTED,02/07/2012,67.04,
Bath & North East Somerset Council,80113187,LL8,Individualised Budget,P03,Wellbeing,REDACTED,02/07/2012,527.44,
Bath & North East Somerset Council,80113187,LL8,Individualised Budget,P03,Wellbeing,REDACTED,02/07/2012,527.44,
Bath & North East Somerset Council,80113295,LL8,Individualised Budget,P03,Wellbeing,REDACTED,02/07/2012,707.64,
Bath & North East Somerset Council,80113295,LL8,Individualised Budget,P03,Wellbeing,REDACTED,02/07/2012,707.64,
Bath & North East Somerset Council,80113183,LL8,Individualised Budget,P03,Wellbeing,REDACTED,02/07/2012,961.34,
Bath & North East Somerset Council,80113183,LL8,Individualised Budget,P03,Wellbeing,REDACTED,02/07/2012,961.34,
Bath & North East Somerset Council,80113278,LL8,Individualised Budget,P03,Wellbeing,REDACTED,02/07/2012,403.17,
Bath & North East Somerset Council,80113278,LL8,Individualised Budget,P03,Wellbeing,REDACTED,02/07/2012,403.17,
Bath & North East Somerset Council,80113221,LL8,Individualised Budget,P03,Wellbeing,REDACTED,02/07/2012,305.17,
Bath & North East Somerset Council,80113221,LL8,Individualised Budget,P03,Wellbeing,REDACTED,02/07/2012,305.17,
Bath & North East Somerset Council,80113296,LL8,Individualised Budget,P03,Wellbeing,REDACTED,02/07/2012,502.17,
Bath & North East Somerset Council,80113296,LL8,Individualised Budget,P03,Wellbeing,REDACTED,02/07/2012,502.17,
Bath & North East Somerset Council,80113293,YF2,Fees & Charges,P03,Wellbeing,REDACTED,02/07/2012,68.51,
Bath & North East Somerset Council,80113293,YF2,Fees & Charges,P03,Wellbeing,REDACTED,02/07/2012,68.51,
Bath & North East Somerset Council,80113293,YF2,Fees & Charges,P03,Wellbeing,REDACTED,02/07/2012,68.51,
Bath & North East Somerset Council,80113293,YF2,Fees & Charges,P03,Wellbeing,REDACTED,02/07/2012,68.51,
Bath & North East Somerset Council,80113293,YF2,Fees & Charges,P03,Wellbeing,REDACTED,02/07/2012,68.51,
Bath & North East Somerset Council,80113293,YF2,Fees & Charges,P03,Wellbeing,REDACTED,02/07/2012,68.51,
Bath & North East Somerset Council,80113293,YF2,Fees & Charges,P03,Wellbeing,REDACTED,02/07/2012,68.51,
Bath & North East Somerset Council,80113293,YF2,Fees & Charges,P03,Wellbeing,REDACTED,02/07/2012,68.51,
Bath & North East Somerset Council,80113293,YF2,Fees & Charges,P03,Wellbeing,REDACTED,02/07/2012,68.51,
Bath & North East Somerset Council,80113293,YF2,Fees & Charges,P03,Wellbeing,REDACTED,02/07/2012,68.51,
Bath & North East Somerset Council,80113293,YF2,Fees & Charges,P03,Wellbeing,REDACTED,02/07/2012,68.51,
Bath & North East Somerset Council,80113293,LL8,Individualised Budget,P03,Wellbeing,REDACTED,02/07/2012,198.07,
Bath & North East Somerset Council,80113293,LL8,Individualised Budget,P03,Wellbeing,REDACTED,02/07/2012,198.07,
Bath & North East Somerset Council,80113087,LL8,Individualised Budget,P03,Wellbeing,REDACTED,02/07/2012,348.21,
Bath & North East Somerset Council,80113087,LL8,Individualised Budget,P03,Wellbeing,REDACTED,02/07/2012,348.21,
Bath & North East Somerset Council,80113087,LL8,Individualised Budget,P03,Wellbeing,REDACTED,02/07/2012,348.21,
Bath & North East Somerset Council,80113087,LL8,Individualised Budget,P03,Wellbeing,REDACTED,02/07/2012,348.21,
Bath & North East Somerset Council,80113088,LL8,Individualised Budget,P03,Wellbeing,REDACTED,02/07/2012,297.05,
Bath & North East Somerset Council,80113088,LL8,Individualised Budget,P03,Wellbeing,REDACTED,02/07/2012,297.05,
Bath & North East Somerset Council,80113094,LL8,Individualised Budget,P03,Wellbeing,REDACTED,02/07/2012,509.16,
Bath & North East Somerset Council,80113094,LL8,Individualised Budget,P03,Wellbeing,REDACTED,02/07/2012,509.16,
Bath & North East Somerset Council,80113263,LL8,Individualised Budget,P03,Wellbeing,REDACTED,02/07/2012,424.61,
Bath & North East Somerset Council,80113263,LL8,Individualised Budget,P03,Wellbeing,REDACTED,02/07/2012,424.61,
Bath & North East Somerset Council,80113227,LL8,Individualised Budget,P03,Wellbeing,REDACTED,02/07/2012,810.33,
Bath & North East Somerset Council,80113227,LL8,Individualised Budget,P03,Wellbeing,REDACTED,02/07/2012,810.33,
Bath & North East Somerset Council,80113261,LL8,Individualised Budget,P03,Wellbeing,REDACTED,02/07/2012,66.79,
Bath & North East Somerset Council,80113261,LL8,Individualised Budget,P03,Wellbeing,REDACTED,02/07/2012,467.54,
Bath & North East Somerset Council,80113261,LL8,Individualised Budget,P03,Wellbeing,REDACTED,02/07/2012,467.54,
Bath & North East Somerset Council,80113261,LL8,Individualised Budget,P03,Wellbeing,REDACTED,02/07/2012,467.54,
Bath & North East Somerset Council,80113261,LL8,Individualised Budget,P03,Wellbeing,REDACTED,02/07/2012,467.54,
Bath & North East Somerset Council,80113261,LL8,Individualised Budget,P03,Wellbeing,REDACTED,02/07/2012,467.54,
Bath & North East Somerset Council,80113261,LL8,Individualised Budget,P03,Wellbeing,REDACTED,02/07/2012,467.54,
Bath & North East Somerset Council,80113261,LL8,Individualised Budget,P03,Wellbeing,REDACTED,02/07/2012,467.54,
Bath & North East Somerset Council,80113261,LL8,Individualised Budget,P03,Wellbeing,REDACTED,02/07/2012,467.54,
Bath & North East Somerset Council,80113261,LL8,Individualised Budget,P03,Wellbeing,REDACTED,02/07/2012,467.54,
Bath & North East Somerset Council,80113261,LL8,Individualised Budget,P03,Wellbeing,REDACTED,02/07/2012,540.00,
Bath & North East Somerset Council,80113117,LL8,Individualised Budget,P03,Wellbeing,REDACTED,02/07/2012,446.72,
Bath & North East Somerset Council,80113117,LL8,Individualised Budget,P03,Wellbeing,REDACTED,02/07/2012,446.72,
Bath & North East Somerset Council,80113192,LL8,Individualised Budget,P03,Wellbeing,REDACTED,02/07/2012,607.13,
Bath & North East Somerset Council,80113192,LL8,Individualised Budget,P03,Wellbeing,REDACTED,02/07/2012,607.13,
Bath & North East Somerset Council,80113091,YF2,Fees & Charges,P03,Wellbeing,REDACTED,02/07/2012,110.53,
Bath & North East Somerset Council,80113091,YF2,Fees & Charges,P03,Wellbeing,REDACTED,02/07/2012,110.53,
Bath & North East Somerset Council,80113091,YF2,Fees & Charges,P03,Wellbeing,REDACTED,02/07/2012,110.53,
Bath & North East Somerset Council,80113091,YF2,Fees & Charges,P03,Wellbeing,REDACTED,02/07/2012,110.53,
Bath & North East Somerset Council,80113091,YF2,Fees & Charges,P03,Wellbeing,REDACTED,02/07/2012,110.53,
Bath & North East Somerset Council,80113091,YF2,Fees & Charges,P03,Wellbeing,REDACTED,02/07/2012,110.53,
Bath & North East Somerset Council,80113091,YF2,Fees & Charges,P03,Wellbeing,REDACTED,02/07/2012,110.53,
Bath & North East Somerset Council,80113091,YF2,Fees & Charges,P03,Wellbeing,REDACTED,02/07/2012,110.53,
Bath & North East Somerset Council,80113091,YF2,Fees & Charges,P03,Wellbeing,REDACTED,02/07/2012,110.53,
Bath & North East Somerset Council,80113091,YF2,Fees & Charges,P03,Wellbeing,REDACTED,02/07/2012,110.53,
Bath & North East Somerset Council,80113091,YF2,Fees & Charges,P03,Wellbeing,REDACTED,02/07/2012,110.53,
Bath & North East Somerset Council,80113091,LL8,Individualised Budget,P03,Wellbeing,REDACTED,02/07/2012,1120.00,
Bath & North East Somerset Council,80113091,LL8,Individualised Budget,P03,Wellbeing,REDACTED,02/07/2012,1120.00,
Bath & North East Somerset Council,80113125,LL8,Individualised Budget,P03,Wellbeing,REDACTED,02/07/2012,500.00,
Bath & North East Somerset Council,80113226,LL8,Individualised Budget,P03,Wellbeing,REDACTED,02/07/2012,707.00,
Bath & North East Somerset Council,80113226,LL8,Individualised Budget,P03,Wellbeing,REDACTED,02/07/2012,707.00,
Bath & North East Somerset Council,80113136,LL8,Individualised Budget,P03,Wellbeing,REDACTED,02/07/2012,557.54,
Bath & North East Somerset Council,80113136,LL8,Individualised Budget,P03,Wellbeing,REDACTED,02/07/2012,557.54,
Bath & North East Somerset Council,80113132,LL8,Individualised Budget,P03,Wellbeing,REDACTED,02/07/2012,1346.80,
Bath & North East Somerset Council,80113132,LL8,Individualised Budget,P03,Wellbeing,REDACTED,02/07/2012,1346.80,
Bath & North East Somerset Council,80113065,LL4,Direct Payments,P02,"Early Years, Children & Youth",REDACTED,02/07/2012,269.98,
Bath & North East Somerset Council,80113065,LL4,Direct Payments,P02,"Early Years, Children & Youth",REDACTED,02/07/2012,269.98,
Bath & North East Somerset Council,80113030,LL4,Direct Payments,P03,Wellbeing,REDACTED,02/07/2012,595.54,
Bath & North East Somerset Council,80113030,LL4,Direct Payments,P03,Wellbeing,REDACTED,02/07/2012,595.54,
Bath & North East Somerset Council,80113145,LL8,Individualised Budget,P03,Wellbeing,REDACTED,02/07/2012,149.21,
Bath & North East Somerset Council,80113145,LL8,Individualised Budget,P03,Wellbeing,REDACTED,02/07/2012,149.21,
Bath & North East Somerset Council,80113145,LL8,Individualised Budget,P03,Wellbeing,REDACTED,02/07/2012,149.21,
Bath & North East Somerset Council,80113145,LL8,Individualised Budget,P03,Wellbeing,REDACTED,02/07/2012,149.21,
Bath & North East Somerset Council,80113145,LL8,Individualised Budget,P03,Wellbeing,REDACTED,02/07/2012,149.21,
Bath & North East Somerset Council,80113145,LL8,Individualised Budget,P03,Wellbeing,REDACTED,02/07/2012,149.21,
Bath & North East Somerset Council,80113145,LL8,Individualised Budget,P03,Wellbeing,REDACTED,02/07/2012,149.21,
Bath & North East Somerset Council,80113145,LL8,Individualised Budget,P03,Wellbeing,REDACTED,02/07/2012,149.21,
Bath & North East Somerset Council,80113193,LL8,Individualised Budget,P03,Wellbeing,REDACTED,02/07/2012,405.11,
Bath & North East Somerset Council,80113193,LL8,Individualised Budget,P03,Wellbeing,REDACTED,02/07/2012,405.11,
Bath & North East Somerset Council,80113116,LL8,Individualised Budget,P03,Wellbeing,REDACTED,02/07/2012,1235.48,
Bath & North East Somerset Council,80113116,LL8,Individualised Budget,P03,Wellbeing,REDACTED,02/07/2012,1235.48,
Bath & North East Somerset Council,80113059,LL4,Direct Payments,P02,"Early Years, Children & Youth",REDACTED,02/07/2012,27.38,
Bath & North East Somerset Council,80113059,LL4,Direct Payments,P02,"Early Years, Children & Youth",REDACTED,02/07/2012,27.38,
Bath & North East Somerset Council,80113059,LL4,Direct Payments,P02,"Early Years, Children & Youth",REDACTED,02/07/2012,27.38,
Bath & North East Somerset Council,80113059,LL4,Direct Payments,P02,"Early Years, Children & Youth",REDACTED,02/07/2012,27.38,
Bath & North East Somerset Council,80113059,LL4,Direct Payments,P02,"Early Years, Children & Youth",REDACTED,02/07/2012,27.38,
Bath & North East Somerset Council,80113059,LL4,Direct Payments,P02,"Early Years, Children & Youth",REDACTED,02/07/2012,27.38,
Bath & North East Somerset Council,80113059,LL4,Direct Payments,P02,"Early Years, Children & Youth",REDACTED,02/07/2012,27.38,
Bath & North East Somerset Council,80113059,LL4,Direct Payments,P02,"Early Years, Children & Youth",REDACTED,02/07/2012,27.38,
Bath & North East Somerset Council,80113059,LL4,Direct Payments,P02,"Early Years, Children & Youth",REDACTED,02/07/2012,27.38,
Bath & North East Somerset Council,80113059,LL4,Direct Payments,P02,"Early Years, Children & Youth",REDACTED,02/07/2012,27.38,
Bath & North East Somerset Council,80113059,LL4,Direct Payments,P02,"Early Years, Children & Youth",REDACTED,02/07/2012,27.38,
Bath & North East Somerset Council,80113059,LL4,Direct Payments,P02,"Early Years, Children & Youth",REDACTED,02/07/2012,27.38,
Bath & North East Somerset Council,80113059,LL4,Direct Payments,P02,"Early Years, Children & Youth",REDACTED,02/07/2012,27.38,
Bath & North East Somerset Council,80113059,LL4,Direct Payments,P02,"Early Years, Children & Youth",REDACTED,02/07/2012,27.38,
Bath & North East Somerset Council,80113059,LL4,Direct Payments,P02,"Early Years, Children & Youth",REDACTED,02/07/2012,90.38,
Bath & North East Somerset Council,80113059,LL4,Direct Payments,P02,"Early Years, Children & Youth",REDACTED,02/07/2012,90.38,
Bath & North East Somerset Council,80113288,LL8,Individualised Budget,P03,Wellbeing,REDACTED,02/07/2012,536.18,
Bath & North East Somerset Council,80113288,LL8,Individualised Budget,P03,Wellbeing,REDACTED,02/07/2012,536.18,
Bath & North East Somerset Council,10663020,HN1,Electricity,P07,Community Resources,BRITISH GAS - ELECTRICITY,02/07/2012,546.41,
Bath & North East Somerset Council,80113309,LL3,Supported Living,P03,Wellbeing,NATIONAL AUTISTIC SOCIETY,02/07/2012,245.20,
Bath & North East Somerset Council,80113309,LL3,Supported Living,P03,Wellbeing,NATIONAL AUTISTIC SOCIETY,02/07/2012,245.20,
Bath & North East Somerset Council,80113309,LL3,Supported Living,P03,Wellbeing,NATIONAL AUTISTIC SOCIETY,02/07/2012,245.20,
Bath & North East Somerset Council,80113309,LL3,Supported Living,P03,Wellbeing,NATIONAL AUTISTIC SOCIETY,02/07/2012,245.20,
Bath & North East Somerset Council,80113315,LL3,Supported Living,P03,Wellbeing,NATIONAL AUTISTIC SOCIETY,02/07/2012,245.66,
Bath & North East Somerset Council,80113315,LL3,Supported Living,P03,Wellbeing,NATIONAL AUTISTIC SOCIETY,02/07/2012,245.66,
Bath & North East Somerset Council,80113315,LL3,Supported Living,P03,Wellbeing,NATIONAL AUTISTIC SOCIETY,02/07/2012,245.66,
Bath & North East Somerset Council,80113315,LL3,Supported Living,P03,Wellbeing,NATIONAL AUTISTIC SOCIETY,02/07/2012,245.66,
Bath & North East Somerset Council,80113313,LL3,Supported Living,P03,Wellbeing,NATIONAL AUTISTIC SOCIETY,02/07/2012,283.31,
Bath & North East Somerset Council,80113313,LL3,Supported Living,P03,Wellbeing,NATIONAL AUTISTIC SOCIETY,02/07/2012,283.31,
Bath & North East Somerset Council,80113313,LL3,Supported Living,P03,Wellbeing,NATIONAL AUTISTIC SOCIETY,02/07/2012,283.31,
Bath & North East Somerset Council,80113313,LL3,Supported Living,P03,Wellbeing,NATIONAL AUTISTIC SOCIETY,02/07/2012,283.31,
Bath & North East Somerset Council,80113310,LL3,Supported Living,P03,Wellbeing,NATIONAL AUTISTIC SOCIETY,02/07/2012,441.37,
Bath & North East Somerset Council,80113310,LL3,Supported Living,P03,Wellbeing,NATIONAL AUTISTIC SOCIETY,02/07/2012,441.37,
Bath & North East Somerset Council,80113310,LL3,Supported Living,P03,Wellbeing,NATIONAL AUTISTIC SOCIETY,02/07/2012,441.37,
Bath & North East Somerset Council,80113310,LL3,Supported Living,P03,Wellbeing,NATIONAL AUTISTIC SOCIETY,02/07/2012,441.37,
Bath & North East Somerset Council,80113312,LL3,Supported Living,P03,Wellbeing,NATIONAL AUTISTIC SOCIETY,02/07/2012,924.81,
Bath & North East Somerset Council,80113307,LL3,Supported Living,P03,Wellbeing,NATIONAL AUTISTIC SOCIETY,02/07/2012,2216.29,
Bath & North East Somerset Council,80113307,LL3,Supported Living,P03,Wellbeing,NATIONAL AUTISTIC SOCIETY,02/07/2012,2216.29,
Bath & North East Somerset Council,80113307,LL3,Supported Living,P03,Wellbeing,NATIONAL AUTISTIC SOCIETY,02/07/2012,2238.45,
Bath & North East Somerset Council,80113307,LL3,Supported Living,P03,Wellbeing,NATIONAL AUTISTIC SOCIETY,02/07/2012,2238.45,
Bath & North East Somerset Council,80113308,LL3,Supported Living,P03,Wellbeing,NATIONAL AUTISTIC SOCIETY,02/07/2012,2238.45,
Bath & North East Somerset Council,80113308,LL3,Supported Living,P03,Wellbeing,NATIONAL AUTISTIC SOCIETY,02/07/2012,2238.45,
Bath & North East Somerset Council,80113308,LL3,Supported Living,P03,Wellbeing,NATIONAL AUTISTIC SOCIETY,02/07/2012,2238.45,
Bath & North East Somerset Council,80113308,LL3,Supported Living,P03,Wellbeing,NATIONAL AUTISTIC SOCIETY,02/07/2012,2238.45,
Bath & North East Somerset Council,80113434,LM8,Home Care,P03,Wellbeing,NURSING SOLUTIONS LIMITED,02/07/2012,1552.00,
Bath & North East Somerset Council,80113445,LM8,Home Care,P03,Wellbeing,NURSING SOLUTIONS LIMITED,02/07/2012,1552.00,
Bath & North East Somerset Council,80112977,LM6,Nursing Care,P03,Wellbeing,OAKFIELD,02/07/2012,371.43,
Bath & North East Somerset Council,80112977,LM6,Nursing Care,P03,Wellbeing,OAKFIELD,02/07/2012,557.14,
Bath & North East Somerset Council,80112977,LM6,Nursing Care,P03,Wellbeing,OAKFIELD,02/07/2012,650.00,
Bath & North East Somerset Council,80112977,LM6,Nursing Care,P03,Wellbeing,OAKFIELD,02/07/2012,650.00,
Bath & North East Somerset Council,80112977,LM6,Nursing Care,P03,Wellbeing,OAKFIELD,02/07/2012,650.00,
Bath & North East Somerset Council,80112977,LM6,Nursing Care,P03,Wellbeing,OAKFIELD,02/07/2012,650.00,
Bath & North East Somerset Council,80112977,LM6,Nursing Care,P03,Wellbeing,OAKFIELD,02/07/2012,650.00,
Bath & North East Somerset Council,80112977,LM6,Nursing Care,P03,Wellbeing,OAKFIELD,02/07/2012,650.00,
Bath & North East Somerset Council,80113373,LL3,Supported Living,P03,Wellbeing,OPTIONS FOR LIVING LTD,02/07/2012,2.82,
Bath & North East Somerset Council,80113375,LL3,Supported Living,P03,Wellbeing,OPTIONS FOR LIVING LTD,02/07/2012,3.01,
Bath & North East Somerset Council,80113287,LL3,Supported Living,P03,Wellbeing,OPTIONS FOR LIVING LTD,02/07/2012,58.08,
Bath & North East Somerset Council,80113287,LL3,Supported Living,P03,Wellbeing,OPTIONS FOR LIVING LTD,02/07/2012,58.08,
Bath & North East Somerset Council,80113287,LL3,Supported Living,P03,Wellbeing,OPTIONS FOR LIVING LTD,02/07/2012,112.80,
Bath & North East Somerset Council,80113287,LL3,Supported Living,P03,Wellbeing,OPTIONS FOR LIVING LTD,02/07/2012,112.80,
Bath & North East Somerset Council,80113287,LL3,Supported Living,P03,Wellbeing,OPTIONS FOR LIVING LTD,02/07/2012,113.93,
Bath & North East Somerset Council,80113287,LL3,Supported Living,P03,Wellbeing,OPTIONS FOR LIVING LTD,02/07/2012,113.93,
Bath & North East Somerset Council,80113287,LL3,Supported Living,P03,Wellbeing,OPTIONS FOR LIVING LTD,02/07/2012,150.40,
Bath & North East Somerset Council,80113287,LL3,Supported Living,P03,Wellbeing,OPTIONS FOR LIVING LTD,02/07/2012,150.40,
Bath & North East Somerset Council,80113287,LL3,Supported Living,P03,Wellbeing,OPTIONS FOR LIVING LTD,02/07/2012,170.89,
Bath & North East Somerset Council,80113287,LL3,Supported Living,P03,Wellbeing,OPTIONS FOR LIVING LTD,02/07/2012,170.89,
Bath & North East Somerset Council,80113287,LL3,Supported Living,P03,Wellbeing,OPTIONS FOR LIVING LTD,02/07/2012,189.88,
Bath & North East Somerset Council,80113287,LL3,Supported Living,P03,Wellbeing,OPTIONS FOR LIVING LTD,02/07/2012,189.88,
Bath & North East Somerset Council,80113287,LL3,Supported Living,P03,Wellbeing,OPTIONS FOR LIVING LTD,02/07/2012,208.87,
Bath & North East Somerset Council,80113287,LL3,Supported Living,P03,Wellbeing,OPTIONS FOR LIVING LTD,02/07/2012,208.87,
Bath & North East Somerset Council,80113373,LL3,Supported Living,P03,Wellbeing,OPTIONS FOR LIVING LTD,02/07/2012,284.82,
Bath & North East Somerset Council,80113373,LL3,Supported Living,P03,Wellbeing,OPTIONS FOR LIVING LTD,02/07/2012,284.82,
Bath & North East Somerset Council,80113373,LL3,Supported Living,P03,Wellbeing,OPTIONS FOR LIVING LTD,02/07/2012,284.82,
Bath & North East Somerset Council,80113373,LL3,Supported Living,P03,Wellbeing,OPTIONS FOR LIVING LTD,02/07/2012,284.82,
Bath & North East Somerset Council,80113373,LL3,Supported Living,P03,Wellbeing,OPTIONS FOR LIVING LTD,02/07/2012,284.82,
Bath & North East Somerset Council,80113375,LL3,Supported Living,P03,Wellbeing,OPTIONS FOR LIVING LTD,02/07/2012,303.81,
Bath & North East Somerset Council,80113375,LL3,Supported Living,P03,Wellbeing,OPTIONS FOR LIVING LTD,02/07/2012,303.81,
Bath & North East Somerset Council,80113375,LL3,Supported Living,P03,Wellbeing,OPTIONS FOR LIVING LTD,02/07/2012,303.81,
Bath & North East Somerset Council,80113375,LL3,Supported Living,P03,Wellbeing,OPTIONS FOR LIVING LTD,02/07/2012,303.81,
Bath & North East Somerset Council,80113375,LL3,Supported Living,P03,Wellbeing,OPTIONS FOR LIVING LTD,02/07/2012,303.81,
Bath & North East Somerset Council,80113287,LL3,Supported Living,P03,Wellbeing,OPTIONS FOR LIVING LTD,02/07/2012,546.00,
Bath & North East Somerset Council,80113287,LL3,Supported Living,P03,Wellbeing,OPTIONS FOR LIVING LTD,02/07/2012,546.00,
Bath & North East Somerset Council,80113287,LL3,Supported Living,P03,Wellbeing,OPTIONS FOR LIVING LTD,02/07/2012,609.17,
Bath & North East Somerset Council,80113287,LL3,Supported Living,P03,Wellbeing,OPTIONS FOR LIVING LTD,02/07/2012,609.17,
Bath & North East Somerset Council,80113287,LL3,Supported Living,P03,Wellbeing,OPTIONS FOR LIVING LTD,02/07/2012,636.98,
Bath & North East Somerset Council,80113287,LL3,Supported Living,P03,Wellbeing,OPTIONS FOR LIVING LTD,02/07/2012,636.98,
Bath & North East Somerset Council,80113287,LL3,Supported Living,P03,Wellbeing,OPTIONS FOR LIVING LTD,02/07/2012,636.98,
Bath & North East Somerset Council,80113287,LL3,Supported Living,P03,Wellbeing,OPTIONS FOR LIVING LTD,02/07/2012,636.98,
Bath & North East Somerset Council,80113287,LL3,Supported Living,P03,Wellbeing,OPTIONS FOR LIVING LTD,02/07/2012,636.98,
Bath & North East Somerset Council,80113287,LL3,Supported Living,P03,Wellbeing,OPTIONS FOR LIVING LTD,02/07/2012,694.62,
Bath & North East Somerset Council,80113287,LL3,Supported Living,P03,Wellbeing,OPTIONS FOR LIVING LTD,02/07/2012,694.62,
Bath & North East Somerset Council,80113287,LL3,Supported Living,P03,Wellbeing,OPTIONS FOR LIVING LTD,02/07/2012,753.00,
Bath & North East Somerset Council,80113287,LL3,Supported Living,P03,Wellbeing,OPTIONS FOR LIVING LTD,02/07/2012,753.00,
Bath & North East Somerset Council,80113013,LM6,Nursing Care,P03,Wellbeing,REDACTED,02/07/2012,787.00,
Bath & North East Somerset Council,80113013,LM6,Nursing Care,P03,Wellbeing,REDACTED,02/07/2012,787.00,
Bath & North East Somerset Council,80113013,LM6,Nursing Care,P03,Wellbeing,REDACTED,02/07/2012,1015.00,
Bath & North East Somerset Council,80113013,LM6,Nursing Care,P03,Wellbeing,REDACTED,02/07/2012,1015.00,
Bath & North East Somerset Council,80113023,LM6,Nursing Care,P03,Wellbeing,PARK STREET HOME,02/07/2012,750.00,
Bath & North East Somerset Council,80113023,LM6,Nursing Care,P03,Wellbeing,PARK STREET HOME,02/07/2012,750.00,
Bath & North East Somerset Council,80113023,LM6,Nursing Care,P03,Wellbeing,PARK STREET HOME,02/07/2012,750.00,
Bath & North East Somerset Council,80113023,LM6,Nursing Care,P03,Wellbeing,PARK STREET HOME,02/07/2012,750.00,
Bath & North East Somerset Council,80113020,LM6,Nursing Care,P03,Wellbeing,REDACTED,02/07/2012,278.57,
Bath & North East Somerset Council,80113020,LM6,Nursing Care,P03,Wellbeing,REDACTED,02/07/2012,278.57,
Bath & North East Somerset Council,80113020,LM6,Nursing Care,P03,Wellbeing,REDACTED,02/07/2012,464.29,
Bath & North East Somerset Council,80113152,LL8,Individualised Budget,P03,Wellbeing,PHOENIX (SW) LTD,02/07/2012,4.71,
Bath & North East Somerset Council,80113152,LL8,Individualised Budget,P03,Wellbeing,PHOENIX (SW) LTD,02/07/2012,4.71,
Bath & North East Somerset Council,80113152,LL8,Individualised Budget,P03,Wellbeing,PHOENIX (SW) LTD,02/07/2012,4.71,
Bath & North East Somerset Council,80113152,LL8,Individualised Budget,P03,Wellbeing,PHOENIX (SW) LTD,02/07/2012,4.71,
Bath & North East Somerset Council,80113152,LL8,Individualised Budget,P03,Wellbeing,PHOENIX (SW) LTD,02/07/2012,4.71,
Bath & North East Somerset Council,80113152,LL8,Individualised Budget,P03,Wellbeing,PHOENIX (SW) LTD,02/07/2012,4.71,
Bath & North East Somerset Council,80113152,YF2,Fees & Charges,P03,Wellbeing,PHOENIX (SW) LTD,02/07/2012,34.98,
Bath & North East Somerset Council,80113152,YF2,Fees & Charges,P03,Wellbeing,PHOENIX (SW) LTD,02/07/2012,34.98,
Bath & North East Somerset Council,80113152,YF2,Fees & Charges,P03,Wellbeing,PHOENIX (SW) LTD,02/07/2012,34.98,
Bath & North East Somerset Council,80113152,YF2,Fees & Charges,P03,Wellbeing,PHOENIX (SW) LTD,02/07/2012,34.98,
Bath & North East Somerset Council,80113152,YF2,Fees & Charges,P03,Wellbeing,PHOENIX (SW) LTD,02/07/2012,34.98,
Bath & North East Somerset Council,80113152,YF2,Fees & Charges,P03,Wellbeing,PHOENIX (SW) LTD,02/07/2012,34.98,
Bath & North East Somerset Council,80113152,YF2,Fees & Charges,P03,Wellbeing,PHOENIX (SW) LTD,02/07/2012,34.98,
Bath & North East Somerset Council,80113152,YF2,Fees & Charges,P03,Wellbeing,PHOENIX (SW) LTD,02/07/2012,34.98,
Bath & North East Somerset Council,80113152,YF2,Fees & Charges,P03,Wellbeing,PHOENIX (SW) LTD,02/07/2012,34.98,
Bath & North East Somerset Council,80113152,YF2,Fees & Charges,P03,Wellbeing,PHOENIX (SW) LTD,02/07/2012,34.98,
Bath & North East Somerset Council,80113152,YF2,Fees & Charges,P03,Wellbeing,PHOENIX (SW) LTD,02/07/2012,34.98,
Bath & North East Somerset Council,80113152,LL8,Individualised Budget,P03,Wellbeing,PHOENIX (SW) LTD,02/07/2012,110.04,
Bath & North East Somerset Council,80113152,LL8,Individualised Budget,P03,Wellbeing,PHOENIX (SW) LTD,02/07/2012,110.04,
Bath & North East Somerset Council,80113152,LL8,Individualised Budget,P03,Wellbeing,PHOENIX (SW) LTD,02/07/2012,116.45,
Bath & North East Somerset Council,80113152,LL8,Individualised Budget,P03,Wellbeing,PHOENIX (SW) LTD,02/07/2012,116.45,
Bath & North East Somerset Council,80113152,LL8,Individualised Budget,P03,Wellbeing,PHOENIX (SW) LTD,02/07/2012,288.15,
Bath & North East Somerset Council,80113152,LL8,Individualised Budget,P03,Wellbeing,PHOENIX (SW) LTD,02/07/2012,288.15,
Bath & North East Somerset Council,80113152,LL8,Individualised Budget,P03,Wellbeing,PHOENIX (SW) LTD,02/07/2012,304.14,
Bath & North East Somerset Council,80113152,LL8,Individualised Budget,P03,Wellbeing,PHOENIX (SW) LTD,02/07/2012,304.14,
Bath & North East Somerset Council,80113152,LL8,Individualised Budget,P03,Wellbeing,PHOENIX (SW) LTD,02/07/2012,360.37,
Bath & North East Somerset Council,80113152,LL8,Individualised Budget,P03,Wellbeing,PHOENIX (SW) LTD,02/07/2012,360.37,
Bath & North East Somerset Council,80113152,LL8,Individualised Budget,P03,Wellbeing,PHOENIX (SW) LTD,02/07/2012,443.59,
Bath & North East Somerset Council,80113152,LL8,Individualised Budget,P03,Wellbeing,PHOENIX (SW) LTD,02/07/2012,443.59,
Bath & North East Somerset Council,10664082,LK1,Fees,P06,Sustainable Development,BAILEY BALLOONS LTD,02/07/2012,600.00,
Bath & North East Somerset Council,80113152,LL8,Individualised Budget,P03,Wellbeing,PHOENIX (SW) LTD,02/07/2012,457.70,
Bath & North East Somerset Council,80113152,LL8,Individualised Budget,P03,Wellbeing,PHOENIX (SW) LTD,02/07/2012,457.70,
Bath & North East Somerset Council,80113152,LL8,Individualised Budget,P03,Wellbeing,PHOENIX (SW) LTD,02/07/2012,493.81,
Bath & North East Somerset Council,80113152,LL8,Individualised Budget,P03,Wellbeing,PHOENIX (SW) LTD,02/07/2012,493.81,
Bath & North East Somerset Council,80113386,LL3,Supported Living,P03,Wellbeing,PRESTIGE NURSING HEALTHCARE,02/07/2012,173.16,
Bath & North East Somerset Council,80113397,LL3,Supported Living,P03,Wellbeing,PRESTIGE NURSING HEALTHCARE,02/07/2012,882.04,
Bath & North East Somerset Council,80113393,LL3,Supported Living,P03,Wellbeing,PRESTIGE NURSING HEALTHCARE,02/07/2012,1212.00,
Bath & North East Somerset Council,80113394,LL3,Supported Living,P03,Wellbeing,PRESTIGE NURSING HEALTHCARE,02/07/2012,1212.00,
Bath & North East Somerset Council,80113396,LL3,Supported Living,P03,Wellbeing,PRESTIGE NURSING HEALTHCARE,02/07/2012,1212.00,
Bath & North East Somerset Council,80113386,LL3,Supported Living,P03,Wellbeing,PRESTIGE NURSING HEALTHCARE,02/07/2012,4402.00,
Bath & North East Somerset Council,80113393,LL3,Supported Living,P03,Wellbeing,PRESTIGE NURSING HEALTHCARE,02/07/2012,4402.00,
Bath & North East Somerset Council,80113394,LL3,Supported Living,P03,Wellbeing,PRESTIGE NURSING HEALTHCARE,02/07/2012,4402.00,
Bath & North East Somerset Council,80113395,LL3,Supported Living,P03,Wellbeing,PRESTIGE NURSING HEALTHCARE,02/07/2012,4402.00,
Bath & North East Somerset Council,80113396,LL3,Supported Living,P03,Wellbeing,PRESTIGE NURSING HEALTHCARE,02/07/2012,4402.00,
Bath & North East Somerset Council,80113397,LL3,Supported Living,P03,Wellbeing,PRESTIGE NURSING HEALTHCARE,02/07/2012,4402.00,
Bath & North East Somerset Council,80113398,LL3,Supported Living,P03,Wellbeing,PRESTIGE NURSING HEALTHCARE,02/07/2012,4402.00,
Bath & North East Somerset Council,80113011,LM6,Nursing Care,P03,Wellbeing,RAMSAY HEALTH T/A WINFIELD NEURO,02/07/2012,1700.00,
Bath & North East Somerset Council,80113011,LM6,Nursing Care,P03,Wellbeing,RAMSAY HEALTH T/A WINFIELD NEURO,02/07/2012,1700.00,
Bath & North East Somerset Council,10664118,XA1,Grant Income,Z99,Outside Revenue Accounts,CLG,02/07/2012,891858.00,
Bath & North East Somerset Council,80113404,LM8,Home Care,P03,Wellbeing,ROBERT SAGE LTD T/A PRESTIGE NURSING PAYROLL,02/07/2012,176.66,
Bath & North East Somerset Council,80113403,LM8,Home Care,P03,Wellbeing,ROBERT SAGE LTD T/A PRESTIGE NURSING PAYROLL,02/07/2012,289.69,
Bath & North East Somerset Council,80113404,LM8,Home Care,P03,Wellbeing,ROBERT SAGE LTD T/A PRESTIGE NURSING PAYROLL,02/07/2012,488.76,
Bath & North East Somerset Council,80113458,LM8,Home Care,P03,Wellbeing,ROBERT SAGE LTD T/A PRESTIGE NURSING PAYROLL,02/07/2012,543.62,
Bath & North East Somerset Council,80113405,LM8,Home Care,P03,Wellbeing,ROBERT SAGE LTD T/A PRESTIGE NURSING PAYROLL,02/07/2012,799.30,
Bath & North East Somerset Council,80113403,LM8,Home Care,P03,Wellbeing,ROBERT SAGE LTD T/A PRESTIGE NURSING PAYROLL,02/07/2012,871.56,
Bath & North East Somerset Council,80113403,LM8,Home Care,P03,Wellbeing,ROBERT SAGE LTD T/A PRESTIGE NURSING PAYROLL,02/07/2012,1004.79,
Bath & North East Somerset Council,80113402,LM8,Home Care,P03,Wellbeing,ROBERT SAGE LTD T/A PRESTIGE NURSING PAYROLL,02/07/2012,1032.48,
Bath & North East Somerset Council,80113405,LM8,Home Care,P03,Wellbeing,ROBERT SAGE LTD T/A PRESTIGE NURSING PAYROLL,02/07/2012,1560.60,
Bath & North East Somerset Council,80112997,LM6,Nursing Care,P03,Wellbeing,ROSEVILLE CARE HOMES MELKSHAM,02/07/2012,810.00,
Bath & North East Somerset Council,80112997,LM6,Nursing Care,P03,Wellbeing,ROSEVILLE CARE HOMES MELKSHAM,02/07/2012,810.00,
Bath & North East Somerset Council,80113331,LL3,Supported Living,P03,Wellbeing,ROYAL MENCAP SOCIETY,02/07/2012,840.66,
Bath & North East Somerset Council,80113331,LL3,Supported Living,P03,Wellbeing,ROYAL MENCAP SOCIETY,02/07/2012,840.66,
Bath & North East Somerset Council,80113331,LL3,Supported Living,P03,Wellbeing,ROYAL MENCAP SOCIETY,02/07/2012,840.66,
Bath & North East Somerset Council,80113331,LL3,Supported Living,P03,Wellbeing,ROYAL MENCAP SOCIETY,02/07/2012,840.66,
Bath & North East Somerset Council,80113388,LM8,Home Care,P03,Wellbeing,RV CARE SOMERSET LTD,02/07/2012,2.34,
Bath & North East Somerset Council,80113389,LM8,Home Care,P03,Wellbeing,RV CARE SOMERSET LTD,02/07/2012,11.64,
Bath & North East Somerset Council,80113444,LM8,Home Care,P03,Wellbeing,RV CARE SOMERSET LTD,02/07/2012,46.00,
Bath & North East Somerset Council,80113444,LM8,Home Care,P03,Wellbeing,RV CARE SOMERSET LTD,02/07/2012,79.00,
Bath & North East Somerset Council,80113444,LM8,Home Care,P03,Wellbeing,RV CARE SOMERSET LTD,02/07/2012,79.00,
Bath & North East Somerset Council,80113444,LM8,Home Care,P03,Wellbeing,RV CARE SOMERSET LTD,02/07/2012,79.00,
Bath & North East Somerset Council,80113444,LM8,Home Care,P03,Wellbeing,RV CARE SOMERSET LTD,02/07/2012,79.00,
Bath & North East Somerset Council,80113400,LM8,Home Care,P03,Wellbeing,RV CARE SOMERSET LTD,02/07/2012,97.48,
Bath & North East Somerset Council,80113392,LM8,Home Care,P03,Wellbeing,RV CARE SOMERSET LTD,02/07/2012,181.00,
Bath & North East Somerset Council,80113392,LM8,Home Care,P03,Wellbeing,RV CARE SOMERSET LTD,02/07/2012,181.00,
Bath & North East Somerset Council,80113392,LM8,Home Care,P03,Wellbeing,RV CARE SOMERSET LTD,02/07/2012,181.00,
Bath & North East Somerset Council,80113392,LM8,Home Care,P03,Wellbeing,RV CARE SOMERSET LTD,02/07/2012,181.00,
Bath & North East Somerset Council,80113389,LM8,Home Care,P03,Wellbeing,RV CARE SOMERSET LTD,02/07/2012,239.09,
Bath & North East Somerset Council,80113389,LM8,Home Care,P03,Wellbeing,RV CARE SOMERSET LTD,02/07/2012,239.09,
Bath & North East Somerset Council,80113389,LM8,Home Care,P03,Wellbeing,RV CARE SOMERSET LTD,02/07/2012,239.09,
Bath & North East Somerset Council,80113389,LM8,Home Care,P03,Wellbeing,RV CARE SOMERSET LTD,02/07/2012,239.09,
Bath & North East Somerset Council,80113444,LM8,Home Care,P03,Wellbeing,RV CARE SOMERSET LTD,02/07/2012,271.00,
Bath & North East Somerset Council,80113444,LM8,Home Care,P03,Wellbeing,RV CARE SOMERSET LTD,02/07/2012,271.00,
Bath & North East Somerset Council,80113390,LM8,Home Care,P03,Wellbeing,RV CARE SOMERSET LTD,02/07/2012,293.50,
Bath & North East Somerset Council,80113390,LM8,Home Care,P03,Wellbeing,RV CARE SOMERSET LTD,02/07/2012,293.50,
Bath & North East Somerset Council,80113390,LM8,Home Care,P03,Wellbeing,RV CARE SOMERSET LTD,02/07/2012,293.50,
Bath & North East Somerset Council,80113390,LM8,Home Care,P03,Wellbeing,RV CARE SOMERSET LTD,02/07/2012,293.50,
Bath & North East Somerset Council,80113444,LM8,Home Care,P03,Wellbeing,RV CARE SOMERSET LTD,02/07/2012,316.00,
Bath & North East Somerset Council,80113444,LM8,Home Care,P03,Wellbeing,RV CARE SOMERSET LTD,02/07/2012,316.00,
Bath & North East Somerset Council,80113388,LM8,Home Care,P03,Wellbeing,RV CARE SOMERSET LTD,02/07/2012,372.00,
Bath & North East Somerset Council,80113388,LM8,Home Care,P03,Wellbeing,RV CARE SOMERSET LTD,02/07/2012,372.00,
Bath & North East Somerset Council,80113388,LM8,Home Care,P03,Wellbeing,RV CARE SOMERSET LTD,02/07/2012,372.00,
Bath & North East Somerset Council,80113388,LM8,Home Care,P03,Wellbeing,RV CARE SOMERSET LTD,02/07/2012,372.00,
Bath & North East Somerset Council,80113383,LM8,Home Care,P03,Wellbeing,RV CARE SOMERSET LTD,02/07/2012,396.76,
Bath & North East Somerset Council,80113383,LM8,Home Care,P03,Wellbeing,RV CARE SOMERSET LTD,02/07/2012,396.76,
Bath & North East Somerset Council,80113383,LM8,Home Care,P03,Wellbeing,RV CARE SOMERSET LTD,02/07/2012,396.76,
Bath & North East Somerset Council,80113383,LM8,Home Care,P03,Wellbeing,RV CARE SOMERSET LTD,02/07/2012,396.76,
Bath & North East Somerset Council,80113400,LM8,Home Care,P03,Wellbeing,RV CARE SOMERSET LTD,02/07/2012,396.76,
Bath & North East Somerset Council,80113400,LM8,Home Care,P03,Wellbeing,RV CARE SOMERSET LTD,02/07/2012,396.76,
Bath & North East Somerset Council,80113391,LM8,Home Care,P03,Wellbeing,RV CARE SOMERSET LTD,02/07/2012,455.50,
Bath & North East Somerset Council,80113391,LM8,Home Care,P03,Wellbeing,RV CARE SOMERSET LTD,02/07/2012,455.50,
Bath & North East Somerset Council,80113391,LM8,Home Care,P03,Wellbeing,RV CARE SOMERSET LTD,02/07/2012,455.50,
Bath & North East Somerset Council,80113391,LM8,Home Care,P03,Wellbeing,RV CARE SOMERSET LTD,02/07/2012,455.50,
Bath & North East Somerset Council,80113096,YF2,Fees & Charges,P03,Wellbeing,REDACTED,02/07/2012,10.49,
Bath & North East Somerset Council,80113096,YF2,Fees & Charges,P03,Wellbeing,REDACTED,02/07/2012,10.49,
Bath & North East Somerset Council,80113096,YF2,Fees & Charges,P03,Wellbeing,REDACTED,02/07/2012,10.49,
Bath & North East Somerset Council,80113096,YF2,Fees & Charges,P03,Wellbeing,REDACTED,02/07/2012,10.49,
Bath & North East Somerset Council,80113096,YF2,Fees & Charges,P03,Wellbeing,REDACTED,02/07/2012,10.49,
Bath & North East Somerset Council,80113096,YF2,Fees & Charges,P03,Wellbeing,REDACTED,02/07/2012,10.49,
Bath & North East Somerset Council,80113096,YF2,Fees & Charges,P03,Wellbeing,REDACTED,02/07/2012,10.49,
Bath & North East Somerset Council,80113096,YF2,Fees & Charges,P03,Wellbeing,REDACTED,02/07/2012,10.49,
Bath & North East Somerset Council,80113096,YF2,Fees & Charges,P03,Wellbeing,REDACTED,02/07/2012,10.49,
Bath & North East Somerset Council,80113096,YF2,Fees & Charges,P03,Wellbeing,REDACTED,02/07/2012,10.49,
Bath & North East Somerset Council,80113096,YF2,Fees & Charges,P03,Wellbeing,REDACTED,02/07/2012,10.49,
Bath & North East Somerset Council,80113096,LL8,Individualised Budget,P03,Wellbeing,REDACTED,02/07/2012,476.52,
Bath & North East Somerset Council,80113096,LL8,Individualised Budget,P03,Wellbeing,REDACTED,02/07/2012,476.52,
Bath & North East Somerset Council,80113286,YF2,Fees & Charges,P03,Wellbeing,REDACTED,02/07/2012,10.65,
Bath & North East Somerset Council,80113286,YF2,Fees & Charges,P03,Wellbeing,REDACTED,02/07/2012,10.65,
Bath & North East Somerset Council,80113286,YF2,Fees & Charges,P03,Wellbeing,REDACTED,02/07/2012,10.65,
Bath & North East Somerset Council,80113286,YF2,Fees & Charges,P03,Wellbeing,REDACTED,02/07/2012,10.65,
Bath & North East Somerset Council,80113286,YF2,Fees & Charges,P03,Wellbeing,REDACTED,02/07/2012,10.65,
Bath & North East Somerset Council,80113286,YF2,Fees & Charges,P03,Wellbeing,REDACTED,02/07/2012,10.65,
Bath & North East Somerset Council,80113286,YF2,Fees & Charges,P03,Wellbeing,REDACTED,02/07/2012,10.65,
Bath & North East Somerset Council,80113286,YF2,Fees & Charges,P03,Wellbeing,REDACTED,02/07/2012,10.65,
Bath & North East Somerset Council,80113286,YF2,Fees & Charges,P03,Wellbeing,REDACTED,02/07/2012,10.65,
Bath & North East Somerset Council,80113286,YF2,Fees & Charges,P03,Wellbeing,REDACTED,02/07/2012,10.65,
Bath & North East Somerset Council,80113286,YF2,Fees & Charges,P03,Wellbeing,REDACTED,02/07/2012,10.65,
Bath & North East Somerset Council,80113286,LL8,Individualised Budget,P03,Wellbeing,REDACTED,02/07/2012,1001.99,
Bath & North East Somerset Council,80113286,LL8,Individualised Budget,P03,Wellbeing,REDACTED,02/07/2012,1001.99,
Bath & North East Somerset Council,80113341,LL3,Supported Living,P03,Wellbeing,S.W.A.L.L.O.W. LTD,02/07/2012,10.92,
Bath & North East Somerset Council,80113341,LL3,Supported Living,P03,Wellbeing,S.W.A.L.L.O.W. LTD,02/07/2012,10.92,
Bath & North East Somerset Council,80113341,LL3,Supported Living,P03,Wellbeing,S.W.A.L.L.O.W. LTD,02/07/2012,10.92,
Bath & North East Somerset Council,80113341,LL3,Supported Living,P03,Wellbeing,S.W.A.L.L.O.W. LTD,02/07/2012,10.92,
Bath & North East Somerset Council,80113341,LL3,Supported Living,P03,Wellbeing,S.W.A.L.L.O.W. LTD,02/07/2012,10.92,
Bath & North East Somerset Council,80113341,LL3,Supported Living,P03,Wellbeing,S.W.A.L.L.O.W. LTD,02/07/2012,10.92,
Bath & North East Somerset Council,80113341,LL3,Supported Living,P03,Wellbeing,S.W.A.L.L.O.W. LTD,02/07/2012,10.92,
Bath & North East Somerset Council,80113341,LL3,Supported Living,P03,Wellbeing,S.W.A.L.L.O.W. LTD,02/07/2012,10.92,
Bath & North East Somerset Council,80113340,LL3,Supported Living,P03,Wellbeing,S.W.A.L.L.O.W. LTD,02/07/2012,38.38,
Bath & North East Somerset Council,80113340,LL3,Supported Living,P03,Wellbeing,S.W.A.L.L.O.W. LTD,02/07/2012,38.38,
Bath & North East Somerset Council,80113340,LL3,Supported Living,P03,Wellbeing,S.W.A.L.L.O.W. LTD,02/07/2012,38.38,
Bath & North East Somerset Council,80113340,LL3,Supported Living,P03,Wellbeing,S.W.A.L.L.O.W. LTD,02/07/2012,38.38,
Bath & North East Somerset Council,80113340,LL3,Supported Living,P03,Wellbeing,S.W.A.L.L.O.W. LTD,02/07/2012,38.38,
Bath & North East Somerset Council,80113340,LL3,Supported Living,P03,Wellbeing,S.W.A.L.L.O.W. LTD,02/07/2012,38.38,
Bath & North East Somerset Council,80113340,LL3,Supported Living,P03,Wellbeing,S.W.A.L.L.O.W. LTD,02/07/2012,38.38,
Bath & North East Somerset Council,80113340,LL3,Supported Living,P03,Wellbeing,S.W.A.L.L.O.W. LTD,02/07/2012,38.38,
Bath & North East Somerset Council,80113332,LL3,Supported Living,P03,Wellbeing,S.W.A.L.L.O.W. LTD,02/07/2012,42.88,
Bath & North East Somerset Council,80113332,LL3,Supported Living,P03,Wellbeing,S.W.A.L.L.O.W. LTD,02/07/2012,42.88,
Bath & North East Somerset Council,80113332,LL3,Supported Living,P03,Wellbeing,S.W.A.L.L.O.W. LTD,02/07/2012,42.88,
Bath & North East Somerset Council,80113332,LL3,Supported Living,P03,Wellbeing,S.W.A.L.L.O.W. LTD,02/07/2012,42.88,
Bath & North East Somerset Council,80113340,LL3,Supported Living,P03,Wellbeing,S.W.A.L.L.O.W. LTD,02/07/2012,71.17,
Bath & North East Somerset Council,80113332,LL3,Supported Living,P03,Wellbeing,S.W.A.L.L.O.W. LTD,02/07/2012,111.38,
Bath & North East Somerset Council,80113337,LL3,Supported Living,P03,Wellbeing,S.W.A.L.L.O.W. LTD,02/07/2012,219.28,
Bath & North East Somerset Council,80113338,LL3,Supported Living,P03,Wellbeing,S.W.A.L.L.O.W. LTD,02/07/2012,225.25,
Bath & North East Somerset Council,80113337,LL3,Supported Living,P03,Wellbeing,S.W.A.L.L.O.W. LTD,02/07/2012,230.68,
Bath & North East Somerset Council,80113337,LL3,Supported Living,P03,Wellbeing,S.W.A.L.L.O.W. LTD,02/07/2012,230.68,
Bath & North East Somerset Council,80113337,LL3,Supported Living,P03,Wellbeing,S.W.A.L.L.O.W. LTD,02/07/2012,230.68,
Bath & North East Somerset Council,80113337,LL3,Supported Living,P03,Wellbeing,S.W.A.L.L.O.W. LTD,02/07/2012,230.68,
Bath & North East Somerset Council,80113341,LL3,Supported Living,P03,Wellbeing,S.W.A.L.L.O.W. LTD,02/07/2012,236.77,
Bath & North East Somerset Council,80113338,LL3,Supported Living,P03,Wellbeing,S.W.A.L.L.O.W. LTD,02/07/2012,237.00,
Bath & North East Somerset Council,80113338,LL3,Supported Living,P03,Wellbeing,S.W.A.L.L.O.W. LTD,02/07/2012,237.00,
Bath & North East Somerset Council,80113338,LL3,Supported Living,P03,Wellbeing,S.W.A.L.L.O.W. LTD,02/07/2012,237.00,
Bath & North East Somerset Council,80113338,LL3,Supported Living,P03,Wellbeing,S.W.A.L.L.O.W. LTD,02/07/2012,237.00,
Bath & North East Somerset Council,80113339,LL3,Supported Living,P03,Wellbeing,S.W.A.L.L.O.W. LTD,02/07/2012,239.92,
Bath & North East Somerset Council,80113339,LL3,Supported Living,P03,Wellbeing,S.W.A.L.L.O.W. LTD,02/07/2012,252.42,
Bath & North East Somerset Council,80113339,LL3,Supported Living,P03,Wellbeing,S.W.A.L.L.O.W. LTD,02/07/2012,252.42,
Bath & North East Somerset Council,80113339,LL3,Supported Living,P03,Wellbeing,S.W.A.L.L.O.W. LTD,02/07/2012,252.42,
Bath & North East Somerset Council,80113339,LL3,Supported Living,P03,Wellbeing,S.W.A.L.L.O.W. LTD,02/07/2012,252.42,
Bath & North East Somerset Council,80113332,LL3,Supported Living,P03,Wellbeing,S.W.A.L.L.O.W. LTD,02/07/2012,297.65,
Bath & North East Somerset Council,80113332,LL3,Supported Living,P03,Wellbeing,S.W.A.L.L.O.W. LTD,02/07/2012,297.65,
Bath & North East Somerset Council,80113332,LL3,Supported Living,P03,Wellbeing,S.W.A.L.L.O.W. LTD,02/07/2012,297.65,
Bath & North East Somerset Council,80113332,LL3,Supported Living,P03,Wellbeing,S.W.A.L.L.O.W. LTD,02/07/2012,297.65,
Bath & North East Somerset Council,80113334,LL3,Supported Living,P03,Wellbeing,S.W.A.L.L.O.W. LTD,02/07/2012,314.36,
Bath & North East Somerset Council,80113334,LL3,Supported Living,P03,Wellbeing,S.W.A.L.L.O.W. LTD,02/07/2012,314.36,
Bath & North East Somerset Council,80113334,LL3,Supported Living,P03,Wellbeing,S.W.A.L.L.O.W. LTD,02/07/2012,314.36,
Bath & North East Somerset Council,80113334,LL3,Supported Living,P03,Wellbeing,S.W.A.L.L.O.W. LTD,02/07/2012,314.36,
Bath & North East Somerset Council,80113334,LL3,Supported Living,P03,Wellbeing,S.W.A.L.L.O.W. LTD,02/07/2012,314.36,
Bath & North East Somerset Council,80113341,LL3,Supported Living,P03,Wellbeing,S.W.A.L.L.O.W. LTD,02/07/2012,340.88,
Bath & North East Somerset Council,80113341,LL3,Supported Living,P03,Wellbeing,S.W.A.L.L.O.W. LTD,02/07/2012,340.88,
Bath & North East Somerset Council,80113341,LL3,Supported Living,P03,Wellbeing,S.W.A.L.L.O.W. LTD,02/07/2012,340.88,
Bath & North East Somerset Council,80113341,LL3,Supported Living,P03,Wellbeing,S.W.A.L.L.O.W. LTD,02/07/2012,340.88,
Bath & North East Somerset Council,80113342,LL3,Supported Living,P03,Wellbeing,S.W.A.L.L.O.W. LTD,02/07/2012,389.89,
Bath & North East Somerset Council,80113340,LL3,Supported Living,P03,Wellbeing,S.W.A.L.L.O.W. LTD,02/07/2012,397.91,
Bath & North East Somerset Council,80113340,LL3,Supported Living,P03,Wellbeing,S.W.A.L.L.O.W. LTD,02/07/2012,397.91,
Bath & North East Somerset Council,80113340,LL3,Supported Living,P03,Wellbeing,S.W.A.L.L.O.W. LTD,02/07/2012,397.91,
Bath & North East Somerset Council,80113340,LL3,Supported Living,P03,Wellbeing,S.W.A.L.L.O.W. LTD,02/07/2012,397.91,
Bath & North East Somerset Council,80113342,LL3,Supported Living,P03,Wellbeing,S.W.A.L.L.O.W. LTD,02/07/2012,410.19,
Bath & North East Somerset Council,80113342,LL3,Supported Living,P03,Wellbeing,S.W.A.L.L.O.W. LTD,02/07/2012,410.19,
Bath & North East Somerset Council,80113342,LL3,Supported Living,P03,Wellbeing,S.W.A.L.L.O.W. LTD,02/07/2012,410.19,
Bath & North East Somerset Council,80113342,LL3,Supported Living,P03,Wellbeing,S.W.A.L.L.O.W. LTD,02/07/2012,410.19,
Bath & North East Somerset Council,80113335,LL3,Supported Living,P03,Wellbeing,S.W.A.L.L.O.W. LTD,02/07/2012,812.72,
Bath & North East Somerset Council,80113335,LL3,Supported Living,P03,Wellbeing,S.W.A.L.L.O.W. LTD,02/07/2012,855.07,
Bath & North East Somerset Council,80113335,LL3,Supported Living,P03,Wellbeing,S.W.A.L.L.O.W. LTD,02/07/2012,855.07,
Bath & North East Somerset Council,80113335,LL3,Supported Living,P03,Wellbeing,S.W.A.L.L.O.W. LTD,02/07/2012,855.07,
Bath & North East Somerset Council,80113335,LL3,Supported Living,P03,Wellbeing,S.W.A.L.L.O.W. LTD,02/07/2012,855.07,
Bath & North East Somerset Council,80113336,LL3,Supported Living,P03,Wellbeing,S.W.A.L.L.O.W. LTD,02/07/2012,867.64,
Bath & North East Somerset Council,80113336,LL3,Supported Living,P03,Wellbeing,S.W.A.L.L.O.W. LTD,02/07/2012,867.64,
Bath & North East Somerset Council,80113336,LL3,Supported Living,P03,Wellbeing,S.W.A.L.L.O.W. LTD,02/07/2012,867.64,
Bath & North East Somerset Council,80113336,LL3,Supported Living,P03,Wellbeing,S.W.A.L.L.O.W. LTD,02/07/2012,867.64,
Bath & North East Somerset Council,80113336,LL3,Supported Living,P03,Wellbeing,S.W.A.L.L.O.W. LTD,02/07/2012,867.64,
Bath & North East Somerset Council,10664120,LJ1,Consultants Fees,P07,Community Resources,IAN JAMIESON ASSOCIATES LTD,02/07/2012,678.75,
Bath & North East Somerset Council,80113005,LM6,Nursing Care,P03,Wellbeing,SANCTUARY CARE LTD,02/07/2012,898.72,
Bath & North East Somerset Council,80113005,LM6,Nursing Care,P03,Wellbeing,SANCTUARY CARE LTD,02/07/2012,898.72,
Bath & North East Somerset Council,80113381,LL3,Supported Living,P03,Wellbeing,SAXON-LO LTD T/A BLUE SKY ENABLING,02/07/2012,1516.25,
Bath & North East Somerset Council,80113380,LL3,Supported Living,P03,Wellbeing,SELBORNE CARE LTD,02/07/2012,134.55,
Bath & North East Somerset Council,80113380,LL3,Supported Living,P03,Wellbeing,SELBORNE CARE LTD,02/07/2012,134.55,
Bath & North East Somerset Council,80113380,LL3,Supported Living,P03,Wellbeing,SELBORNE CARE LTD,02/07/2012,134.55,
Bath & North East Somerset Council,80113380,LL3,Supported Living,P03,Wellbeing,SELBORNE CARE LTD,02/07/2012,134.55,
Bath & North East Somerset Council,80113378,LL3,Supported Living,P03,Wellbeing,SELBORNE CARE LTD,02/07/2012,135.90,
Bath & North East Somerset Council,80113378,LL3,Supported Living,P03,Wellbeing,SELBORNE CARE LTD,02/07/2012,135.90,
Bath & North East Somerset Council,80113378,LL3,Supported Living,P03,Wellbeing,SELBORNE CARE LTD,02/07/2012,135.90,
Bath & North East Somerset Council,80113378,LL3,Supported Living,P03,Wellbeing,SELBORNE CARE LTD,02/07/2012,135.90,
Bath & North East Somerset Council,80113252,LL8,Individualised Budget,P03,Wellbeing,REDACTED,02/07/2012,49.69,
Bath & North East Somerset Council,80113252,LL8,Individualised Budget,P03,Wellbeing,REDACTED,02/07/2012,115.94,
Bath & North East Somerset Council,80113252,LL8,Individualised Budget,P03,Wellbeing,REDACTED,02/07/2012,115.94,
Bath & North East Somerset Council,80113252,LL8,Individualised Budget,P03,Wellbeing,REDACTED,02/07/2012,115.94,
Bath & North East Somerset Council,80113252,LL8,Individualised Budget,P03,Wellbeing,REDACTED,02/07/2012,115.94,
Bath & North East Somerset Council,80113252,LL8,Individualised Budget,P03,Wellbeing,REDACTED,02/07/2012,115.94,
Bath & North East Somerset Council,80113252,LL8,Individualised Budget,P03,Wellbeing,REDACTED,02/07/2012,798.50,
Bath & North East Somerset Council,80112984,LM6,Nursing Care,P03,Wellbeing,SHAW HOMES HOUSING ASSOC LTD,02/07/2012,558.30,
Bath & North East Somerset Council,80112984,LM6,Nursing Care,P03,Wellbeing,SHAW HOMES HOUSING ASSOC LTD,02/07/2012,558.30,
Bath & North East Somerset Council,80112984,LM6,Nursing Care,P03,Wellbeing,SHAW HOMES HOUSING ASSOC LTD,02/07/2012,569.00,
Bath & North East Somerset Council,80112984,LM6,Nursing Care,P03,Wellbeing,SHAW HOMES HOUSING ASSOC LTD,02/07/2012,569.00,
Bath & North East Somerset Council,80113291,LL8,Individualised Budget,P03,Wellbeing,SHAW TRUST LTD,02/07/2012,27.16,
Bath & North East Somerset Council,80113291,LL8,Individualised Budget,P03,Wellbeing,SHAW TRUST LTD,02/07/2012,27.16,
Bath & North East Somerset Council,80113291,LL8,Individualised Budget,P03,Wellbeing,SHAW TRUST LTD,02/07/2012,39.12,
Bath & North East Somerset Council,80113291,LL8,Individualised Budget,P03,Wellbeing,SHAW TRUST LTD,02/07/2012,39.12,
Bath & North East Somerset Council,80113039,LL4,Direct Payments,P02,"Early Years, Children & Youth",SHAW TRUST LTD,02/07/2012,39.18,
Bath & North East Somerset Council,80113039,LL4,Direct Payments,P02,"Early Years, Children & Youth",SHAW TRUST LTD,02/07/2012,39.18,
Bath & North East Somerset Council,80113291,YF2,Fees & Charges,P03,Wellbeing,SHAW TRUST LTD,02/07/2012,42.96,
Bath & North East Somerset Council,80113291,YF2,Fees & Charges,P03,Wellbeing,SHAW TRUST LTD,02/07/2012,42.96,
Bath & North East Somerset Council,80113291,YF2,Fees & Charges,P03,Wellbeing,SHAW TRUST LTD,02/07/2012,42.96,
Bath & North East Somerset Council,80113291,YF2,Fees & Charges,P03,Wellbeing,SHAW TRUST LTD,02/07/2012,42.96,
Bath & North East Somerset Council,80113291,YF2,Fees & Charges,P03,Wellbeing,SHAW TRUST LTD,02/07/2012,42.96,
Bath & North East Somerset Council,80113291,YF2,Fees & Charges,P03,Wellbeing,SHAW TRUST LTD,02/07/2012,42.96,
Bath & North East Somerset Council,80113291,YF2,Fees & Charges,P03,Wellbeing,SHAW TRUST LTD,02/07/2012,42.96,
Bath & North East Somerset Council,80113291,YF2,Fees & Charges,P03,Wellbeing,SHAW TRUST LTD,02/07/2012,42.96,
Bath & North East Somerset Council,80113291,YF2,Fees & Charges,P03,Wellbeing,SHAW TRUST LTD,02/07/2012,42.96,
Bath & North East Somerset Council,80113291,YF2,Fees & Charges,P03,Wellbeing,SHAW TRUST LTD,02/07/2012,42.96,
Bath & North East Somerset Council,80113291,YF2,Fees & Charges,P03,Wellbeing,SHAW TRUST LTD,02/07/2012,42.96,
Bath & North East Somerset Council,80113039,LL4,Direct Payments,P02,"Early Years, Children & Youth",SHAW TRUST LTD,02/07/2012,46.20,
Bath & North East Somerset Council,80113039,LL4,Direct Payments,P02,"Early Years, Children & Youth",SHAW TRUST LTD,02/07/2012,46.20,
Bath & North East Somerset Council,80113291,LL8,Individualised Budget,P03,Wellbeing,SHAW TRUST LTD,02/07/2012,46.61,
Bath & North East Somerset Council,80113291,LL8,Individualised Budget,P03,Wellbeing,SHAW TRUST LTD,02/07/2012,46.61,
Bath & North East Somerset Council,80113291,LL8,Individualised Budget,P03,Wellbeing,SHAW TRUST LTD,02/07/2012,48.33,
Bath & North East Somerset Council,80113291,LL8,Individualised Budget,P03,Wellbeing,SHAW TRUST LTD,02/07/2012,48.33,
Bath & North East Somerset Council,80113039,LL4,Direct Payments,P03,Wellbeing,SHAW TRUST LTD,02/07/2012,49.99,
Bath & North East Somerset Council,80113039,LL4,Direct Payments,P03,Wellbeing,SHAW TRUST LTD,02/07/2012,49.99,
Bath & North East Somerset Council,80113291,LL8,Individualised Budget,P03,Wellbeing,SHAW TRUST LTD,02/07/2012,58.03,
Bath & North East Somerset Council,80113291,LL8,Individualised Budget,P03,Wellbeing,SHAW TRUST LTD,02/07/2012,58.03,
Bath & North East Somerset Council,80113039,LL4,Direct Payments,P03,Wellbeing,SHAW TRUST LTD,02/07/2012,66.35,
Bath & North East Somerset Council,80113039,LL4,Direct Payments,P03,Wellbeing,SHAW TRUST LTD,02/07/2012,66.35,
Bath & North East Somerset Council,80113039,LL4,Direct Payments,P02,"Early Years, Children & Youth",SHAW TRUST LTD,02/07/2012,66.78,
Bath & North East Somerset Council,80113039,LL4,Direct Payments,P02,"Early Years, Children & Youth",SHAW TRUST LTD,02/07/2012,66.78,
Bath & North East Somerset Council,80113291,LL8,Individualised Budget,P03,Wellbeing,SHAW TRUST LTD,02/07/2012,69.19,
Bath & North East Somerset Council,80113291,LL8,Individualised Budget,P03,Wellbeing,SHAW TRUST LTD,02/07/2012,69.19,
Bath & North East Somerset Council,80113291,LL8,Individualised Budget,P03,Wellbeing,SHAW TRUST LTD,02/07/2012,69.95,
Bath & North East Somerset Council,80113291,LL8,Individualised Budget,P03,Wellbeing,SHAW TRUST LTD,02/07/2012,69.95,
Bath & North East Somerset Council,80113291,LL8,Individualised Budget,P03,Wellbeing,SHAW TRUST LTD,02/07/2012,70.93,
Bath & North East Somerset Council,80113291,LL8,Individualised Budget,P03,Wellbeing,SHAW TRUST LTD,02/07/2012,70.93,
Bath & North East Somerset Council,80113291,LL8,Individualised Budget,P03,Wellbeing,SHAW TRUST LTD,02/07/2012,71.32,
Bath & North East Somerset Council,80113291,LL8,Individualised Budget,P03,Wellbeing,SHAW TRUST LTD,02/07/2012,71.32,
Bath & North East Somerset Council,80113039,LL4,Direct Payments,P02,"Early Years, Children & Youth",SHAW TRUST LTD,02/07/2012,79.02,
Bath & North East Somerset Council,80113039,LL4,Direct Payments,P02,"Early Years, Children & Youth",SHAW TRUST LTD,02/07/2012,79.02,
Bath & North East Somerset Council,80113291,LL8,Individualised Budget,P03,Wellbeing,SHAW TRUST LTD,02/07/2012,79.78,
Bath & North East Somerset Council,80113291,LL8,Individualised Budget,P03,Wellbeing,SHAW TRUST LTD,02/07/2012,79.78,
Bath & North East Somerset Council,80113039,LL4,Direct Payments,P03,Wellbeing,SHAW TRUST LTD,02/07/2012,80.57,
Bath & North East Somerset Council,80113039,LL4,Direct Payments,P03,Wellbeing,SHAW TRUST LTD,02/07/2012,80.57,
Bath & North East Somerset Council,80113039,LL4,Direct Payments,P03,Wellbeing,SHAW TRUST LTD,02/07/2012,82.32,
Bath & North East Somerset Council,80113039,LL4,Direct Payments,P03,Wellbeing,SHAW TRUST LTD,02/07/2012,82.32,
Bath & North East Somerset Council,80113291,LL8,Individualised Budget,P03,Wellbeing,SHAW TRUST LTD,02/07/2012,86.58,
Bath & North East Somerset Council,80113291,LL8,Individualised Budget,P03,Wellbeing,SHAW TRUST LTD,02/07/2012,86.58,
Bath & North East Somerset Council,80113291,LL8,Individualised Budget,P03,Wellbeing,SHAW TRUST LTD,02/07/2012,91.65,
Bath & North East Somerset Council,80113291,LL8,Individualised Budget,P03,Wellbeing,SHAW TRUST LTD,02/07/2012,93.55,
Bath & North East Somerset Council,80113291,LL8,Individualised Budget,P03,Wellbeing,SHAW TRUST LTD,02/07/2012,93.55,
Bath & North East Somerset Council,80113291,LL8,Individualised Budget,P03,Wellbeing,SHAW TRUST LTD,02/07/2012,96.69,
Bath & North East Somerset Council,80113291,LL8,Individualised Budget,P03,Wellbeing,SHAW TRUST LTD,02/07/2012,96.69,
Bath & North East Somerset Council,80113291,LL8,Individualised Budget,P03,Wellbeing,SHAW TRUST LTD,02/07/2012,97.28,
Bath & North East Somerset Council,80113291,LL8,Individualised Budget,P03,Wellbeing,SHAW TRUST LTD,02/07/2012,97.28,
Bath & North East Somerset Council,80113291,LL8,Individualised Budget,P03,Wellbeing,SHAW TRUST LTD,02/07/2012,98.49,
Bath & North East Somerset Council,80113291,LL8,Individualised Budget,P03,Wellbeing,SHAW TRUST LTD,02/07/2012,98.49,
Bath & North East Somerset Council,80113039,LL4,Direct Payments,P03,Wellbeing,SHAW TRUST LTD,02/07/2012,102.90,
Bath & North East Somerset Council,80113039,LL4,Direct Payments,P03,Wellbeing,SHAW TRUST LTD,02/07/2012,102.90,
Bath & North East Somerset Council,80113291,LL8,Individualised Budget,P03,Wellbeing,SHAW TRUST LTD,02/07/2012,106.32,
Bath & North East Somerset Council,80113291,LL8,Individualised Budget,P03,Wellbeing,SHAW TRUST LTD,02/07/2012,106.32,
Bath & North East Somerset Council,80113291,LL8,Individualised Budget,P03,Wellbeing,SHAW TRUST LTD,02/07/2012,106.93,
Bath & North East Somerset Council,80113291,LL8,Individualised Budget,P03,Wellbeing,SHAW TRUST LTD,02/07/2012,106.93,
Bath & North East Somerset Council,80113291,LL8,Individualised Budget,P03,Wellbeing,SHAW TRUST LTD,02/07/2012,106.93,
Bath & North East Somerset Council,80113291,LL8,Individualised Budget,P03,Wellbeing,SHAW TRUST LTD,02/07/2012,106.93,
Bath & North East Somerset Council,80113291,LL8,Individualised Budget,P03,Wellbeing,SHAW TRUST LTD,02/07/2012,106.93,
Bath & North East Somerset Council,80113291,LL8,Individualised Budget,P03,Wellbeing,SHAW TRUST LTD,02/07/2012,106.93,
Bath & North East Somerset Council,80113291,LL8,Individualised Budget,P03,Wellbeing,SHAW TRUST LTD,02/07/2012,106.93,
Bath & North East Somerset Council,80113291,LL8,Individualised Budget,P03,Wellbeing,SHAW TRUST LTD,02/07/2012,106.93,
Bath & North East Somerset Council,80113291,LL8,Individualised Budget,P03,Wellbeing,SHAW TRUST LTD,02/07/2012,106.93,
Bath & North East Somerset Council,80113291,LL8,Individualised Budget,P03,Wellbeing,SHAW TRUST LTD,02/07/2012,112.72,
Bath & North East Somerset Council,80113291,LL8,Individualised Budget,P03,Wellbeing,SHAW TRUST LTD,02/07/2012,112.72,
Bath & North East Somerset Council,80113291,LL8,Individualised Budget,P03,Wellbeing,SHAW TRUST LTD,02/07/2012,112.89,
Bath & North East Somerset Council,80113291,LL8,Individualised Budget,P03,Wellbeing,SHAW TRUST LTD,02/07/2012,112.89,
Bath & North East Somerset Council,80113291,LL8,Individualised Budget,P03,Wellbeing,SHAW TRUST LTD,02/07/2012,113.56,
Bath & North East Somerset Council,80113291,LL8,Individualised Budget,P03,Wellbeing,SHAW TRUST LTD,02/07/2012,113.56,
Bath & North East Somerset Council,80113291,LL8,Individualised Budget,P03,Wellbeing,SHAW TRUST LTD,02/07/2012,121.63,
Bath & North East Somerset Council,80113291,LL8,Individualised Budget,P03,Wellbeing,SHAW TRUST LTD,02/07/2012,121.63,
Bath & North East Somerset Council,80113291,LL8,Individualised Budget,P03,Wellbeing,SHAW TRUST LTD,02/07/2012,124.89,
Bath & North East Somerset Council,80113291,LL8,Individualised Budget,P03,Wellbeing,SHAW TRUST LTD,02/07/2012,124.89,
Bath & North East Somerset Council,80113291,LL8,Individualised Budget,P03,Wellbeing,SHAW TRUST LTD,02/07/2012,125.95,
Bath & North East Somerset Council,80113291,LL8,Individualised Budget,P03,Wellbeing,SHAW TRUST LTD,02/07/2012,125.95,
Bath & North East Somerset Council,80113291,LL8,Individualised Budget,P03,Wellbeing,SHAW TRUST LTD,02/07/2012,128.56,
Bath & North East Somerset Council,80113291,LL8,Individualised Budget,P03,Wellbeing,SHAW TRUST LTD,02/07/2012,128.56,
Bath & North East Somerset Council,80113291,LL8,Individualised Budget,P03,Wellbeing,SHAW TRUST LTD,02/07/2012,130.61,
Bath & North East Somerset Council,80113291,LL8,Individualised Budget,P03,Wellbeing,SHAW TRUST LTD,02/07/2012,130.61,
Bath & North East Somerset Council,80113291,LL8,Individualised Budget,P03,Wellbeing,SHAW TRUST LTD,02/07/2012,136.83,
Bath & North East Somerset Council,80113291,LL8,Individualised Budget,P03,Wellbeing,SHAW TRUST LTD,02/07/2012,136.83,
Bath & North East Somerset Council,80113291,LL8,Individualised Budget,P03,Wellbeing,SHAW TRUST LTD,02/07/2012,143.57,
Bath & North East Somerset Council,80113291,LL8,Individualised Budget,P03,Wellbeing,SHAW TRUST LTD,02/07/2012,143.57,
Bath & North East Somerset Council,80113291,LL8,Individualised Budget,P03,Wellbeing,SHAW TRUST LTD,02/07/2012,143.62,
Bath & North East Somerset Council,80113291,LL8,Individualised Budget,P03,Wellbeing,SHAW TRUST LTD,02/07/2012,143.62,
Bath & North East Somerset Council,80113291,LL8,Individualised Budget,P03,Wellbeing,SHAW TRUST LTD,02/07/2012,169.20,
Bath & North East Somerset Council,80113291,LL8,Individualised Budget,P03,Wellbeing,SHAW TRUST LTD,02/07/2012,169.20,
Bath & North East Somerset Council,80113291,LL8,Individualised Budget,P03,Wellbeing,SHAW TRUST LTD,02/07/2012,171.93,
Bath & North East Somerset Council,80113291,LL8,Individualised Budget,P03,Wellbeing,SHAW TRUST LTD,02/07/2012,171.93,
Bath & North East Somerset Council,80113291,LL8,Individualised Budget,P03,Wellbeing,SHAW TRUST LTD,02/07/2012,184.97,
Bath & North East Somerset Council,80113291,LL8,Individualised Budget,P03,Wellbeing,SHAW TRUST LTD,02/07/2012,184.97,
Bath & North East Somerset Council,80113291,LL8,Individualised Budget,P03,Wellbeing,SHAW TRUST LTD,02/07/2012,194.67,
Bath & North East Somerset Council,80113291,LL8,Individualised Budget,P03,Wellbeing,SHAW TRUST LTD,02/07/2012,194.67,
Bath & North East Somerset Council,80113291,LL8,Individualised Budget,P03,Wellbeing,SHAW TRUST LTD,02/07/2012,198.88,
Bath & North East Somerset Council,80113291,LL8,Individualised Budget,P03,Wellbeing,SHAW TRUST LTD,02/07/2012,198.88,
Bath & North East Somerset Council,80113291,LL8,Individualised Budget,P03,Wellbeing,SHAW TRUST LTD,02/07/2012,199.64,
Bath & North East Somerset Council,80113291,LL8,Individualised Budget,P03,Wellbeing,SHAW TRUST LTD,02/07/2012,199.64,
Bath & North East Somerset Council,80113291,LL8,Individualised Budget,P03,Wellbeing,SHAW TRUST LTD,02/07/2012,202.80,
Bath & North East Somerset Council,80113291,LL8,Individualised Budget,P03,Wellbeing,SHAW TRUST LTD,02/07/2012,202.80,
Bath & North East Somerset Council,80113291,LL8,Individualised Budget,P03,Wellbeing,SHAW TRUST LTD,02/07/2012,215.89,
Bath & North East Somerset Council,80113291,LL8,Individualised Budget,P03,Wellbeing,SHAW TRUST LTD,02/07/2012,215.89,
Bath & North East Somerset Council,80113291,LL8,Individualised Budget,P03,Wellbeing,SHAW TRUST LTD,02/07/2012,224.92,
Bath & North East Somerset Council,80113291,LL8,Individualised Budget,P03,Wellbeing,SHAW TRUST LTD,02/07/2012,224.92,
Bath & North East Somerset Council,80113291,LL8,Individualised Budget,P03,Wellbeing,SHAW TRUST LTD,02/07/2012,228.67,
Bath & North East Somerset Council,80113291,LL8,Individualised Budget,P03,Wellbeing,SHAW TRUST LTD,02/07/2012,228.67,
Bath & North East Somerset Council,80113291,LL8,Individualised Budget,P03,Wellbeing,SHAW TRUST LTD,02/07/2012,273.57,
Bath & North East Somerset Council,80113291,LL8,Individualised Budget,P03,Wellbeing,SHAW TRUST LTD,02/07/2012,273.57,
Bath & North East Somerset Council,80113291,LL8,Individualised Budget,P03,Wellbeing,SHAW TRUST LTD,02/07/2012,291.84,
Bath & North East Somerset Council,80113291,LL8,Individualised Budget,P03,Wellbeing,SHAW TRUST LTD,02/07/2012,291.84,
Bath & North East Somerset Council,80113291,LL8,Individualised Budget,P03,Wellbeing,SHAW TRUST LTD,02/07/2012,294.71,
Bath & North East Somerset Council,80113291,LL8,Individualised Budget,P03,Wellbeing,SHAW TRUST LTD,02/07/2012,294.71,
Bath & North East Somerset Council,80113291,LL8,Individualised Budget,P03,Wellbeing,SHAW TRUST LTD,02/07/2012,309.92,
Bath & North East Somerset Council,80113291,LL8,Individualised Budget,P03,Wellbeing,SHAW TRUST LTD,02/07/2012,309.92,
Bath & North East Somerset Council,80113291,LL8,Individualised Budget,P03,Wellbeing,SHAW TRUST LTD,02/07/2012,334.01,
Bath & North East Somerset Council,80113291,LL8,Individualised Budget,P03,Wellbeing,SHAW TRUST LTD,02/07/2012,334.01,
Bath & North East Somerset Council,80113291,LL8,Individualised Budget,P03,Wellbeing,SHAW TRUST LTD,02/07/2012,338.27,
Bath & North East Somerset Council,80113291,LL8,Individualised Budget,P03,Wellbeing,SHAW TRUST LTD,02/07/2012,338.27,
Bath & North East Somerset Council,80113291,LL8,Individualised Budget,P03,Wellbeing,SHAW TRUST LTD,02/07/2012,338.88,
Bath & North East Somerset Council,80113291,LL8,Individualised Budget,P03,Wellbeing,SHAW TRUST LTD,02/07/2012,338.88,
Bath & North East Somerset Council,80113291,LL8,Individualised Budget,P03,Wellbeing,SHAW TRUST LTD,02/07/2012,357.45,
Bath & North East Somerset Council,80113291,LL8,Individualised Budget,P03,Wellbeing,SHAW TRUST LTD,02/07/2012,357.45,
Bath & North East Somerset Council,80113291,LL8,Individualised Budget,P03,Wellbeing,SHAW TRUST LTD,02/07/2012,363.05,
Bath & North East Somerset Council,80113291,LL8,Individualised Budget,P03,Wellbeing,SHAW TRUST LTD,02/07/2012,363.05,
Bath & North East Somerset Council,80113291,LL8,Individualised Budget,P03,Wellbeing,SHAW TRUST LTD,02/07/2012,364.12,
Bath & North East Somerset Council,80113291,LL8,Individualised Budget,P03,Wellbeing,SHAW TRUST LTD,02/07/2012,364.12,
Bath & North East Somerset Council,10662582,LX1,Educational Activity,P02,"Early Years, Children & Youth",LISA SLEVIN,02/07/2012,800.00,
Bath & North East Somerset Council,80113291,LL8,Individualised Budget,P03,Wellbeing,SHAW TRUST LTD,02/07/2012,387.10,
Bath & North East Somerset Council,80113291,LL8,Individualised Budget,P03,Wellbeing,SHAW TRUST LTD,02/07/2012,387.10,
Bath & North East Somerset Council,80113291,LL8,Individualised Budget,P03,Wellbeing,SHAW TRUST LTD,02/07/2012,395.00,
Bath & North East Somerset Council,80113291,LL8,Individualised Budget,P03,Wellbeing,SHAW TRUST LTD,02/07/2012,395.00,
Bath & North East Somerset Council,80113291,LL8,Individualised Budget,P03,Wellbeing,SHAW TRUST LTD,02/07/2012,415.55,
Bath & North East Somerset Council,80113291,LL8,Individualised Budget,P03,Wellbeing,SHAW TRUST LTD,02/07/2012,415.55,
Bath & North East Somerset Council,80113039,LL4,Direct Payments,P02,"Early Years, Children & Youth",SHAW TRUST LTD,02/07/2012,424.30,
Bath & North East Somerset Council,80113039,LL4,Direct Payments,P02,"Early Years, Children & Youth",SHAW TRUST LTD,02/07/2012,424.30,
Bath & North East Somerset Council,80113291,LL8,Individualised Budget,P03,Wellbeing,SHAW TRUST LTD,02/07/2012,433.61,
Bath & North East Somerset Council,80113291,LL8,Individualised Budget,P03,Wellbeing,SHAW TRUST LTD,02/07/2012,433.61,
Bath & North East Somerset Council,80113291,LL8,Individualised Budget,P03,Wellbeing,SHAW TRUST LTD,02/07/2012,438.85,
Bath & North East Somerset Council,80113291,LL8,Individualised Budget,P03,Wellbeing,SHAW TRUST LTD,02/07/2012,438.85,
Bath & North East Somerset Council,80113291,LL8,Individualised Budget,P03,Wellbeing,SHAW TRUST LTD,02/07/2012,450.28,
Bath & North East Somerset Council,80113291,LL8,Individualised Budget,P03,Wellbeing,SHAW TRUST LTD,02/07/2012,450.28,
Bath & North East Somerset Council,80113291,LL8,Individualised Budget,P03,Wellbeing,SHAW TRUST LTD,02/07/2012,687.55,
Bath & North East Somerset Council,80113291,LL8,Individualised Budget,P03,Wellbeing,SHAW TRUST LTD,02/07/2012,687.55,
Bath & North East Somerset Council,80113291,LL8,Individualised Budget,P03,Wellbeing,SHAW TRUST LTD,02/07/2012,898.80,
Bath & North East Somerset Council,80113291,LL8,Individualised Budget,P03,Wellbeing,SHAW TRUST LTD,02/07/2012,1400.00,
Bath & North East Somerset Council,80113291,LL8,Individualised Budget,P03,Wellbeing,SHAW TRUST LTD,02/07/2012,1894.42,
Bath & North East Somerset Council,80113291,LL8,Individualised Budget,P03,Wellbeing,SHAW TRUST LTD,02/07/2012,1894.42,
Bath & North East Somerset Council,80112985,LM6,Nursing Care,P03,Wellbeing,SHERWOOD LODGE,02/07/2012,1361.76,
Bath & North East Somerset Council,80112985,LM6,Nursing Care,P03,Wellbeing,SHERWOOD LODGE,02/07/2012,1361.76,
Bath & North East Somerset Council,80113440,LM8,Home Care,P03,Wellbeing,SOMERSET CARE AT HOME LTD,02/07/2012,57.00,
Bath & North East Somerset Council,80113440,LM8,Home Care,P03,Wellbeing,SOMERSET CARE AT HOME LTD,02/07/2012,57.00,
Bath & North East Somerset Council,80113440,LM8,Home Care,P03,Wellbeing,SOMERSET CARE AT HOME LTD,02/07/2012,57.00,
Bath & North East Somerset Council,80113442,LM8,Home Care,P03,Wellbeing,SOMERSET CARE AT HOME LTD,02/07/2012,66.50,
Bath & North East Somerset Council,80113442,LM8,Home Care,P03,Wellbeing,SOMERSET CARE AT HOME LTD,02/07/2012,66.50,
Bath & North East Somerset Council,80113442,LM8,Home Care,P03,Wellbeing,SOMERSET CARE AT HOME LTD,02/07/2012,66.50,
Bath & North East Somerset Council,80113442,LM8,Home Care,P03,Wellbeing,SOMERSET CARE AT HOME LTD,02/07/2012,66.50,
Bath & North East Somerset Council,80113442,LM8,Home Care,P03,Wellbeing,SOMERSET CARE AT HOME LTD,02/07/2012,66.50,
Bath & North East Somerset Council,80113440,LM8,Home Care,P03,Wellbeing,SOMERSET CARE AT HOME LTD,02/07/2012,114.00,
Bath & North East Somerset Council,80113440,LM8,Home Care,P03,Wellbeing,SOMERSET CARE AT HOME LTD,02/07/2012,114.00,
Bath & North East Somerset Council,80113440,LM8,Home Care,P03,Wellbeing,SOMERSET CARE AT HOME LTD,02/07/2012,114.00,
Bath & North East Somerset Council,80113440,LM8,Home Care,P03,Wellbeing,SOMERSET CARE AT HOME LTD,02/07/2012,114.00,
Bath & North East Somerset Council,80113442,LM8,Home Care,P03,Wellbeing,SOMERSET CARE AT HOME LTD,02/07/2012,266.00,
Bath & North East Somerset Council,80113442,LM8,Home Care,P03,Wellbeing,SOMERSET CARE AT HOME LTD,02/07/2012,266.00,
Bath & North East Somerset Council,80113442,LM8,Home Care,P03,Wellbeing,SOMERSET CARE AT HOME LTD,02/07/2012,266.00,
Bath & North East Somerset Council,80113442,LM8,Home Care,P03,Wellbeing,SOMERSET CARE AT HOME LTD,02/07/2012,266.00,
Bath & North East Somerset Council,80113442,LM8,Home Care,P03,Wellbeing,SOMERSET CARE AT HOME LTD,02/07/2012,266.00,
Bath & North East Somerset Council,80113442,LM8,Home Care,P03,Wellbeing,SOMERSET CARE AT HOME LTD,02/07/2012,532.00,
Bath & North East Somerset Council,80113442,LM8,Home Care,P03,Wellbeing,SOMERSET CARE AT HOME LTD,02/07/2012,532.00,
Bath & North East Somerset Council,80113442,LM8,Home Care,P03,Wellbeing,SOMERSET CARE AT HOME LTD,02/07/2012,532.00,
Bath & North East Somerset Council,80113442,LM8,Home Care,P03,Wellbeing,SOMERSET CARE AT HOME LTD,02/07/2012,532.00,
Bath & North East Somerset Council,80113442,LM8,Home Care,P03,Wellbeing,SOMERSET CARE AT HOME LTD,02/07/2012,532.00,
Bath & North East Somerset Council,80113007,LM6,Nursing Care,P03,Wellbeing,STANTON COURT,02/07/2012,278.57,
Bath & North East Somerset Council,80113007,LM6,Nursing Care,P03,Wellbeing,STANTON COURT,02/07/2012,371.43,
Bath & North East Somerset Council,80113007,LM6,Nursing Care,P03,Wellbeing,STANTON COURT,02/07/2012,371.43,
Bath & North East Somerset Council,80113007,LM6,Nursing Care,P03,Wellbeing,STANTON COURT,02/07/2012,650.00,
Bath & North East Somerset Council,80113007,LM6,Nursing Care,P03,Wellbeing,STANTON COURT,02/07/2012,750.00,
Bath & North East Somerset Council,80113007,LM6,Nursing Care,P03,Wellbeing,STANTON COURT,02/07/2012,750.00,
Bath & North East Somerset Council,80113007,LM6,Nursing Care,P03,Wellbeing,STANTON COURT,02/07/2012,836.80,
Bath & North East Somerset Council,80113007,LM6,Nursing Care,P03,Wellbeing,STANTON COURT,02/07/2012,836.80,
Bath & North East Somerset Council,80113007,LM6,Nursing Care,P03,Wellbeing,STANTON COURT,02/07/2012,843.09,
Bath & North East Somerset Council,80113007,LM6,Nursing Care,P03,Wellbeing,STANTON COURT,02/07/2012,843.09,
Bath & North East Somerset Council,80113401,LM8,Home Care,P03,Wellbeing,STAR HOME CARE SERVICES LIMITED,02/07/2012,524.03,
Bath & North East Somerset Council,10662187,LJ1,Consultants Fees,P03,Wellbeing,ROBIN COWEN CONSULTANCY LTD,02/07/2012,973.40,
Bath & North East Somerset Council,80112992,LM6,Nursing Care,P03,Wellbeing,SUNNYMEDE LTD,02/07/2012,650.00,
Bath & North East Somerset Council,80112992,LM6,Nursing Care,P03,Wellbeing,SUNNYMEDE LTD,02/07/2012,650.00,
Bath & North East Somerset Council,80113325,LL3,Supported Living,P03,Wellbeing,SUPPORTED INDEPENDENCE,02/07/2012,209.65,
Bath & North East Somerset Council,80113325,LL3,Supported Living,P03,Wellbeing,SUPPORTED INDEPENDENCE,02/07/2012,209.65,
Bath & North East Somerset Council,80113325,LL3,Supported Living,P03,Wellbeing,SUPPORTED INDEPENDENCE,02/07/2012,209.65,
Bath & North East Somerset Council,80113325,LL3,Supported Living,P03,Wellbeing,SUPPORTED INDEPENDENCE,02/07/2012,209.65,
Bath & North East Somerset Council,80113325,LL3,Supported Living,P03,Wellbeing,SUPPORTED INDEPENDENCE,02/07/2012,413.43,
Bath & North East Somerset Council,80113324,LL3,Supported Living,P03,Wellbeing,SUPPORTED INDEPENDENCE,02/07/2012,754.47,
Bath & North East Somerset Council,80113324,LL3,Supported Living,P03,Wellbeing,SUPPORTED INDEPENDENCE,02/07/2012,754.47,
Bath & North East Somerset Council,80113324,LL3,Supported Living,P03,Wellbeing,SUPPORTED INDEPENDENCE,02/07/2012,754.47,
Bath & North East Somerset Council,80113324,LL3,Supported Living,P03,Wellbeing,SUPPORTED INDEPENDENCE,02/07/2012,754.47,
Bath & North East Somerset Council,80113003,LM6,Nursing Care,P03,Wellbeing,T C CAREHOME LTD,02/07/2012,76.57,
Bath & North East Somerset Council,80113003,LM6,Nursing Care,P03,Wellbeing,T C CAREHOME LTD,02/07/2012,153.14,
Bath & North East Somerset Council,80113003,LM6,Nursing Care,P03,Wellbeing,T C CAREHOME LTD,02/07/2012,229.71,
Bath & North East Somerset Council,10664136,HA4,Responsive Maintenance PCB,P07,Community Resources,BEAVER MAINTENANCE LTD,02/07/2012,1029.34,
Bath & North East Somerset Council,80113003,LM6,Nursing Care,P03,Wellbeing,T C CAREHOME LTD,02/07/2012,650.00,
Bath & North East Somerset Council,80113003,LM6,Nursing Care,P03,Wellbeing,T C CAREHOME LTD,02/07/2012,650.00,
Bath & North East Somerset Council,80113003,LM6,Nursing Care,P03,Wellbeing,T C CAREHOME LTD,02/07/2012,675.00,
Bath & North East Somerset Council,80113003,LM6,Nursing Care,P03,Wellbeing,T C CAREHOME LTD,02/07/2012,675.00,
Bath & North East Somerset Council,80113318,LL3,Supported Living,P03,Wellbeing,THE ALZHEIMER'S SOCIETY N.E.SO,02/07/2012,143.36,
Bath & North East Somerset Council,80113318,LL3,Supported Living,P03,Wellbeing,THE ALZHEIMER'S SOCIETY N.E.SO,02/07/2012,143.36,
Bath & North East Somerset Council,80113318,LL3,Supported Living,P03,Wellbeing,THE ALZHEIMER'S SOCIETY N.E.SO,02/07/2012,143.36,
Bath & North East Somerset Council,80113318,LL3,Supported Living,P03,Wellbeing,THE ALZHEIMER'S SOCIETY N.E.SO,02/07/2012,143.36,
Bath & North East Somerset Council,80113462,LE1,Education Payment (independent school),P02,"Early Years, Children & Youth",MID NORTON SCH PART RE NORTON HILL,02/07/2012,28983.27,
Bath & North East Somerset Council,80113464,LE1,Education Payment (independent school),P02,"Early Years, Children & Youth",MID NORTON SCH PART RE SOMERVALE  SCH,02/07/2012,15159.12,
Bath & North East Somerset Council,80113412,LM8,Home Care,P03,Wellbeing,THE CARE BUREAU,02/07/2012,544.00,
Bath & North East Somerset Council,80113412,LM8,Home Care,P03,Wellbeing,THE CARE BUREAU,02/07/2012,680.00,
Bath & North East Somerset Council,80113412,LM8,Home Care,P03,Wellbeing,THE CARE BUREAU,02/07/2012,680.00,
Bath & North East Somerset Council,80113412,LM8,Home Care,P03,Wellbeing,THE CARE BUREAU,02/07/2012,680.00,
Bath & North East Somerset Council,80113412,LM8,Home Care,P03,Wellbeing,THE CARE BUREAU,02/07/2012,680.00,
Bath & North East Somerset Council,10663020,HN1,Electricity,P07,Community Resources,BRITISH GAS - ELECTRICITY,02/07/2012,1256.12,
Bath & North East Somerset Council,10662375,LA3,Equipment Maintenance,P05,Neighbourhoods,TENNANT UK CLEANING SOLUTIONS LTD,02/07/2012,1275.90,
Bath & North East Somerset Council,80113014,LM6,Nursing Care,P03,Wellbeing,THE RUSSETS - SANDFORD STATION,02/07/2012,945.00,
Bath & North East Somerset Council,80113014,LM6,Nursing Care,P03,Wellbeing,THE RUSSETS - SANDFORD STATION,02/07/2012,945.00,
Bath & North East Somerset Council,80113012,LM6,Nursing Care,P03,Wellbeing,THE SUSSEX BEACON,02/07/2012,1400.00,
Bath & North East Somerset Council,80113012,LM6,Nursing Care,P03,Wellbeing,THE SUSSEX BEACON,02/07/2012,1400.00,
Bath & North East Somerset Council,10664055,LH4,Consultation,P07,Community Resources,AIREY CONSULTANCY SERVICES LTD,02/07/2012,1300.00,
Bath & North East Somerset Council,80113253,LL8,Individualised Budget,P03,Wellbeing,REDACTED,02/07/2012,376.55,
Bath & North East Somerset Council,80113253,LL8,Individualised Budget,P03,Wellbeing,REDACTED,02/07/2012,376.55,
Bath & North East Somerset Council,80113016,LM6,Nursing Care,P03,Wellbeing,TRU REHABILITATION UNIT LTD,02/07/2012,2870.00,
Bath & North East Somerset Council,80113016,LM6,Nursing Care,P03,Wellbeing,TRU REHABILITATION UNIT LTD,02/07/2012,2870.00,
Bath & North East Somerset Council,80113365,LL3,Supported Living,P03,Wellbeing,UNITED RESPONSE,02/07/2012,1806.10,
Bath & North East Somerset Council,80113365,LL3,Supported Living,P03,Wellbeing,UNITED RESPONSE,02/07/2012,1806.10,
Bath & North East Somerset Council,80113365,LL3,Supported Living,P03,Wellbeing,UNITED RESPONSE,02/07/2012,1806.10,
Bath & North East Somerset Council,80113365,LL3,Supported Living,P03,Wellbeing,UNITED RESPONSE,02/07/2012,1806.10,
Bath & North East Somerset Council,80113426,LM8,Home Care,P03,Wellbeing,WAY AHEAD COMMUNITY SERVICES LTD,02/07/2012,8.07,
Bath & North East Somerset Council,80113407,LM8,Home Care,P03,Wellbeing,WAY AHEAD COMMUNITY SERVICES LTD,02/07/2012,8.48,
Bath & North East Somerset Council,80113407,LM8,Home Care,P03,Wellbeing,WAY AHEAD COMMUNITY SERVICES LTD,02/07/2012,8.48,
Bath & North East Somerset Council,80113407,LM8,Home Care,P03,Wellbeing,WAY AHEAD COMMUNITY SERVICES LTD,02/07/2012,8.48,
Bath & North East Somerset Council,80113411,LM8,Home Care,P03,Wellbeing,WAY AHEAD COMMUNITY SERVICES LTD,02/07/2012,8.48,
Bath & North East Somerset Council,80113411,LM8,Home Care,P03,Wellbeing,WAY AHEAD COMMUNITY SERVICES LTD,02/07/2012,8.48,
Bath & North East Somerset Council,80113411,LM8,Home Care,P03,Wellbeing,WAY AHEAD COMMUNITY SERVICES LTD,02/07/2012,8.48,
Bath & North East Somerset Council,80113411,LM8,Home Care,P03,Wellbeing,WAY AHEAD COMMUNITY SERVICES LTD,02/07/2012,8.48,
Bath & North East Somerset Council,80113420,LM8,Home Care,P03,Wellbeing,WAY AHEAD COMMUNITY SERVICES LTD,02/07/2012,8.48,
Bath & North East Somerset Council,80113420,LM8,Home Care,P03,Wellbeing,WAY AHEAD COMMUNITY SERVICES LTD,02/07/2012,8.48,
Bath & North East Somerset Council,80113420,LM8,Home Care,P03,Wellbeing,WAY AHEAD COMMUNITY SERVICES LTD,02/07/2012,16.96,
Bath & North East Somerset Council,80113407,LM8,Home Care,P03,Wellbeing,WAY AHEAD COMMUNITY SERVICES LTD,02/07/2012,33.90,
Bath & North East Somerset Council,80113407,LM8,Home Care,P03,Wellbeing,WAY AHEAD COMMUNITY SERVICES LTD,02/07/2012,33.90,
Bath & North East Somerset Council,80113420,LM8,Home Care,P03,Wellbeing,WAY AHEAD COMMUNITY SERVICES LTD,02/07/2012,42.40,
Bath & North East Somerset Council,80113420,LM8,Home Care,P03,Wellbeing,WAY AHEAD COMMUNITY SERVICES LTD,02/07/2012,50.88,
Bath & North East Somerset Council,80113420,LM8,Home Care,P03,Wellbeing,WAY AHEAD COMMUNITY SERVICES LTD,02/07/2012,59.36,
Bath & North East Somerset Council,80113411,LM8,Home Care,P03,Wellbeing,WAY AHEAD COMMUNITY SERVICES LTD,02/07/2012,100.56,
Bath & North East Somerset Council,10663952,LH5,Marketing,P06,Sustainable Development,THIRTY8 DIGITAL LTD,02/07/2012,1620.00,
Bath & North East Somerset Council,10664080,LK1,Fees,P06,Sustainable Development,STRUCTURELLE LTD,02/07/2012,1666.00,
Bath & North East Somerset Council,80113420,LM8,Home Care,P03,Wellbeing,WAY AHEAD COMMUNITY SERVICES LTD,02/07/2012,136.75,
Bath & North East Somerset Council,80113420,LM8,Home Care,P03,Wellbeing,WAY AHEAD COMMUNITY SERVICES LTD,02/07/2012,138.42,
Bath & North East Somerset Council,80113421,LM8,Home Care,P03,Wellbeing,WAY AHEAD COMMUNITY SERVICES LTD,02/07/2012,178.08,
Bath & North East Somerset Council,80113421,LM8,Home Care,P03,Wellbeing,WAY AHEAD COMMUNITY SERVICES LTD,02/07/2012,178.08,
Bath & North East Somerset Council,80113421,LM8,Home Care,P03,Wellbeing,WAY AHEAD COMMUNITY SERVICES LTD,02/07/2012,178.08,
Bath & North East Somerset Council,80113421,LM8,Home Care,P03,Wellbeing,WAY AHEAD COMMUNITY SERVICES LTD,02/07/2012,178.08,
Bath & North East Somerset Council,80113421,LM8,Home Care,P03,Wellbeing,WAY AHEAD COMMUNITY SERVICES LTD,02/07/2012,178.08,
Bath & North East Somerset Council,80113426,LM8,Home Care,P03,Wellbeing,WAY AHEAD COMMUNITY SERVICES LTD,02/07/2012,178.08,
Bath & North East Somerset Council,80113426,LM8,Home Care,P03,Wellbeing,WAY AHEAD COMMUNITY SERVICES LTD,02/07/2012,178.08,
Bath & North East Somerset Council,80113426,LM8,Home Care,P03,Wellbeing,WAY AHEAD COMMUNITY SERVICES LTD,02/07/2012,178.08,
Bath & North East Somerset Council,80113426,LM8,Home Care,P03,Wellbeing,WAY AHEAD COMMUNITY SERVICES LTD,02/07/2012,178.08,
Bath & North East Somerset Council,80113427,LM8,Home Care,P03,Wellbeing,WAY AHEAD COMMUNITY SERVICES LTD,02/07/2012,178.08,
Bath & North East Somerset Council,80113427,LM8,Home Care,P03,Wellbeing,WAY AHEAD COMMUNITY SERVICES LTD,02/07/2012,178.08,
Bath & North East Somerset Council,80113427,LM8,Home Care,P03,Wellbeing,WAY AHEAD COMMUNITY SERVICES LTD,02/07/2012,178.08,
Bath & North East Somerset Council,80113427,LM8,Home Care,P03,Wellbeing,WAY AHEAD COMMUNITY SERVICES LTD,02/07/2012,178.08,
Bath & North East Somerset Council,80113419,LM8,Home Care,P03,Wellbeing,WAY AHEAD COMMUNITY SERVICES LTD,02/07/2012,186.45,
Bath & North East Somerset Council,80113419,LM8,Home Care,P03,Wellbeing,WAY AHEAD COMMUNITY SERVICES LTD,02/07/2012,186.45,
Bath & North East Somerset Council,80113419,LM8,Home Care,P03,Wellbeing,WAY AHEAD COMMUNITY SERVICES LTD,02/07/2012,186.45,
Bath & North East Somerset Council,80113407,LM8,Home Care,P03,Wellbeing,WAY AHEAD COMMUNITY SERVICES LTD,02/07/2012,237.30,
Bath & North East Somerset Council,80113407,LM8,Home Care,P03,Wellbeing,WAY AHEAD COMMUNITY SERVICES LTD,02/07/2012,237.30,
Bath & North East Somerset Council,80113407,LM8,Home Care,P03,Wellbeing,WAY AHEAD COMMUNITY SERVICES LTD,02/07/2012,237.44,
Bath & North East Somerset Council,80113407,LM8,Home Care,P03,Wellbeing,WAY AHEAD COMMUNITY SERVICES LTD,02/07/2012,237.44,
Bath & North East Somerset Council,80113419,LM8,Home Care,P03,Wellbeing,WAY AHEAD COMMUNITY SERVICES LTD,02/07/2012,276.84,
Bath & North East Somerset Council,80113419,LM8,Home Care,P03,Wellbeing,WAY AHEAD COMMUNITY SERVICES LTD,02/07/2012,276.84,
Bath & North East Somerset Council,80113419,LM8,Home Care,P03,Wellbeing,WAY AHEAD COMMUNITY SERVICES LTD,02/07/2012,276.84,
Bath & North East Somerset Council,80113420,LM8,Home Care,P03,Wellbeing,WAY AHEAD COMMUNITY SERVICES LTD,02/07/2012,276.84,
Bath & North East Somerset Council,80113407,LM8,Home Care,P03,Wellbeing,WAY AHEAD COMMUNITY SERVICES LTD,02/07/2012,320.92,
Bath & North East Somerset Council,80113407,LM8,Home Care,P03,Wellbeing,WAY AHEAD COMMUNITY SERVICES LTD,02/07/2012,474.88,
Bath & North East Somerset Council,80113407,LM8,Home Care,P03,Wellbeing,WAY AHEAD COMMUNITY SERVICES LTD,02/07/2012,474.88,
Bath & North East Somerset Council,80113407,LM8,Home Care,P03,Wellbeing,WAY AHEAD COMMUNITY SERVICES LTD,02/07/2012,474.88,
Bath & North East Somerset Council,80113411,LM8,Home Care,P03,Wellbeing,WAY AHEAD COMMUNITY SERVICES LTD,02/07/2012,474.88,
Bath & North East Somerset Council,80113411,LM8,Home Care,P03,Wellbeing,WAY AHEAD COMMUNITY SERVICES LTD,02/07/2012,474.88,
Bath & North East Somerset Council,80113411,LM8,Home Care,P03,Wellbeing,WAY AHEAD COMMUNITY SERVICES LTD,02/07/2012,474.88,
Bath & North East Somerset Council,80113411,LM8,Home Care,P03,Wellbeing,WAY AHEAD COMMUNITY SERVICES LTD,02/07/2012,474.88,
Bath & North East Somerset Council,80113018,LM6,Nursing Care,P03,Wellbeing,WESTCROFT CARE LTD,02/07/2012,610.20,
Bath & North East Somerset Council,80113018,LM6,Nursing Care,P03,Wellbeing,WESTCROFT CARE LTD,02/07/2012,610.20,
Bath & North East Somerset Council,80113018,LM6,Nursing Care,P03,Wellbeing,WESTCROFT CARE LTD,02/07/2012,711.90,
Bath & North East Somerset Council,80113018,LM6,Nursing Care,P03,Wellbeing,WESTCROFT CARE LTD,02/07/2012,711.90,
Bath & North East Somerset Council,80113006,LM6,Nursing Care,P03,Wellbeing,WESTMINSTER HEALTHCARE LTD,02/07/2012,966.15,
Bath & North East Somerset Council,80113006,LM6,Nursing Care,P03,Wellbeing,WESTMINSTER HEALTHCARE LTD,02/07/2012,966.15,
Bath & North East Somerset Council,10663020,HN1,Electricity,P05,Neighbourhoods,BRITISH GAS - ELECTRICITY,02/07/2012,3209.24,
Bath & North East Somerset Council,10664089,LM3,Residential Care,P03,Wellbeing,SOUTH GLOUCESTERSHIRE COUNCIL,02/07/2012,3246.40,
Bath & North East Somerset Council,10664098,LP5,Software Support,P06,Sustainable Development,ARTIFAX SOFTWARE LIMITED,02/07/2012,4916.96,
Bath & North East Somerset Council,10663838,3F7,External Fees,P07,Community Resources,ASHURST,02/07/2012,4977.77,
Bath & North East Somerset Council,10664085,PA2,Payments to Other Local Authorities,P02,"Early Years, Children & Youth",SWINDON BOROUGH COUNCIL,02/07/2012,5280.00,
Bath & North East Somerset Council,10664135,HA4,Responsive Maintenance PCB,P07,Community Resources,BEAVER MAINTENANCE LTD,02/07/2012,7915.00,
Bath & North East Somerset Council,80113459,LE1,Education Payment (independent school),P02,"Early Years, Children & Youth",TRINITY C OF E ACADEMY TRUST,02/07/2012,9828.37,
Bath & North East Somerset Council,10664044,LJ4,Contracts,P06,Sustainable Development,NATURAL THEATRE COMPANY,02/07/2012,10010.00,
Bath & North East Somerset Council,80113463,LE1,Education Payment (independent school),P02,"Early Years, Children & Youth",OLDFIELD SCHOOL MAIN BANK A/C,02/07/2012,11902.22,
Bath & North East Somerset Council,80113461,LE1,Education Payment (independent school),P02,"Early Years, Children & Youth",HAYESFIELD SCHOOL,02/07/2012,14395.02,
Bath & North East Somerset Council,80113460,LE1,Education Payment (independent school),P02,"Early Years, Children & Youth",BEECHEN CLIFF SCHOOL,02/07/2012,27944.42,
Bath & North East Somerset Council,10664070,LK1,Fees,P02,"Early Years, Children & Youth",NORTON RADSTOCK COLLEGE,02/07/2012,28146.00,
Bath & North East Somerset Council,80113123,LL8,Individualised Budget,P03,Wellbeing,REDACTED,02/07/2012,1696.43,
Bath & North East Somerset Council,80113123,LL8,Individualised Budget,P03,Wellbeing,REDACTED,02/07/2012,1696.43,
Bath & North East Somerset Council,80113297,LL8,Individualised Budget,P03,Wellbeing,REDACTED,02/07/2012,259.58,
Bath & North East Somerset Council,80113297,LL8,Individualised Budget,P03,Wellbeing,REDACTED,02/07/2012,259.58,
Bath & North East Somerset Council,10660311,3C4,Building Works,P01,Transport,C H CONTRACTING (SOUTH WEST) LTD,02/07/2012,80542.68,
Bath & North East Somerset Council,80113465,LE1,Education Payment (independent school),P02,"Early Years, Children & Youth",WELLSWAY SCHOOL LTD,02/07/2012,20005.83,
Bath & North East Somerset Council,80113466,LE1,Education Payment (independent school),P02,"Early Years, Children & Youth",WRITHLINGTON SCHOOL ACADEMY TRUST LTD,02/07/2012,29790.96,
Bath & North East Somerset Council,10664247,LA1,Equipment Purchase,P05,Neighbourhoods,K.I.T. CO,03/07/2012,74.45,
Bath & North East Somerset Council,10664247,LD1,Protective & Safety Clothing,P05,Neighbourhoods,K.I.T. CO,03/07/2012,118.35,
Bath & North East Somerset Council,10663752,3F7,External Fees,P02,"Early Years, Children & Youth",MACE LIMITED,03/07/2012,416.67,
Bath & North East Somerset Council,10663753,3F7,External Fees,P02,"Early Years, Children & Youth",MACE LIMITED,03/07/2012,416.67,
Bath & North East Somerset Council,10663754,3F7,External Fees,P02,"Early Years, Children & Youth",MACE LIMITED,03/07/2012,416.67,
Bath & North East Somerset Council,10663762,3F7,External Fees,P02,"Early Years, Children & Youth",MACE LIMITED,03/07/2012,416.67,
Bath & North East Somerset Council,10663837,3F7,External Fees,P02,"Early Years, Children & Youth",MACE LIMITED,03/07/2012,416.67,
Bath & North East Somerset Council,10664160,LA4,Equipment Hire/Rent,P07,Community Resources,WEST COUNTRY VENDING SERV. LTD,03/07/2012,419.62,
Bath & North East Somerset Council,10664247,LD1,Protective & Safety Clothing,P05,Neighbourhoods,K.I.T. CO,03/07/2012,449.00,
Bath & North East Somerset Council,10664208,LD1,Protective & Safety Clothing,P05,Neighbourhoods,ASKAS,03/07/2012,594.18,
Bath & North East Somerset Council,10664048,LK1,Fees,P02,"Early Years, Children & Youth",COMBE DOWN HOLIDAY TRUST,03/07/2012,4000.00,
Bath & North East Somerset Council,10664048,LK1,Fees,P02,"Early Years, Children & Youth",COMBE DOWN HOLIDAY TRUST,03/07/2012,8026.00,
Bath & North East Somerset Council,10664276,LJ4,Contracts,P05,Neighbourhoods,WORCESTERSHIRE COUNTY COUNCIL,03/07/2012,634.65,
Bath & North East Somerset Council,10664222,LM6,Nursing Care,P03,Wellbeing,REDACTED,03/07/2012,4800.00,
Bath & North East Somerset Council,10664213,LK1,Fees,P05,Neighbourhoods,MR C A HUNT,03/07/2012,658.00,
Bath & North East Somerset Council,80113493,LK4,Nursery/Childcare Vouchers,P02,"Early Years, Children & Youth",NORLAND COLLEGE,03/07/2012,664.30,
Bath & North East Somerset Council,80113494,LK4,Nursery/Childcare Vouchers,P02,"Early Years, Children & Youth",LAUREL FARM KINDERGARTEN,03/07/2012,692.25,
Bath & North East Somerset Council,10664269,LF1,Printing/Design,P05,Neighbourhoods,OPALPRINT,03/07/2012,700.00,
Bath & North East Somerset Council,80113470,LK4,Nursery/Childcare Vouchers,P02,"Early Years, Children & Youth",SNAPDRAGONS NURSERY,03/07/2012,711.75,
Bath & North East Somerset Council,80113490,LK4,Nursery/Childcare Vouchers,P02,"Early Years, Children & Youth",FARMBOROUGH PLAYGROUP,03/07/2012,777.45,
Bath & North East Somerset Council,10661753,HK1,Highway Maintenance,P01,Transport,STANTON DREW PARISH COUNCIL,03/07/2012,787.45,
Bath & North East Somerset Council,80113501,LK4,Nursery/Childcare Vouchers,P02,"Early Years, Children & Youth",PETER PAN PLAYGROUP,03/07/2012,820.05,
Bath & North East Somerset Council,10664259,LA4,Equipment Hire/Rent,P05,Neighbourhoods,NATIONWIDE PLATFORMS,03/07/2012,858.00,
Bath & North East Somerset Council,10663537,EA1,Training,P04,Leader,DEBBIE CLARK CONSULTING LTD,03/07/2012,875.00,
Bath & North East Somerset Council,80113482,LK4,Nursery/Childcare Vouchers,P02,"Early Years, Children & Youth",YMCA DAY NURSERY,03/07/2012,903.38,
Bath & North East Somerset Council,80113488,LK4,Nursery/Childcare Vouchers,P02,"Early Years, Children & Youth",SNAPDRAGONS NURSERY,03/07/2012,969.08,
Bath & North East Somerset Council,80113487,LK4,Nursery/Childcare Vouchers,P02,"Early Years, Children & Youth",STEPPING STONES PLAYGROUP,03/07/2012,1139.55,
Bath & North East Somerset Council,80113476,LK4,Nursery/Childcare Vouchers,P02,"Early Years, Children & Youth",UBLEY PRE-SCHOOL,03/07/2012,1192.80,
Bath & North East Somerset Council,10663642,KD2,Car Allowances/Mileage,P04,Leader,N WASHBOURNE PERSONAL DRIVER,03/07/2012,1410.00,
Bath & North East Somerset Council,80113469,LK4,Nursery/Childcare Vouchers,P02,"Early Years, Children & Youth",PINOCCHIO DAY NURSERY,03/07/2012,1423.50,
Bath & North East Somerset Council,10664186,LA3,Equipment Maintenance,P05,Neighbourhoods,MDRC,03/07/2012,1567.65,
Bath & North East Somerset Council,10664210,DB1,Agency Staff,P06,Sustainable Development,IAN JAMIESON ASSOCIATES LTD,03/07/2012,3044.40,
Bath & North East Somerset Council,10662441,LJ1,Consultants Fees,P02,"Early Years, Children & Youth",RHONA MACDONALD,03/07/2012,3510.00,
Bath & North East Somerset Council,80113491,LK4,Nursery/Childcare Vouchers,P02,"Early Years, Children & Youth",COMBE DOWN NURSERY,03/07/2012,3618.98,
Bath & North East Somerset Council,10664264,3F7,External Fees,P02,"Early Years, Children & Youth",ISG PEARCE LTD,03/07/2012,39400.00,
Bath & North East Somerset Council,10663730,PA3,Payments to Health Authorities,P02,"Early Years, Children & Youth",NHS BATH AND NORTH EAST SOMERSET,03/07/2012,98000.00,
Bath & North East Somerset Council,10671211,LM6,Nursing Care,P03,Wellbeing,BUPACARE SERVICE BACS RECEIPTS,03/07/2012,163.27,
Bath & North East Somerset Council,10671211,LM6,Nursing Care,P03,Wellbeing,BUPACARE SERVICE BACS RECEIPTS,03/07/2012,571.46,
Bath & North East Somerset Council,10671211,LM6,Nursing Care,P03,Wellbeing,BUPACARE SERVICE BACS RECEIPTS,03/07/2012,571.46,
Bath & North East Somerset Council,10671212,LM3,Residential Care,P03,Wellbeing,COUNTY FUND ACCOUNT REDACTED,03/07/2012,123.8,
Bath & North East Somerset Council,10671212,LM3,Residential Care,P03,Wellbeing,COUNTY FUND ACCOUNT REDACTED,03/07/2012,433.29,
Bath & North East Somerset Council,10671212,LM3,Residential Care,P03,Wellbeing,COUNTY FUND ACCOUNT REDACTED,03/07/2012,433.29,
Bath & North East Somerset Council,10671212,LM3,Residential Care,P03,Wellbeing,COUNTY FUND ACCOUNT REDACTED,03/07/2012,433.29,
Bath & North East Somerset Council,80113686,LM3,Residential Care,P03,Wellbeing,6 THE AVENUE -KEYNSHAM MENCAP,04/07/2012,577.87,
Bath & North East Somerset Council,80113686,LM3,Residential Care,P03,Wellbeing,6 THE AVENUE -KEYNSHAM MENCAP,04/07/2012,577.87,
Bath & North East Somerset Council,80113686,LM3,Residential Care,P03,Wellbeing,6 THE AVENUE -KEYNSHAM MENCAP,04/07/2012,577.87,
Bath & North East Somerset Council,80113686,LM3,Residential Care,P03,Wellbeing,6 THE AVENUE -KEYNSHAM MENCAP,04/07/2012,577.87,
Bath & North East Somerset Council,80113686,LM3,Residential Care,P03,Wellbeing,6 THE AVENUE -KEYNSHAM MENCAP,04/07/2012,577.87,
Bath & North East Somerset Council,80113686,LM3,Residential Care,P03,Wellbeing,6 THE AVENUE -KEYNSHAM MENCAP,04/07/2012,577.87,
Bath & North East Somerset Council,80113686,LM3,Residential Care,P03,Wellbeing,6 THE AVENUE -KEYNSHAM MENCAP,04/07/2012,577.87,
Bath & North East Somerset Council,80113686,LM3,Residential Care,P03,Wellbeing,6 THE AVENUE -KEYNSHAM MENCAP,04/07/2012,577.87,
Bath & North East Somerset Council,80113686,LM3,Residential Care,P03,Wellbeing,6 THE AVENUE -KEYNSHAM MENCAP,04/07/2012,577.87,
Bath & North East Somerset Council,80113686,LM3,Residential Care,P03,Wellbeing,6 THE AVENUE -KEYNSHAM MENCAP,04/07/2012,577.87,
Bath & North East Somerset Council,80113686,LM3,Residential Care,P03,Wellbeing,6 THE AVENUE -KEYNSHAM MENCAP,04/07/2012,971.93,
Bath & North East Somerset Council,80113686,LM3,Residential Care,P03,Wellbeing,6 THE AVENUE -KEYNSHAM MENCAP,04/07/2012,971.93,
Bath & North East Somerset Council,80113686,LM3,Residential Care,P03,Wellbeing,6 THE AVENUE -KEYNSHAM MENCAP,04/07/2012,971.93,
Bath & North East Somerset Council,80113686,LM3,Residential Care,P03,Wellbeing,6 THE AVENUE -KEYNSHAM MENCAP,04/07/2012,971.93,
Bath & North East Somerset Council,80113800,LM2,Foster Carer Allowances,P02,"Early Years, Children & Youth",REDACTED,04/07/2012,860.00,
Bath & North East Somerset Council,80095771,LM6,Nursing Care,P03,Wellbeing,ADIEMUS CARE LTD - T/A WICKWAR,04/07/2012,536.00,
Bath & North East Somerset Council,80095771,LM6,Nursing Care,P03,Wellbeing,ADIEMUS CARE LTD - T/A WICKWAR,04/07/2012,536.00,
Bath & North East Somerset Council,80099956,LM6,Nursing Care,P03,Wellbeing,ADIEMUS CARE LTD - T/A WICKWAR,04/07/2012,536.00,
Bath & North East Somerset Council,80099956,LM6,Nursing Care,P03,Wellbeing,ADIEMUS CARE LTD - T/A WICKWAR,04/07/2012,536.00,
Bath & North East Somerset Council,80104629,LM6,Nursing Care,P03,Wellbeing,ADIEMUS CARE LTD - T/A WICKWAR,04/07/2012,536.00,
Bath & North East Somerset Council,80104629,LM6,Nursing Care,P03,Wellbeing,ADIEMUS CARE LTD - T/A WICKWAR,04/07/2012,536.00,
Bath & North East Somerset Council,80108963,LM6,Nursing Care,P03,Wellbeing,ADIEMUS CARE LTD - T/A WICKWAR,04/07/2012,536.00,
Bath & North East Somerset Council,80108963,LM6,Nursing Care,P03,Wellbeing,ADIEMUS CARE LTD - T/A WICKWAR,04/07/2012,536.00,
Bath & North East Somerset Council,80113649,LM6,Nursing Care,P03,Wellbeing,ADIEMUS CARE LTD - T/A WICKWAR,04/07/2012,536.00,
Bath & North East Somerset Council,80113649,LM6,Nursing Care,P03,Wellbeing,ADIEMUS CARE LTD - T/A WICKWAR,04/07/2012,536.00,
Bath & North East Somerset Council,80113578,LM3,Residential Care,P03,Wellbeing,ALPINE VILLA CARE HOME LTD,04/07/2012,700.00,
Bath & North East Somerset Council,80113578,LM3,Residential Care,P03,Wellbeing,ALPINE VILLA CARE HOME LTD,04/07/2012,700.00,
Bath & North East Somerset Council,80113627,LM3,Residential Care,P03,Wellbeing,AMBER CARE LTD T/A BRYN EDWIN HALL,04/07/2012,481.91,
Bath & North East Somerset Council,80113627,LM3,Residential Care,P03,Wellbeing,AMBER CARE LTD T/A BRYN EDWIN HALL,04/07/2012,481.91,
Bath & North East Somerset Council,80113704,LM3,Residential Care,P03,Wellbeing,ANCHOR TRUST,04/07/2012,425.00,
Bath & North East Somerset Council,80113704,LM3,Residential Care,P03,Wellbeing,ANCHOR TRUST,04/07/2012,425.00,
Bath & North East Somerset Council,80113704,LM3,Residential Care,P03,Wellbeing,ANCHOR TRUST,04/07/2012,425.00,
Bath & North East Somerset Council,80113704,LM3,Residential Care,P03,Wellbeing,ANCHOR TRUST,04/07/2012,425.00,
Bath & North East Somerset Council,80113704,LM3,Residential Care,P03,Wellbeing,ANCHOR TRUST,04/07/2012,425.00,
Bath & North East Somerset Council,80113704,LM3,Residential Care,P03,Wellbeing,ANCHOR TRUST,04/07/2012,425.00,
Bath & North East Somerset Council,80113704,LM3,Residential Care,P03,Wellbeing,ANCHOR TRUST,04/07/2012,515.45,
Bath & North East Somerset Council,80113704,LM3,Residential Care,P03,Wellbeing,ANCHOR TRUST,04/07/2012,515.45,
Bath & North East Somerset Council,80113704,LM3,Residential Care,P03,Wellbeing,ANCHOR TRUST,04/07/2012,550.00,
Bath & North East Somerset Council,80113704,LM3,Residential Care,P03,Wellbeing,ANCHOR TRUST,04/07/2012,550.00,
Bath & North East Somerset Council,80113704,LM3,Residential Care,P03,Wellbeing,ANCHOR TRUST,04/07/2012,550.00,
Bath & North East Somerset Council,80113704,LM3,Residential Care,P03,Wellbeing,ANCHOR TRUST,04/07/2012,550.00,
Bath & North East Somerset Council,80113704,LM6,Nursing Care,P03,Wellbeing,ANCHOR TRUST,04/07/2012,575.00,
Bath & North East Somerset Council,80113704,LM6,Nursing Care,P03,Wellbeing,ANCHOR TRUST,04/07/2012,575.00,
Bath & North East Somerset Council,80113704,LM3,Residential Care,P03,Wellbeing,ANCHOR TRUST,04/07/2012,701.95,
Bath & North East Somerset Council,80113704,LM3,Residential Care,P03,Wellbeing,ANCHOR TRUST,04/07/2012,701.95,
Bath & North East Somerset Council,10663616,LN4,Mobile Phones,P04,Leader,ORANGE PERSONAL COMMUNICATION,04/07/2012,37.45,
Bath & North East Somerset Council,80113568,LM3,Residential Care,P03,Wellbeing,ARTI SERVICES LTD T/A THE MANOR FARM HOUSE,04/07/2012,425.00,
Bath & North East Somerset Council,80113568,LM3,Residential Care,P03,Wellbeing,ARTI SERVICES LTD T/A THE MANOR FARM HOUSE,04/07/2012,425.00,
Bath & North East Somerset Council,80113568,LM3,Residential Care,P03,Wellbeing,ARTI SERVICES LTD T/A THE MANOR FARM HOUSE,04/07/2012,425.00,
Bath & North East Somerset Council,80113568,LM3,Residential Care,P03,Wellbeing,ARTI SERVICES LTD T/A THE MANOR FARM HOUSE,04/07/2012,425.00,
Bath & North East Somerset Council,80113568,LM3,Residential Care,P03,Wellbeing,ARTI SERVICES LTD T/A THE MANOR FARM HOUSE,04/07/2012,461.00,
Bath & North East Somerset Council,80113568,LM3,Residential Care,P03,Wellbeing,ARTI SERVICES LTD T/A THE MANOR FARM HOUSE,04/07/2012,461.00,
Bath & North East Somerset Council,80113568,LM3,Residential Care,P03,Wellbeing,ARTI SERVICES LTD T/A THE MANOR FARM HOUSE,04/07/2012,461.00,
Bath & North East Somerset Council,80113568,LM3,Residential Care,P03,Wellbeing,ARTI SERVICES LTD T/A THE MANOR FARM HOUSE,04/07/2012,461.00,
Bath & North East Somerset Council,80113568,LM3,Residential Care,P03,Wellbeing,ARTI SERVICES LTD T/A THE MANOR FARM HOUSE,04/07/2012,461.00,
Bath & North East Somerset Council,80113568,LM3,Residential Care,P03,Wellbeing,ARTI SERVICES LTD T/A THE MANOR FARM HOUSE,04/07/2012,461.00,
Bath & North East Somerset Council,80113568,LM3,Residential Care,P03,Wellbeing,ARTI SERVICES LTD T/A THE MANOR FARM HOUSE,04/07/2012,461.00,
Bath & North East Somerset Council,80113568,LM3,Residential Care,P03,Wellbeing,ARTI SERVICES LTD T/A THE MANOR FARM HOUSE,04/07/2012,461.00,
Bath & North East Somerset Council,80113568,LM3,Residential Care,P03,Wellbeing,ARTI SERVICES LTD T/A THE MANOR FARM HOUSE,04/07/2012,461.00,
Bath & North East Somerset Council,80113568,LM3,Residential Care,P03,Wellbeing,ARTI SERVICES LTD T/A THE MANOR FARM HOUSE,04/07/2012,461.00,
Bath & North East Somerset Council,80113568,LM3,Residential Care,P03,Wellbeing,ARTI SERVICES LTD T/A THE MANOR FARM HOUSE,04/07/2012,461.00,
Bath & North East Somerset Council,80113568,LM3,Residential Care,P03,Wellbeing,ARTI SERVICES LTD T/A THE MANOR FARM HOUSE,04/07/2012,461.00,
Bath & North East Somerset Council,80113707,LM3,Residential Care,P03,Wellbeing,ASPECTS & MILESTONES TRUST,04/07/2012,210.12,
Bath & North East Somerset Council,80113707,LM3,Residential Care,P03,Wellbeing,ASPECTS & MILESTONES TRUST,04/07/2012,210.12,
Bath & North East Somerset Council,80113707,LM3,Residential Care,P03,Wellbeing,ASPECTS & MILESTONES TRUST,04/07/2012,210.12,
Bath & North East Somerset Council,80113707,LM3,Residential Care,P03,Wellbeing,ASPECTS & MILESTONES TRUST,04/07/2012,210.12,
Bath & North East Somerset Council,80113707,LM3,Residential Care,P03,Wellbeing,ASPECTS & MILESTONES TRUST,04/07/2012,210.12,
Bath & North East Somerset Council,80113707,LM3,Residential Care,P03,Wellbeing,ASPECTS & MILESTONES TRUST,04/07/2012,210.12,
Bath & North East Somerset Council,80113707,LM3,Residential Care,P03,Wellbeing,ASPECTS & MILESTONES TRUST,04/07/2012,210.12,
Bath & North East Somerset Council,80113707,LM3,Residential Care,P03,Wellbeing,ASPECTS & MILESTONES TRUST,04/07/2012,630.36,
Bath & North East Somerset Council,80113707,LM3,Residential Care,P03,Wellbeing,ASPECTS & MILESTONES TRUST,04/07/2012,630.36,
Bath & North East Somerset Council,80113707,LM3,Residential Care,P03,Wellbeing,ASPECTS & MILESTONES TRUST,04/07/2012,630.36,
Bath & North East Somerset Council,80113707,LM3,Residential Care,P03,Wellbeing,ASPECTS & MILESTONES TRUST,04/07/2012,630.36,
Bath & North East Somerset Council,80113707,LM3,Residential Care,P03,Wellbeing,ASPECTS & MILESTONES TRUST,04/07/2012,630.36,
Bath & North East Somerset Council,80113707,LM3,Residential Care,P03,Wellbeing,ASPECTS & MILESTONES TRUST,04/07/2012,630.36,
Bath & North East Somerset Council,80113707,LM3,Residential Care,P03,Wellbeing,ASPECTS & MILESTONES TRUST,04/07/2012,630.36,
Bath & North East Somerset Council,80113705,LM3,Residential Care,P03,Wellbeing,ASPECTS & MILESTONES TRUST,04/07/2012,843.17,
Bath & North East Somerset Council,80113705,LM3,Residential Care,P03,Wellbeing,ASPECTS & MILESTONES TRUST,04/07/2012,843.17,
Bath & North East Somerset Council,80113711,LM3,Residential Care,P03,Wellbeing,ASPECTS & MILESTONES TRUST,04/07/2012,886.06,
Bath & North East Somerset Council,80113711,LM3,Residential Care,P03,Wellbeing,ASPECTS & MILESTONES TRUST,04/07/2012,886.06,
Bath & North East Somerset Council,80113710,LM6,Nursing Care,P03,Wellbeing,ASPECTS & MILESTONES TRUST,04/07/2012,1423.09,
Bath & North East Somerset Council,80113710,LM6,Nursing Care,P03,Wellbeing,ASPECTS & MILESTONES TRUST,04/07/2012,1423.09,
Bath & North East Somerset Council,80113706,LM3,Residential Care,P03,Wellbeing,ASPECTS & MILESTONES TRUST,04/07/2012,1877.25,
Bath & North East Somerset Council,80113706,LM3,Residential Care,P03,Wellbeing,ASPECTS & MILESTONES TRUST,04/07/2012,1877.25,
Bath & North East Somerset Council,80113708,LM3,Residential Care,P03,Wellbeing,ASPECTS & MILESTONES TRUST,04/07/2012,2202.48,
Bath & North East Somerset Council,80113708,LM3,Residential Care,P03,Wellbeing,ASPECTS & MILESTONES TRUST,04/07/2012,2202.48,
Bath & North East Somerset Council,80113708,LM3,Residential Care,P03,Wellbeing,ASPECTS & MILESTONES TRUST,04/07/2012,2508.64,
Bath & North East Somerset Council,80113708,LM3,Residential Care,P03,Wellbeing,ASPECTS & MILESTONES TRUST,04/07/2012,2508.64,
Bath & North East Somerset Council,80113515,LM3,Residential Care,P03,Wellbeing,ATLAS PROJECT TEAM LTD IN ADMINISTRATIO,04/07/2012,1370.28,
Bath & North East Somerset Council,80113515,LM3,Residential Care,P03,Wellbeing,ATLAS PROJECT TEAM LTD IN ADMINISTRATIO,04/07/2012,1370.28,
Bath & North East Somerset Council,80113534,LM3,Residential Care,P03,Wellbeing,AUTISM SPECIALISED CARE HOMES LTD,04/07/2012,1284.26,
Bath & North East Somerset Council,80113534,LM3,Residential Care,P03,Wellbeing,AUTISM SPECIALISED CARE HOMES LTD,04/07/2012,1284.26,
Bath & North East Somerset Council,80113598,LM3,Residential Care,P03,Wellbeing,AVERY HOMES BRISTOL LIMITED,04/07/2012,461.00,
Bath & North East Somerset Council,80113598,LM3,Residential Care,P03,Wellbeing,AVERY HOMES BRISTOL LIMITED,04/07/2012,461.00,
Bath & North East Somerset Council,80113642,LM3,Residential Care,P03,Wellbeing,AVERY HOMES CHIPPENHAM,04/07/2012,536.00,
Bath & North East Somerset Council,80113642,LM3,Residential Care,P03,Wellbeing,AVERY HOMES CHIPPENHAM,04/07/2012,536.00,
Bath & North East Somerset Council,80113635,LM3,Residential Care,P03,Wellbeing,AVONPARK VILLAGE (CARE HOMES) LTD,04/07/2012,425.00,
Bath & North East Somerset Council,80113635,LM3,Residential Care,P03,Wellbeing,AVONPARK VILLAGE (CARE HOMES) LTD,04/07/2012,425.00,
Bath & North East Somerset Council,80113634,LM3,Residential Care,P03,Wellbeing,AVONPARK VILLAGE (CARE HOMES) LTD,04/07/2012,452.00,
Bath & North East Somerset Council,80113634,LM3,Residential Care,P03,Wellbeing,AVONPARK VILLAGE (CARE HOMES) LTD,04/07/2012,452.00,
Bath & North East Somerset Council,80113536,LM6,Nursing Care,P03,Wellbeing,BARCHESTER HEALTHCARE,04/07/2012,700.00,
Bath & North East Somerset Council,80113536,LM6,Nursing Care,P03,Wellbeing,BARCHESTER HEALTHCARE,04/07/2012,700.00,
Bath & North East Somerset Council,80113674,YF2,Fees & Charges,P03,Wellbeing,BARCHESTER HEALTHCARE HOMES LTD,04/07/2012,118.14,
Bath & North East Somerset Council,80113674,YF2,Fees & Charges,P03,Wellbeing,BARCHESTER HEALTHCARE HOMES LTD,04/07/2012,118.14,
Bath & North East Somerset Council,80113674,YF2,Fees & Charges,P03,Wellbeing,BARCHESTER HEALTHCARE HOMES LTD,04/07/2012,118.14,
Bath & North East Somerset Council,80113674,YF2,Fees & Charges,P03,Wellbeing,BARCHESTER HEALTHCARE HOMES LTD,04/07/2012,118.14,
Bath & North East Somerset Council,80113674,YF2,Fees & Charges,P03,Wellbeing,BARCHESTER HEALTHCARE HOMES LTD,04/07/2012,118.14,
Bath & North East Somerset Council,80113674,YF2,Fees & Charges,P03,Wellbeing,BARCHESTER HEALTHCARE HOMES LTD,04/07/2012,118.14,
Bath & North East Somerset Council,80113674,YF2,Fees & Charges,P03,Wellbeing,BARCHESTER HEALTHCARE HOMES LTD,04/07/2012,118.14,
Bath & North East Somerset Council,80113674,YF2,Fees & Charges,P03,Wellbeing,BARCHESTER HEALTHCARE HOMES LTD,04/07/2012,118.14,
Bath & North East Somerset Council,80113674,YF2,Fees & Charges,P03,Wellbeing,BARCHESTER HEALTHCARE HOMES LTD,04/07/2012,118.14,
Bath & North East Somerset Council,80113674,YF2,Fees & Charges,P03,Wellbeing,BARCHESTER HEALTHCARE HOMES LTD,04/07/2012,118.14,
Bath & North East Somerset Council,80113674,YF2,Fees & Charges,P03,Wellbeing,BARCHESTER HEALTHCARE HOMES LTD,04/07/2012,118.14,
Bath & North East Somerset Council,80113674,YF2,Fees & Charges,P03,Wellbeing,BARCHESTER HEALTHCARE HOMES LTD,04/07/2012,216.28,
Bath & North East Somerset Council,80113674,YF2,Fees & Charges,P03,Wellbeing,BARCHESTER HEALTHCARE HOMES LTD,04/07/2012,216.28,
Bath & North East Somerset Council,80113674,YF2,Fees & Charges,P03,Wellbeing,BARCHESTER HEALTHCARE HOMES LTD,04/07/2012,216.28,
Bath & North East Somerset Council,80113674,YF2,Fees & Charges,P03,Wellbeing,BARCHESTER HEALTHCARE HOMES LTD,04/07/2012,216.28,
Bath & North East Somerset Council,80113674,YF2,Fees & Charges,P03,Wellbeing,BARCHESTER HEALTHCARE HOMES LTD,04/07/2012,221.40,
Bath & North East Somerset Council,80113674,YF2,Fees & Charges,P03,Wellbeing,BARCHESTER HEALTHCARE HOMES LTD,04/07/2012,221.40,
Bath & North East Somerset Council,80113674,YF2,Fees & Charges,P03,Wellbeing,BARCHESTER HEALTHCARE HOMES LTD,04/07/2012,221.40,
Bath & North East Somerset Council,80113674,YF2,Fees & Charges,P03,Wellbeing,BARCHESTER HEALTHCARE HOMES LTD,04/07/2012,221.40,
Bath & North East Somerset Council,80113674,YF2,Fees & Charges,P03,Wellbeing,BARCHESTER HEALTHCARE HOMES LTD,04/07/2012,221.40,
Bath & North East Somerset Council,80113674,YF2,Fees & Charges,P03,Wellbeing,BARCHESTER HEALTHCARE HOMES LTD,04/07/2012,221.40,
Bath & North East Somerset Council,80113674,YF2,Fees & Charges,P03,Wellbeing,BARCHESTER HEALTHCARE HOMES LTD,04/07/2012,221.40,
Bath & North East Somerset Council,80113674,YF2,Fees & Charges,P03,Wellbeing,BARCHESTER HEALTHCARE HOMES LTD,04/07/2012,221.40,
Bath & North East Somerset Council,80113674,YF2,Fees & Charges,P03,Wellbeing,BARCHESTER HEALTHCARE HOMES LTD,04/07/2012,221.40,
Bath & North East Somerset Council,80113674,YF2,Fees & Charges,P03,Wellbeing,BARCHESTER HEALTHCARE HOMES LTD,04/07/2012,221.40,
Bath & North East Somerset Council,80113674,YF2,Fees & Charges,P03,Wellbeing,BARCHESTER HEALTHCARE HOMES LTD,04/07/2012,221.40,
Bath & North East Somerset Council,80113674,YF2,Fees & Charges,P03,Wellbeing,BARCHESTER HEALTHCARE HOMES LTD,04/07/2012,265.58,
Bath & North East Somerset Council,80113674,YF2,Fees & Charges,P03,Wellbeing,BARCHESTER HEALTHCARE HOMES LTD,04/07/2012,265.58,
Bath & North East Somerset Council,80113674,YF2,Fees & Charges,P03,Wellbeing,BARCHESTER HEALTHCARE HOMES LTD,04/07/2012,265.58,
Bath & North East Somerset Council,80113674,YF2,Fees & Charges,P03,Wellbeing,BARCHESTER HEALTHCARE HOMES LTD,04/07/2012,265.58,
Bath & North East Somerset Council,80113674,LM3,Residential Care,P03,Wellbeing,BARCHESTER HEALTHCARE HOMES LTD,04/07/2012,425.00,
Bath & North East Somerset Council,80113674,LM3,Residential Care,P03,Wellbeing,BARCHESTER HEALTHCARE HOMES LTD,04/07/2012,425.00,
Bath & North East Somerset Council,80113674,LM3,Residential Care,P03,Wellbeing,BARCHESTER HEALTHCARE HOMES LTD,04/07/2012,425.00,
Bath & North East Somerset Council,80113674,LM3,Residential Care,P03,Wellbeing,BARCHESTER HEALTHCARE HOMES LTD,04/07/2012,425.00,
Bath & North East Somerset Council,80113674,LM3,Residential Care,P03,Wellbeing,BARCHESTER HEALTHCARE HOMES LTD,04/07/2012,425.00,
Bath & North East Somerset Council,80113674,LM3,Residential Care,P03,Wellbeing,BARCHESTER HEALTHCARE HOMES LTD,04/07/2012,425.00,
Bath & North East Somerset Council,80113674,LM3,Residential Care,P03,Wellbeing,BARCHESTER HEALTHCARE HOMES LTD,04/07/2012,425.00,
Bath & North East Somerset Council,80113674,LM3,Residential Care,P03,Wellbeing,BARCHESTER HEALTHCARE HOMES LTD,04/07/2012,425.00,
Bath & North East Somerset Council,80113674,LM3,Residential Care,P03,Wellbeing,BARCHESTER HEALTHCARE HOMES LTD,04/07/2012,505.00,
Bath & North East Somerset Council,80113674,LM3,Residential Care,P03,Wellbeing,BARCHESTER HEALTHCARE HOMES LTD,04/07/2012,505.00,
Bath & North East Somerset Council,80113674,LM6,Nursing Care,P03,Wellbeing,BARCHESTER HEALTHCARE HOMES LTD,04/07/2012,536.00,
Bath & North East Somerset Council,80113674,LM6,Nursing Care,P03,Wellbeing,BARCHESTER HEALTHCARE HOMES LTD,04/07/2012,536.00,
Bath & North East Somerset Council,80113674,LM6,Nursing Care,P03,Wellbeing,BARCHESTER HEALTHCARE HOMES LTD,04/07/2012,536.00,
Bath & North East Somerset Council,80113674,LM6,Nursing Care,P03,Wellbeing,BARCHESTER HEALTHCARE HOMES LTD,04/07/2012,536.00,
Bath & North East Somerset Council,80113674,LM6,Nursing Care,P03,Wellbeing,BARCHESTER HEALTHCARE HOMES LTD,04/07/2012,536.00,
Bath & North East Somerset Council,80113674,LM6,Nursing Care,P03,Wellbeing,BARCHESTER HEALTHCARE HOMES LTD,04/07/2012,536.00,
Bath & North East Somerset Council,80113674,LM6,Nursing Care,P03,Wellbeing,BARCHESTER HEALTHCARE HOMES LTD,04/07/2012,536.00,
Bath & North East Somerset Council,80113674,LM6,Nursing Care,P03,Wellbeing,BARCHESTER HEALTHCARE HOMES LTD,04/07/2012,536.00,
Bath & North East Somerset Council,80113674,LM6,Nursing Care,P03,Wellbeing,BARCHESTER HEALTHCARE HOMES LTD,04/07/2012,536.00,
Bath & North East Somerset Council,80113674,LM6,Nursing Care,P03,Wellbeing,BARCHESTER HEALTHCARE HOMES LTD,04/07/2012,536.00,
Bath & North East Somerset Council,80113674,LM6,Nursing Care,P03,Wellbeing,BARCHESTER HEALTHCARE HOMES LTD,04/07/2012,536.00,
Bath & North East Somerset Council,80113674,LM6,Nursing Care,P03,Wellbeing,BARCHESTER HEALTHCARE HOMES LTD,04/07/2012,536.00,
Bath & North East Somerset Council,80113674,LM6,Nursing Care,P03,Wellbeing,BARCHESTER HEALTHCARE HOMES LTD,04/07/2012,536.00,
Bath & North East Somerset Council,80113674,LM6,Nursing Care,P03,Wellbeing,BARCHESTER HEALTHCARE HOMES LTD,04/07/2012,536.00,
Bath & North East Somerset Council,80113674,LM6,Nursing Care,P03,Wellbeing,BARCHESTER HEALTHCARE HOMES LTD,04/07/2012,536.00,
Bath & North East Somerset Council,80113674,LM6,Nursing Care,P03,Wellbeing,BARCHESTER HEALTHCARE HOMES LTD,04/07/2012,536.00,
Bath & North East Somerset Council,80113674,LM6,Nursing Care,P03,Wellbeing,BARCHESTER HEALTHCARE HOMES LTD,04/07/2012,536.00,
Bath & North East Somerset Council,80113674,LM6,Nursing Care,P03,Wellbeing,BARCHESTER HEALTHCARE HOMES LTD,04/07/2012,536.00,
Bath & North East Somerset Council,80113674,LM6,Nursing Care,P03,Wellbeing,BARCHESTER HEALTHCARE HOMES LTD,04/07/2012,536.00,
Bath & North East Somerset Council,80113674,LM6,Nursing Care,P03,Wellbeing,BARCHESTER HEALTHCARE HOMES LTD,04/07/2012,536.00,
Bath & North East Somerset Council,80113674,LM6,Nursing Care,P03,Wellbeing,BARCHESTER HEALTHCARE HOMES LTD,04/07/2012,560.55,
Bath & North East Somerset Council,80113674,LM6,Nursing Care,P03,Wellbeing,BARCHESTER HEALTHCARE HOMES LTD,04/07/2012,560.55,
Bath & North East Somerset Council,80113674,LM6,Nursing Care,P03,Wellbeing,BARCHESTER HEALTHCARE HOMES LTD,04/07/2012,575.00,
Bath & North East Somerset Council,80113674,LM6,Nursing Care,P03,Wellbeing,BARCHESTER HEALTHCARE HOMES LTD,04/07/2012,575.00,
Bath & North East Somerset Council,80113674,LM6,Nursing Care,P03,Wellbeing,BARCHESTER HEALTHCARE HOMES LTD,04/07/2012,575.00,
Bath & North East Somerset Council,80113674,LM6,Nursing Care,P03,Wellbeing,BARCHESTER HEALTHCARE HOMES LTD,04/07/2012,575.00,
Bath & North East Somerset Council,80113674,LM6,Nursing Care,P03,Wellbeing,BARCHESTER HEALTHCARE HOMES LTD,04/07/2012,575.00,
Bath & North East Somerset Council,80113674,LM6,Nursing Care,P03,Wellbeing,BARCHESTER HEALTHCARE HOMES LTD,04/07/2012,575.00,
Bath & North East Somerset Council,80113674,LM6,Nursing Care,P03,Wellbeing,BARCHESTER HEALTHCARE HOMES LTD,04/07/2012,596.00,
Bath & North East Somerset Council,80113674,LM6,Nursing Care,P03,Wellbeing,BARCHESTER HEALTHCARE HOMES LTD,04/07/2012,596.00,
Bath & North East Somerset Council,80113674,LM6,Nursing Care,P03,Wellbeing,BARCHESTER HEALTHCARE HOMES LTD,04/07/2012,650.00,
Bath & North East Somerset Council,80113674,LM6,Nursing Care,P03,Wellbeing,BARCHESTER HEALTHCARE HOMES LTD,04/07/2012,650.00,
Bath & North East Somerset Council,80113674,LM6,Nursing Care,P03,Wellbeing,BARCHESTER HEALTHCARE HOMES LTD,04/07/2012,656.50,
Bath & North East Somerset Council,80113674,LM6,Nursing Care,P03,Wellbeing,BARCHESTER HEALTHCARE HOMES LTD,04/07/2012,656.50,
Bath & North East Somerset Council,80113674,LM6,Nursing Care,P03,Wellbeing,BARCHESTER HEALTHCARE HOMES LTD,04/07/2012,700.00,
Bath & North East Somerset Council,80113674,LM6,Nursing Care,P03,Wellbeing,BARCHESTER HEALTHCARE HOMES LTD,04/07/2012,700.00,
Bath & North East Somerset Council,80113674,LM6,Nursing Care,P03,Wellbeing,BARCHESTER HEALTHCARE HOMES LTD,04/07/2012,750.00,
Bath & North East Somerset Council,80113674,LM6,Nursing Care,P03,Wellbeing,BARCHESTER HEALTHCARE HOMES LTD,04/07/2012,750.00,
Bath & North East Somerset Council,80113674,LM6,Nursing Care,P03,Wellbeing,BARCHESTER HEALTHCARE HOMES LTD,04/07/2012,816.66,
Bath & North East Somerset Council,80113674,LM6,Nursing Care,P03,Wellbeing,BARCHESTER HEALTHCARE HOMES LTD,04/07/2012,816.66,
Bath & North East Somerset Council,80113674,LM6,Nursing Care,P03,Wellbeing,BARCHESTER HEALTHCARE HOMES LTD,04/07/2012,950.00,
Bath & North East Somerset Council,80113674,LM6,Nursing Care,P03,Wellbeing,BARCHESTER HEALTHCARE HOMES LTD,04/07/2012,950.00,
Bath & North East Somerset Council,80113674,LM6,Nursing Care,P03,Wellbeing,BARCHESTER HEALTHCARE HOMES LTD,04/07/2012,959.50,
Bath & North East Somerset Council,80113674,LM6,Nursing Care,P03,Wellbeing,BARCHESTER HEALTHCARE HOMES LTD,04/07/2012,959.50,
Bath & North East Somerset Council,80113596,LM3,Residential Care,P03,Wellbeing,BARCHESTER HEALTHCARE HOMES LTD,04/07/2012,1735.00,
Bath & North East Somerset Council,80113596,LM3,Residential Care,P03,Wellbeing,BARCHESTER HEALTHCARE HOMES LTD,04/07/2012,1735.00,
Bath & North East Somerset Council,80113584,LM6,Nursing Care,P03,Wellbeing,BARKER CHEMICALS LTD T/A ST TERESA'S NH,04/07/2012,536.00,
Bath & North East Somerset Council,80113584,LM6,Nursing Care,P03,Wellbeing,BARKER CHEMICALS LTD T/A ST TERESA'S NH,04/07/2012,536.00,
Bath & North East Somerset Council,80113584,LM6,Nursing Care,P03,Wellbeing,BARKER CHEMICALS LTD T/A ST TERESA'S NH,04/07/2012,536.00,
Bath & North East Somerset Council,80113584,LM6,Nursing Care,P03,Wellbeing,BARKER CHEMICALS LTD T/A ST TERESA'S NH,04/07/2012,536.00,
Bath & North East Somerset Council,80113584,LM6,Nursing Care,P03,Wellbeing,BARKER CHEMICALS LTD T/A ST TERESA'S NH,04/07/2012,536.00,
Bath & North East Somerset Council,80113584,LM6,Nursing Care,P03,Wellbeing,BARKER CHEMICALS LTD T/A ST TERESA'S NH,04/07/2012,536.00,
Bath & North East Somerset Council,80113584,LM6,Nursing Care,P03,Wellbeing,BARKER CHEMICALS LTD T/A ST TERESA'S NH,04/07/2012,536.00,
Bath & North East Somerset Council,80113584,LM6,Nursing Care,P03,Wellbeing,BARKER CHEMICALS LTD T/A ST TERESA'S NH,04/07/2012,536.00,
Bath & North East Somerset Council,80113584,LM6,Nursing Care,P03,Wellbeing,BARKER CHEMICALS LTD T/A ST TERESA'S NH,04/07/2012,536.00,
Bath & North East Somerset Council,80113584,LM6,Nursing Care,P03,Wellbeing,BARKER CHEMICALS LTD T/A ST TERESA'S NH,04/07/2012,536.00,
Bath & North East Somerset Council,80113584,LM6,Nursing Care,P03,Wellbeing,BARKER CHEMICALS LTD T/A ST TERESA'S NH,04/07/2012,536.00,
Bath & North East Somerset Council,80113584,LM6,Nursing Care,P03,Wellbeing,BARKER CHEMICALS LTD T/A ST TERESA'S NH,04/07/2012,536.00,
Bath & North East Somerset Council,80113584,LM6,Nursing Care,P03,Wellbeing,BARKER CHEMICALS LTD T/A ST TERESA'S NH,04/07/2012,536.00,
Bath & North East Somerset Council,80113584,LM6,Nursing Care,P03,Wellbeing,BARKER CHEMICALS LTD T/A ST TERESA'S NH,04/07/2012,536.00,
Bath & North East Somerset Council,80113584,LM6,Nursing Care,P03,Wellbeing,BARKER CHEMICALS LTD T/A ST TERESA'S NH,04/07/2012,536.00,
Bath & North East Somerset Council,80113584,LM6,Nursing Care,P03,Wellbeing,BARKER CHEMICALS LTD T/A ST TERESA'S NH,04/07/2012,536.00,
Bath & North East Somerset Council,80113584,LM6,Nursing Care,P03,Wellbeing,BARKER CHEMICALS LTD T/A ST TERESA'S NH,04/07/2012,536.00,
Bath & North East Somerset Council,80113584,LM6,Nursing Care,P03,Wellbeing,BARKER CHEMICALS LTD T/A ST TERESA'S NH,04/07/2012,536.00,
Bath & North East Somerset Council,80113584,LM6,Nursing Care,P03,Wellbeing,BARKER CHEMICALS LTD T/A ST TERESA'S NH,04/07/2012,575.00,
Bath & North East Somerset Council,80113584,LM6,Nursing Care,P03,Wellbeing,BARKER CHEMICALS LTD T/A ST TERESA'S NH,04/07/2012,575.00,
Bath & North East Somerset Council,80113584,LM6,Nursing Care,P03,Wellbeing,BARKER CHEMICALS LTD T/A ST TERESA'S NH,04/07/2012,575.00,
Bath & North East Somerset Council,80113584,LM6,Nursing Care,P03,Wellbeing,BARKER CHEMICALS LTD T/A ST TERESA'S NH,04/07/2012,575.00,
Bath & North East Somerset Council,80113584,LM6,Nursing Care,P03,Wellbeing,BARKER CHEMICALS LTD T/A ST TERESA'S NH,04/07/2012,575.00,
Bath & North East Somerset Council,80113584,LM6,Nursing Care,P03,Wellbeing,BARKER CHEMICALS LTD T/A ST TERESA'S NH,04/07/2012,575.00,
Bath & North East Somerset Council,80113584,LM6,Nursing Care,P03,Wellbeing,BARKER CHEMICALS LTD T/A ST TERESA'S NH,04/07/2012,575.00,
Bath & North East Somerset Council,80113584,LM6,Nursing Care,P03,Wellbeing,BARKER CHEMICALS LTD T/A ST TERESA'S NH,04/07/2012,575.00,
Bath & North East Somerset Council,80113584,LM6,Nursing Care,P03,Wellbeing,BARKER CHEMICALS LTD T/A ST TERESA'S NH,04/07/2012,575.00,
Bath & North East Somerset Council,80113584,LM6,Nursing Care,P03,Wellbeing,BARKER CHEMICALS LTD T/A ST TERESA'S NH,04/07/2012,575.00,
Bath & North East Somerset Council,80113584,LM6,Nursing Care,P03,Wellbeing,BARKER CHEMICALS LTD T/A ST TERESA'S NH,04/07/2012,575.00,
Bath & North East Somerset Council,80113584,LM6,Nursing Care,P03,Wellbeing,BARKER CHEMICALS LTD T/A ST TERESA'S NH,04/07/2012,575.00,
Bath & North East Somerset Council,80113584,LM6,Nursing Care,P03,Wellbeing,BARKER CHEMICALS LTD T/A ST TERESA'S NH,04/07/2012,575.00,
Bath & North East Somerset Council,80113584,LM6,Nursing Care,P03,Wellbeing,BARKER CHEMICALS LTD T/A ST TERESA'S NH,04/07/2012,575.00,
Bath & North East Somerset Council,80113584,LM6,Nursing Care,P03,Wellbeing,BARKER CHEMICALS LTD T/A ST TERESA'S NH,04/07/2012,600.00,
Bath & North East Somerset Council,80113584,LM6,Nursing Care,P03,Wellbeing,BARKER CHEMICALS LTD T/A ST TERESA'S NH,04/07/2012,600.00,
Bath & North East Somerset Council,80113584,LM6,Nursing Care,P03,Wellbeing,BARKER CHEMICALS LTD T/A ST TERESA'S NH,04/07/2012,600.00,
Bath & North East Somerset Council,80113584,LM6,Nursing Care,P03,Wellbeing,BARKER CHEMICALS LTD T/A ST TERESA'S NH,04/07/2012,600.00,
Bath & North East Somerset Council,80113584,LM6,Nursing Care,P03,Wellbeing,BARKER CHEMICALS LTD T/A ST TERESA'S NH,04/07/2012,600.00,
Bath & North East Somerset Council,80113584,LM6,Nursing Care,P03,Wellbeing,BARKER CHEMICALS LTD T/A ST TERESA'S NH,04/07/2012,600.00,
Bath & North East Somerset Council,80113584,LM6,Nursing Care,P03,Wellbeing,BARKER CHEMICALS LTD T/A ST TERESA'S NH,04/07/2012,600.00,
Bath & North East Somerset Council,80113584,LM6,Nursing Care,P03,Wellbeing,BARKER CHEMICALS LTD T/A ST TERESA'S NH,04/07/2012,600.00,
Bath & North East Somerset Council,80113584,LM6,Nursing Care,P03,Wellbeing,BARKER CHEMICALS LTD T/A ST TERESA'S NH,04/07/2012,600.00,
Bath & North East Somerset Council,80113584,LM6,Nursing Care,P03,Wellbeing,BARKER CHEMICALS LTD T/A ST TERESA'S NH,04/07/2012,600.00,
Bath & North East Somerset Council,80113584,LM6,Nursing Care,P03,Wellbeing,BARKER CHEMICALS LTD T/A ST TERESA'S NH,04/07/2012,600.00,
Bath & North East Somerset Council,80113584,LM6,Nursing Care,P03,Wellbeing,BARKER CHEMICALS LTD T/A ST TERESA'S NH,04/07/2012,600.00,
Bath & North East Somerset Council,80113584,LM3,Residential Care,P03,Wellbeing,BARKER CHEMICALS LTD T/A ST TERESA'S NH,04/07/2012,600.00,
Bath & North East Somerset Council,80113584,LM6,Nursing Care,P03,Wellbeing,BARKER CHEMICALS LTD T/A ST TERESA'S NH,04/07/2012,600.00,
Bath & North East Somerset Council,80113584,LM6,Nursing Care,P03,Wellbeing,BARKER CHEMICALS LTD T/A ST TERESA'S NH,04/07/2012,600.00,
Bath & North East Somerset Council,80113584,LM3,Residential Care,P03,Wellbeing,BARKER CHEMICALS LTD T/A ST TERESA'S NH,04/07/2012,600.00,
Bath & North East Somerset Council,80113584,LM6,Nursing Care,P03,Wellbeing,BARKER CHEMICALS LTD T/A ST TERESA'S NH,04/07/2012,600.00,
Bath & North East Somerset Council,80113584,LM6,Nursing Care,P03,Wellbeing,BARKER CHEMICALS LTD T/A ST TERESA'S NH,04/07/2012,600.00,
Bath & North East Somerset Council,80113584,LM6,Nursing Care,P03,Wellbeing,BARKER CHEMICALS LTD T/A ST TERESA'S NH,04/07/2012,606.00,
Bath & North East Somerset Council,80113584,LM6,Nursing Care,P03,Wellbeing,BARKER CHEMICALS LTD T/A ST TERESA'S NH,04/07/2012,606.00,
Bath & North East Somerset Council,10661719,LJ4,Contracts,P01,Transport,METRIC GROUP LIMITED,04/07/2012,88.20,
Bath & North East Somerset Council,10661719,LJ4,Contracts,P01,Transport,METRIC GROUP LIMITED,04/07/2012,88.20,
Bath & North East Somerset Council,80113713,LM3,Residential Care,P03,Wellbeing,BATH MIND,04/07/2012,639.79,
Bath & North East Somerset Council,80113713,LM3,Residential Care,P03,Wellbeing,BATH MIND,04/07/2012,639.79,
Bath & North East Somerset Council,80113713,LM3,Residential Care,P03,Wellbeing,BATH MIND,04/07/2012,639.79,
Bath & North East Somerset Council,80113713,LM3,Residential Care,P03,Wellbeing,BATH MIND,04/07/2012,639.79,
Bath & North East Somerset Council,80113713,LM3,Residential Care,P03,Wellbeing,BATH MIND,04/07/2012,639.79,
Bath & North East Somerset Council,80113713,LM3,Residential Care,P03,Wellbeing,BATH MIND,04/07/2012,639.79,
Bath & North East Somerset Council,80113713,LM3,Residential Care,P03,Wellbeing,BATH MIND,04/07/2012,639.79,
Bath & North East Somerset Council,80113713,LM3,Residential Care,P03,Wellbeing,BATH MIND,04/07/2012,639.79,
Bath & North East Somerset Council,80113713,LM3,Residential Care,P03,Wellbeing,BATH MIND,04/07/2012,639.79,
Bath & North East Somerset Council,80113713,LM3,Residential Care,P03,Wellbeing,BATH MIND,04/07/2012,639.79,
Bath & North East Somerset Council,80113713,LM3,Residential Care,P03,Wellbeing,BATH MIND,04/07/2012,639.79,
Bath & North East Somerset Council,80113713,LM3,Residential Care,P03,Wellbeing,BATH MIND,04/07/2012,639.79,
Bath & North East Somerset Council,80113697,LM3,Residential Care,P03,Wellbeing,BCVS HOMES,04/07/2012,425.00,
Bath & North East Somerset Council,80113697,LM3,Residential Care,P03,Wellbeing,BCVS HOMES,04/07/2012,425.00,
Bath & North East Somerset Council,80113697,LM3,Residential Care,P03,Wellbeing,BCVS HOMES,04/07/2012,425.00,
Bath & North East Somerset Council,80113697,LM3,Residential Care,P03,Wellbeing,BCVS HOMES,04/07/2012,425.00,
Bath & North East Somerset Council,80113697,LM3,Residential Care,P03,Wellbeing,BCVS HOMES,04/07/2012,425.00,
Bath & North East Somerset Council,80113697,LM3,Residential Care,P03,Wellbeing,BCVS HOMES,04/07/2012,425.00,
Bath & North East Somerset Council,80113699,LM3,Residential Care,P03,Wellbeing,BCVS HOMES,04/07/2012,425.00,
Bath & North East Somerset Council,80113699,LM3,Residential Care,P03,Wellbeing,BCVS HOMES,04/07/2012,425.00,
Bath & North East Somerset Council,80113699,LM3,Residential Care,P03,Wellbeing,BCVS HOMES,04/07/2012,425.00,
Bath & North East Somerset Council,80113699,LM3,Residential Care,P03,Wellbeing,BCVS HOMES,04/07/2012,425.00,
Bath & North East Somerset Council,80113699,LM3,Residential Care,P03,Wellbeing,BCVS HOMES,04/07/2012,425.00,
Bath & North East Somerset Council,80113699,LM3,Residential Care,P03,Wellbeing,BCVS HOMES,04/07/2012,425.00,
Bath & North East Somerset Council,80113699,LM3,Residential Care,P03,Wellbeing,BCVS HOMES,04/07/2012,425.00,
Bath & North East Somerset Council,80113699,LM3,Residential Care,P03,Wellbeing,BCVS HOMES,04/07/2012,425.00,
Bath & North East Somerset Council,80113699,LM3,Residential Care,P03,Wellbeing,BCVS HOMES,04/07/2012,425.00,
Bath & North East Somerset Council,80113699,LM3,Residential Care,P03,Wellbeing,BCVS HOMES,04/07/2012,425.00,
Bath & North East Somerset Council,80113699,LM3,Residential Care,P03,Wellbeing,BCVS HOMES,04/07/2012,425.00,
Bath & North East Somerset Council,80113699,LM3,Residential Care,P03,Wellbeing,BCVS HOMES,04/07/2012,425.00,
Bath & North East Somerset Council,80113699,LM3,Residential Care,P03,Wellbeing,BCVS HOMES,04/07/2012,427.23,
Bath & North East Somerset Council,80113699,LM3,Residential Care,P03,Wellbeing,BCVS HOMES,04/07/2012,427.23,
Bath & North East Somerset Council,80113699,LM3,Residential Care,P03,Wellbeing,BCVS HOMES,04/07/2012,454.50,
Bath & North East Somerset Council,80113699,LM3,Residential Care,P03,Wellbeing,BCVS HOMES,04/07/2012,454.50,
Bath & North East Somerset Council,80113699,LM3,Residential Care,P03,Wellbeing,BCVS HOMES,04/07/2012,455.51,
Bath & North East Somerset Council,80113699,LM3,Residential Care,P03,Wellbeing,BCVS HOMES,04/07/2012,455.51,
Bath & North East Somerset Council,80113699,LM3,Residential Care,P03,Wellbeing,BCVS HOMES,04/07/2012,461.00,
Bath & North East Somerset Council,80113699,LM3,Residential Care,P03,Wellbeing,BCVS HOMES,04/07/2012,461.00,
Bath & North East Somerset Council,80113699,LM3,Residential Care,P03,Wellbeing,BCVS HOMES,04/07/2012,500.00,
Bath & North East Somerset Council,80113699,LM3,Residential Care,P03,Wellbeing,BCVS HOMES,04/07/2012,500.00,
Bath & North East Somerset Council,80113697,LM3,Residential Care,P03,Wellbeing,BCVS HOMES,04/07/2012,500.96,
Bath & North East Somerset Council,80113697,LM3,Residential Care,P03,Wellbeing,BCVS HOMES,04/07/2012,500.96,
Bath & North East Somerset Council,80113663,LM3,Residential Care,P03,Wellbeing,BEAUFORT CARE LIMITED,04/07/2012,550.00,
Bath & North East Somerset Council,80113663,LM3,Residential Care,P03,Wellbeing,BEAUFORT CARE LIMITED,04/07/2012,550.00,
Bath & North East Somerset Council,80113535,LM3,Residential Care,P03,Wellbeing,BEDROCK LODGE,04/07/2012,789.70,
Bath & North East Somerset Council,80113535,LM3,Residential Care,P03,Wellbeing,BEDROCK LODGE,04/07/2012,789.70,
Bath & North East Somerset Council,80113575,LM3,Residential Care,P03,Wellbeing,BEECHCROFT,04/07/2012,425.00,
Bath & North East Somerset Council,80113575,LM3,Residential Care,P03,Wellbeing,BEECHCROFT,04/07/2012,425.00,
Bath & North East Somerset Council,80113575,LM3,Residential Care,P03,Wellbeing,BEECHCROFT,04/07/2012,425.00,
Bath & North East Somerset Council,80113575,LM3,Residential Care,P03,Wellbeing,BEECHCROFT,04/07/2012,425.00,
Bath & North East Somerset Council,80113575,LM3,Residential Care,P03,Wellbeing,BEECHCROFT,04/07/2012,425.00,
Bath & North East Somerset Council,80113575,LM3,Residential Care,P03,Wellbeing,BEECHCROFT,04/07/2012,425.00,
Bath & North East Somerset Council,80113575,LM3,Residential Care,P03,Wellbeing,BEECHCROFT,04/07/2012,425.00,
Bath & North East Somerset Council,80113575,LM3,Residential Care,P03,Wellbeing,BEECHCROFT,04/07/2012,425.00,
Bath & North East Somerset Council,80113575,LM3,Residential Care,P03,Wellbeing,BEECHCROFT,04/07/2012,480.00,
Bath & North East Somerset Council,80113575,LM3,Residential Care,P03,Wellbeing,BEECHCROFT,04/07/2012,480.00,
Bath & North East Somerset Council,80113576,LM3,Residential Care,P03,Wellbeing,BELMONT VILLA RESIDENTIAL NURSING HOME LTD,04/07/2012,550.00,
Bath & North East Somerset Council,80113576,LM3,Residential Care,P03,Wellbeing,BELMONT VILLA RESIDENTIAL NURSING HOME LTD,04/07/2012,550.00,
Bath & North East Somerset Council,10661719,LJ4,Contracts,P01,Transport,METRIC GROUP LIMITED,04/07/2012,101.61,
Bath & North East Somerset Council,80113650,LM6,Nursing Care,P03,Wellbeing,BIRKDALE PARK NURSING HOME,04/07/2012,550.00,
Bath & North East Somerset Council,80113650,LM6,Nursing Care,P03,Wellbeing,BIRKDALE PARK NURSING HOME,04/07/2012,550.00,
Bath & North East Somerset Council,80113569,LM3,Residential Care,P03,Wellbeing,BOLE ALLER HOUSE LTD,04/07/2012,728.63,
Bath & North East Somerset Council,80113569,LM3,Residential Care,P03,Wellbeing,BOLE ALLER HOUSE LTD,04/07/2012,728.63,
Bath & North East Somerset Council,80113542,LM3,Residential Care,P03,Wellbeing,BRIDGE CARE LTD,04/07/2012,425.00,
Bath & North East Somerset Council,80113542,LM3,Residential Care,P03,Wellbeing,BRIDGE CARE LTD,04/07/2012,425.00,
Bath & North East Somerset Council,80113542,LM3,Residential Care,P03,Wellbeing,BRIDGE CARE LTD,04/07/2012,425.00,
Bath & North East Somerset Council,80113542,LM3,Residential Care,P03,Wellbeing,BRIDGE CARE LTD,04/07/2012,425.00,
Bath & North East Somerset Council,80113542,LM6,Nursing Care,P03,Wellbeing,BRIDGE CARE LTD,04/07/2012,536.00,
Bath & North East Somerset Council,80113542,LM6,Nursing Care,P03,Wellbeing,BRIDGE CARE LTD,04/07/2012,536.00,
Bath & North East Somerset Council,80113542,LM6,Nursing Care,P03,Wellbeing,BRIDGE CARE LTD,04/07/2012,536.00,
Bath & North East Somerset Council,80113542,LM6,Nursing Care,P03,Wellbeing,BRIDGE CARE LTD,04/07/2012,536.00,
Bath & North East Somerset Council,80113542,LM6,Nursing Care,P03,Wellbeing,BRIDGE CARE LTD,04/07/2012,536.00,
Bath & North East Somerset Council,80113542,LM6,Nursing Care,P03,Wellbeing,BRIDGE CARE LTD,04/07/2012,536.00,
Bath & North East Somerset Council,80113542,LM6,Nursing Care,P03,Wellbeing,BRIDGE CARE LTD,04/07/2012,536.00,
Bath & North East Somerset Council,80113542,LM6,Nursing Care,P03,Wellbeing,BRIDGE CARE LTD,04/07/2012,536.00,
Bath & North East Somerset Council,80113542,LM6,Nursing Care,P03,Wellbeing,BRIDGE CARE LTD,04/07/2012,536.00,
Bath & North East Somerset Council,80113542,LM6,Nursing Care,P03,Wellbeing,BRIDGE CARE LTD,04/07/2012,536.00,
Bath & North East Somerset Council,80113542,LM6,Nursing Care,P03,Wellbeing,BRIDGE CARE LTD,04/07/2012,536.00,
Bath & North East Somerset Council,80113542,LM6,Nursing Care,P03,Wellbeing,BRIDGE CARE LTD,04/07/2012,536.00,
Bath & North East Somerset Council,80113542,LM6,Nursing Care,P03,Wellbeing,BRIDGE CARE LTD,04/07/2012,536.00,
Bath & North East Somerset Council,80113542,LM6,Nursing Care,P03,Wellbeing,BRIDGE CARE LTD,04/07/2012,606.00,
Bath & North East Somerset Council,80113542,LM6,Nursing Care,P03,Wellbeing,BRIDGE CARE LTD,04/07/2012,606.00,
Bath & North East Somerset Council,80113553,LM6,Nursing Care,P03,Wellbeing,BRIGHTBOW LODGE,04/07/2012,573.33,
Bath & North East Somerset Council,80113553,LM6,Nursing Care,P03,Wellbeing,BRIGHTBOW LODGE,04/07/2012,573.33,
Bath & North East Somerset Council,80113553,LM6,Nursing Care,P03,Wellbeing,BRIGHTBOW LODGE,04/07/2012,610.20,
Bath & North East Somerset Council,80113553,LM6,Nursing Care,P03,Wellbeing,BRIGHTBOW LODGE,04/07/2012,610.20,
Bath & North East Somerset Council,80113553,LM3,Residential Care,P03,Wellbeing,BRIGHTBOW LODGE,04/07/2012,610.20,
Bath & North East Somerset Council,80113553,LM3,Residential Care,P03,Wellbeing,BRIGHTBOW LODGE,04/07/2012,610.20,
Bath & North East Somerset Council,80113553,LM6,Nursing Care,P03,Wellbeing,BRIGHTBOW LODGE,04/07/2012,625.46,
Bath & North East Somerset Council,80113553,LM6,Nursing Care,P03,Wellbeing,BRIGHTBOW LODGE,04/07/2012,625.46,
Bath & North East Somerset Council,80113701,LM6,Nursing Care,P03,Wellbeing,BRISTOL AGE CARE,04/07/2012,492.86,
Bath & North East Somerset Council,80113701,LM6,Nursing Care,P03,Wellbeing,BRISTOL AGE CARE,04/07/2012,575.00,
Bath & North East Somerset Council,80113701,LM6,Nursing Care,P03,Wellbeing,BRISTOL AGE CARE,04/07/2012,575.00,
Bath & North East Somerset Council,80113701,LM6,Nursing Care,P03,Wellbeing,BRISTOL AGE CARE,04/07/2012,575.00,
Bath & North East Somerset Council,80113701,LM6,Nursing Care,P03,Wellbeing,BRISTOL AGE CARE,04/07/2012,575.00,
Bath & North East Somerset Council,80113701,LM6,Nursing Care,P03,Wellbeing,BRISTOL AGE CARE,04/07/2012,575.00,
Bath & North East Somerset Council,80113701,LM6,Nursing Care,P03,Wellbeing,BRISTOL AGE CARE,04/07/2012,575.00,
Bath & North East Somerset Council,80113701,LM6,Nursing Care,P03,Wellbeing,BRISTOL AGE CARE,04/07/2012,575.00,
Bath & North East Somerset Council,80113701,LM6,Nursing Care,P03,Wellbeing,BRISTOL AGE CARE,04/07/2012,575.00,
Bath & North East Somerset Council,80113701,LM6,Nursing Care,P03,Wellbeing,BRISTOL AGE CARE,04/07/2012,575.00,
Bath & North East Somerset Council,80113701,LM6,Nursing Care,P03,Wellbeing,BRISTOL AGE CARE,04/07/2012,600.00,
Bath & North East Somerset Council,80113701,LM6,Nursing Care,P03,Wellbeing,BRISTOL AGE CARE,04/07/2012,600.00,
Bath & North East Somerset Council,80112981,LM6,Nursing Care,P03,Wellbeing,BRISTOL AGE CARE,04/07/2012,620.00,
Bath & North East Somerset Council,80112981,LM6,Nursing Care,P03,Wellbeing,BRISTOL AGE CARE,04/07/2012,620.00,
Bath & North East Somerset Council,80113701,LM6,Nursing Care,P03,Wellbeing,BRISTOL AGE CARE,04/07/2012,680.00,
Bath & North East Somerset Council,80113701,LM6,Nursing Care,P03,Wellbeing,BRISTOL AGE CARE,04/07/2012,680.00,
Bath & North East Somerset Council,80112981,LM6,Nursing Care,P03,Wellbeing,BRISTOL AGE CARE,04/07/2012,750.00,
Bath & North East Somerset Council,80112981,LM6,Nursing Care,P03,Wellbeing,BRISTOL AGE CARE,04/07/2012,750.00,
Bath & North East Somerset Council,80113701,LM6,Nursing Care,P03,Wellbeing,BRISTOL AGE CARE,04/07/2012,750.00,
Bath & North East Somerset Council,80113701,LM6,Nursing Care,P03,Wellbeing,BRISTOL AGE CARE,04/07/2012,750.00,
Bath & North East Somerset Council,80113604,LM3,Residential Care,P03,Wellbeing,BROUGHTON LODGE CARE HOME,04/07/2012,425.00,
Bath & North East Somerset Council,80113604,LM3,Residential Care,P03,Wellbeing,BROUGHTON LODGE CARE HOME,04/07/2012,425.00,
Bath & North East Somerset Council,80113612,LM6,Nursing Care,P03,Wellbeing,BUPACARE SERVICES BACS RECEIPTS,04/07/2012,591.00,
Bath & North East Somerset Council,80113612,LM6,Nursing Care,P03,Wellbeing,BUPACARE SERVICES BACS RECEIPTS,04/07/2012,591.00,
Bath & North East Somerset Council,80113611,LM3,Residential Care,P03,Wellbeing,CAMPHILL DEVON COMMUNITY LTD,04/07/2012,841.50,
Bath & North East Somerset Council,80113611,LM3,Residential Care,P03,Wellbeing,CAMPHILL DEVON COMMUNITY LTD,04/07/2012,841.50,
Bath & North East Somerset Council,80113505,LM6,Nursing Care,P03,Wellbeing,CARE FIRST CARE HOMES LTD,04/07/2012,590.55,
Bath & North East Somerset Council,80113505,LM6,Nursing Care,P03,Wellbeing,CARE FIRST CARE HOMES LTD,04/07/2012,590.55,
Bath & North East Somerset Council,80113605,LM6,Nursing Care,P03,Wellbeing,CARE FIRST CARE HOMES LTD,04/07/2012,656.50,
Bath & North East Somerset Council,80113605,LM6,Nursing Care,P03,Wellbeing,CARE FIRST CARE HOMES LTD,04/07/2012,656.50,
Bath & North East Somerset Council,80113605,LM6,Nursing Care,P03,Wellbeing,CARE FIRST CARE HOMES LTD,04/07/2012,927.18,
Bath & North East Somerset Council,80113605,LM6,Nursing Care,P03,Wellbeing,CARE FIRST CARE HOMES LTD,04/07/2012,927.18,
Bath & North East Somerset Council,80113659,LM6,Nursing Care,P03,Wellbeing,CARE HOMES UK LTD,04/07/2012,536.00,
Bath & North East Somerset Council,80113659,LM6,Nursing Care,P03,Wellbeing,CARE HOMES UK LTD,04/07/2012,536.00,
Bath & North East Somerset Council,80113761,LM2,Foster Carer Allowances,P02,"Early Years, Children & Youth",REDACTED,04/07/2012,762.00,
Bath & North East Somerset Council,80113560,LM6,Nursing Care,P03,Wellbeing,CEDAR CARE HOMES LTD,04/07/2012,400.00,
Bath & North East Somerset Council,80113560,LM3,Residential Care,P03,Wellbeing,CEDAR CARE HOMES LTD,04/07/2012,406.43,
Bath & North East Somerset Council,80113538,LM3,Residential Care,P03,Wellbeing,CEDAR CARE HOMES LTD,04/07/2012,461.00,
Bath & North East Somerset Council,80113538,LM3,Residential Care,P03,Wellbeing,CEDAR CARE HOMES LTD,04/07/2012,461.00,
Bath & North East Somerset Council,80113538,LM3,Residential Care,P03,Wellbeing,CEDAR CARE HOMES LTD,04/07/2012,461.00,
Bath & North East Somerset Council,80113538,LM3,Residential Care,P03,Wellbeing,CEDAR CARE HOMES LTD,04/07/2012,461.00,
Bath & North East Somerset Council,80113538,LM3,Residential Care,P03,Wellbeing,CEDAR CARE HOMES LTD,04/07/2012,461.00,
Bath & North East Somerset Council,80113538,LM3,Residential Care,P03,Wellbeing,CEDAR CARE HOMES LTD,04/07/2012,461.00,
Bath & North East Somerset Council,80113538,LM3,Residential Care,P03,Wellbeing,CEDAR CARE HOMES LTD,04/07/2012,461.00,
Bath & North East Somerset Council,80113538,LM3,Residential Care,P03,Wellbeing,CEDAR CARE HOMES LTD,04/07/2012,461.00,
Bath & North East Somerset Council,80113538,LM3,Residential Care,P03,Wellbeing,CEDAR CARE HOMES LTD,04/07/2012,461.00,
Bath & North East Somerset Council,80113538,LM3,Residential Care,P03,Wellbeing,CEDAR CARE HOMES LTD,04/07/2012,461.00,
Bath & North East Somerset Council,80113538,LM3,Residential Care,P03,Wellbeing,CEDAR CARE HOMES LTD,04/07/2012,500.00,
Bath & North East Somerset Council,80113538,LM3,Residential Care,P03,Wellbeing,CEDAR CARE HOMES LTD,04/07/2012,500.00,
Bath & North East Somerset Council,80113560,LM6,Nursing Care,P03,Wellbeing,CEDAR CARE HOMES LTD,04/07/2012,536.00,
Bath & North East Somerset Council,80113560,LM6,Nursing Care,P03,Wellbeing,CEDAR CARE HOMES LTD,04/07/2012,536.00,
Bath & North East Somerset Council,80113560,LM6,Nursing Care,P03,Wellbeing,CEDAR CARE HOMES LTD,04/07/2012,536.00,
Bath & North East Somerset Council,80113560,LM6,Nursing Care,P03,Wellbeing,CEDAR CARE HOMES LTD,04/07/2012,536.00,
Bath & North East Somerset Council,80113616,LM6,Nursing Care,P03,Wellbeing,CEDAR CARE HOMES LTD,04/07/2012,536.00,
Bath & North East Somerset Council,80113616,LM6,Nursing Care,P03,Wellbeing,CEDAR CARE HOMES LTD,04/07/2012,536.00,
Bath & North East Somerset Council,80113616,LM6,Nursing Care,P03,Wellbeing,CEDAR CARE HOMES LTD,04/07/2012,536.00,
Bath & North East Somerset Council,80113616,LM6,Nursing Care,P03,Wellbeing,CEDAR CARE HOMES LTD,04/07/2012,536.00,
Bath & North East Somerset Council,80113616,LM6,Nursing Care,P03,Wellbeing,CEDAR CARE HOMES LTD,04/07/2012,536.00,
Bath & North East Somerset Council,80113616,LM6,Nursing Care,P03,Wellbeing,CEDAR CARE HOMES LTD,04/07/2012,536.00,
Bath & North East Somerset Council,80113616,LM6,Nursing Care,P03,Wellbeing,CEDAR CARE HOMES LTD,04/07/2012,536.00,
Bath & North East Somerset Council,80113616,LM6,Nursing Care,P03,Wellbeing,CEDAR CARE HOMES LTD,04/07/2012,536.00,
Bath & North East Somerset Council,80113616,LM6,Nursing Care,P03,Wellbeing,CEDAR CARE HOMES LTD,04/07/2012,536.00,
Bath & North East Somerset Council,80113616,LM6,Nursing Care,P03,Wellbeing,CEDAR CARE HOMES LTD,04/07/2012,536.00,
Bath & North East Somerset Council,80113616,LM6,Nursing Care,P03,Wellbeing,CEDAR CARE HOMES LTD,04/07/2012,536.00,
Bath & North East Somerset Council,80113616,LM6,Nursing Care,P03,Wellbeing,CEDAR CARE HOMES LTD,04/07/2012,536.00,
Bath & North East Somerset Council,80113616,LM6,Nursing Care,P03,Wellbeing,CEDAR CARE HOMES LTD,04/07/2012,536.00,
Bath & North East Somerset Council,80113616,LM6,Nursing Care,P03,Wellbeing,CEDAR CARE HOMES LTD,04/07/2012,536.00,
Bath & North East Somerset Council,80113616,LM6,Nursing Care,P03,Wellbeing,CEDAR CARE HOMES LTD,04/07/2012,536.00,
Bath & North East Somerset Council,80113616,LM6,Nursing Care,P03,Wellbeing,CEDAR CARE HOMES LTD,04/07/2012,536.00,
Bath & North East Somerset Council,80113616,LM6,Nursing Care,P03,Wellbeing,CEDAR CARE HOMES LTD,04/07/2012,536.00,
Bath & North East Somerset Council,80113616,LM6,Nursing Care,P03,Wellbeing,CEDAR CARE HOMES LTD,04/07/2012,536.00,
Bath & North East Somerset Council,80113616,LM6,Nursing Care,P03,Wellbeing,CEDAR CARE HOMES LTD,04/07/2012,536.00,
Bath & North East Somerset Council,80113616,LM6,Nursing Care,P03,Wellbeing,CEDAR CARE HOMES LTD,04/07/2012,536.00,
Bath & North East Somerset Council,80113560,LM3,Residential Care,P03,Wellbeing,CEDAR CARE HOMES LTD,04/07/2012,569.00,
Bath & North East Somerset Council,80113560,LM3,Residential Care,P03,Wellbeing,CEDAR CARE HOMES LTD,04/07/2012,569.00,
Bath & North East Somerset Council,80113560,LM3,Residential Care,P03,Wellbeing,CEDAR CARE HOMES LTD,04/07/2012,569.00,
Bath & North East Somerset Council,80113560,LM3,Residential Care,P03,Wellbeing,CEDAR CARE HOMES LTD,04/07/2012,569.00,
Bath & North East Somerset Council,80113560,LM3,Residential Care,P03,Wellbeing,CEDAR CARE HOMES LTD,04/07/2012,569.00,
Bath & North East Somerset Council,80113560,LM3,Residential Care,P03,Wellbeing,CEDAR CARE HOMES LTD,04/07/2012,569.00,
Bath & North East Somerset Council,80113560,LM3,Residential Care,P03,Wellbeing,CEDAR CARE HOMES LTD,04/07/2012,569.00,
Bath & North East Somerset Council,80113560,LM3,Residential Care,P03,Wellbeing,CEDAR CARE HOMES LTD,04/07/2012,569.00,
Bath & North East Somerset Council,80113560,LM3,Residential Care,P03,Wellbeing,CEDAR CARE HOMES LTD,04/07/2012,569.00,
Bath & North East Somerset Council,80113560,LM3,Residential Care,P03,Wellbeing,CEDAR CARE HOMES LTD,04/07/2012,569.00,
Bath & North East Somerset Council,80113560,LM3,Residential Care,P03,Wellbeing,CEDAR CARE HOMES LTD,04/07/2012,569.00,
Bath & North East Somerset Council,80113560,LM3,Residential Care,P03,Wellbeing,CEDAR CARE HOMES LTD,04/07/2012,569.00,
Bath & North East Somerset Council,80113560,LM6,Nursing Care,P03,Wellbeing,CEDAR CARE HOMES LTD,04/07/2012,575.00,
Bath & North East Somerset Council,80113560,LM6,Nursing Care,P03,Wellbeing,CEDAR CARE HOMES LTD,04/07/2012,575.00,
Bath & North East Somerset Council,80113560,LM6,Nursing Care,P03,Wellbeing,CEDAR CARE HOMES LTD,04/07/2012,575.00,
Bath & North East Somerset Council,80113560,LM6,Nursing Care,P03,Wellbeing,CEDAR CARE HOMES LTD,04/07/2012,575.00,
Bath & North East Somerset Council,80113560,LM6,Nursing Care,P03,Wellbeing,CEDAR CARE HOMES LTD,04/07/2012,575.00,
Bath & North East Somerset Council,80113560,LM6,Nursing Care,P03,Wellbeing,CEDAR CARE HOMES LTD,04/07/2012,575.00,
Bath & North East Somerset Council,80113560,LM6,Nursing Care,P03,Wellbeing,CEDAR CARE HOMES LTD,04/07/2012,575.00,
Bath & North East Somerset Council,80113560,LM6,Nursing Care,P03,Wellbeing,CEDAR CARE HOMES LTD,04/07/2012,575.00,
Bath & North East Somerset Council,80113616,LM6,Nursing Care,P03,Wellbeing,CEDAR CARE HOMES LTD,04/07/2012,575.00,
Bath & North East Somerset Council,80113616,LM6,Nursing Care,P03,Wellbeing,CEDAR CARE HOMES LTD,04/07/2012,575.00,
Bath & North East Somerset Council,80113616,LM6,Nursing Care,P03,Wellbeing,CEDAR CARE HOMES LTD,04/07/2012,575.00,
Bath & North East Somerset Council,80113616,LM6,Nursing Care,P03,Wellbeing,CEDAR CARE HOMES LTD,04/07/2012,575.00,
Bath & North East Somerset Council,80113616,LM6,Nursing Care,P03,Wellbeing,CEDAR CARE HOMES LTD,04/07/2012,596.91,
Bath & North East Somerset Council,80113616,LM6,Nursing Care,P03,Wellbeing,CEDAR CARE HOMES LTD,04/07/2012,596.91,
Bath & North East Somerset Council,80113560,LM6,Nursing Care,P03,Wellbeing,CEDAR CARE HOMES LTD,04/07/2012,600.00,
Bath & North East Somerset Council,80113560,LM6,Nursing Care,P03,Wellbeing,CEDAR CARE HOMES LTD,04/07/2012,600.00,
Bath & North East Somerset Council,80113560,LM6,Nursing Care,P03,Wellbeing,CEDAR CARE HOMES LTD,04/07/2012,600.00,
Bath & North East Somerset Council,80113560,LM6,Nursing Care,P03,Wellbeing,CEDAR CARE HOMES LTD,04/07/2012,600.00,
Bath & North East Somerset Council,80113538,LM3,Residential Care,P03,Wellbeing,CEDAR CARE HOMES LTD,04/07/2012,606.00,
Bath & North East Somerset Council,80113538,LM3,Residential Care,P03,Wellbeing,CEDAR CARE HOMES LTD,04/07/2012,606.00,
Bath & North East Somerset Council,80113616,LM6,Nursing Care,P03,Wellbeing,CEDAR CARE HOMES LTD,04/07/2012,650.00,
Bath & North East Somerset Council,80113616,LM6,Nursing Care,P03,Wellbeing,CEDAR CARE HOMES LTD,04/07/2012,650.00,
Bath & North East Somerset Council,80113560,LM6,Nursing Care,P03,Wellbeing,CEDAR CARE HOMES LTD,04/07/2012,670.00,
Bath & North East Somerset Council,80113560,LM6,Nursing Care,P03,Wellbeing,CEDAR CARE HOMES LTD,04/07/2012,670.00,
Bath & North East Somerset Council,80113560,LM6,Nursing Care,P03,Wellbeing,CEDAR CARE HOMES LTD,04/07/2012,700.00,
